Workbook

Sheet EXPORT
E2: Scenarionamn | G2: Initiala Underlag | I2: Password | AA2: OrganisationNivå1 | AB2: OrganisationNivå2 | AC2: OrganisationNivå3 | AD2: OrganisationNivå4 | AE2: OrganisationNivå5 | AF2: VerksamhetensNamn_6 | AG2: Kategori1 | AH2: Kategori2 | AI2: Kategori3
W3: FileName | X3: SheetName | Y3: Scenario | Z3: Nämnd_1 | AJ3: Titel
E4: Exportmapp | G4: C:\Users\lukas\OneDrive - XLD Solutions\Exceldepartment\Projects\ProjectFolders\XLD_ModelTemplates\BudgetTemplate_Karolinska\Export231103
B8: Mandatory fields | C8: Mandatory fields | D8: Mandatory fields | E8: Mandatory fields | G8: Frivilliga fält | H8: Optional Fields | I8: Optional Fields | J8: Optional Fields | K8: Optional Fields | L8: Optional Fields | O8: Optional Fields | P8: Optional Fields | Q8: Optional Fields | R8: Optional Fields | T8: Free fields | U8: Free fields | V8: Free fields
B9: LOCKED | C9: DEFAULT | D9: HIDDEN | E9: LOCKED | G9: OPEN | H9: OPEN | I9: LOCKED | J9: DEFAULT | L9: DEFAULT | M9: DEFAULT | N9: SHOW IF NEEDED | O9: SHOW IF NEEDED | P9: SHOW IF NEEDED | Q9: SHOW IF NEEDED | R9: HIDDEN | T9: LOCKED | U9: SHOW IF NEEDED | V9: SHOW IF NEEDED | W9: SHOW IF NEEDED | X9: SHOW IF NEEDED | Y9: SHOW IF NEEDED | Z9: SHOW IF NEEDED | AA9: SHOW IF NEEDED | AB9: SHOW IF NEEDED | AC9: HIDDEN
B10: FileName | C10: Titel | D10: Datum | E10: Budget Tidigare | G10: Budget | H10: Kommentar | I10: Nämnd _1 | J10: VerksamhetensNamn_6 | L10: Kategori_1 | M10: Kategori_2 | N10: Kategori_3 | O10: Kategori_4 | P10: KST | Q10: Anvsvarig | R10: IncomeOrCost | S10: _ | T10: BladNamn | U10: Månadslön | V10: Årlig tjänstgöringsgrad | W10: Fakta | X10: OrganisationNivå1 | Y10: OrganisationNivå2 | Z10: OrganisationNivå3 | AA10: OrganisationNivå4 | AB10: OrganisationNivå5 | AC10: ImportTime
B11: Miljö och Hälsa | C11: Miljö- och hälsoskydd, myndighetsutövning | D11: 2021-01-01 | E11: 2695000 | G11: 2695000 | I11: INFRASTRUKTUR, SKYDD mm | L11: Personal | M11: Miljö- och hälsoskydd, myndighetsutövning | R11: Cost | T11: Budget
B12: Miljö och Hälsa | C12: Miljö- hälsa och hållbar utveckling | D12: 2021-01-01 | E12: 0 | G12: 0 | I12: INFRASTRUKTUR, SKYDD mm | L12: Material | M12: Miljö- hälsa och hållbar utveckling | R12: Cost | T12: Budget
B13: Miljö och Hälsa | C13: Alkoholtillstånd m.m. | D13: 2021-01-01 | E13: 140000 | G13: 140000 | I13: INFRASTRUKTUR, SKYDD mm | L13: Tjänster | M13: Alkoholtillstånd m.m. | R13: Cost | T13: Budget
B14: Miljö och Hälsa | C14: Räddningstjänst | D14: 2021-01-01 | E14: 9344000 | G14: 9344000 | I14: INFRASTRUKTUR, SKYDD mm | L14: Personal | M14: Räddningstjänst | R14: Cost | T14: Budget
B15: KULTUR OCH FRITID | C15: Stöd till studieorganisationer | D15: 2021-01-01 | E15: 0 | G15: 0 | I15: KULTUR OCH FRITID | L15: Personal | M15: Stöd till studieorganisationer | R15: Cost | T15: Budget
B16: KULTUR OCH FRITID | C16: Allmän kulturverksamhet, övrigt | D16: 2021-01-01 | E16: 5479000 | G16: 5479000 | I16: KULTUR OCH FRITID | L16: Material | M16: Allmän kulturverksamhet, övrigt | R16: Cost | T16: Budget
B17: KULTUR OCH FRITID | C17: Bibliotek | D17: 2021-01-01 | E17: 3048000 | G17: 3048000 | I17: KULTUR OCH FRITID | L17: Tjänster | M17: Bibliotek | R17: Cost | T17: Budget
B18: KULTUR OCH FRITID | C18: Musikskola / kulturskola | D18: 2021-01-01 | E18: 3638000 | G18: 3638000 | I18: KULTUR OCH FRITID | L18: Personal | M18: Musikskola / kulturskola | R18: Cost | T18: Budget
B19: KULTUR OCH FRITID | C19: Allmän fritidsverksamhet | D19: 2021-01-01 | E19: 0 | G19: 0 | I19: KULTUR OCH FRITID | L19: Material | M19: Allmän fritidsverksamhet | R19: Cost | T19: Budget
B20: KULTUR OCH FRITID | C20: Idrotts- och fritidsanläggningar | D20: 2021-01-01 | E20: 12775000 | G20: 12775000 | I20: KULTUR OCH FRITID | L20: Personal | M20: Idrotts- och fritidsanläggningar | R20: Cost | T20: Budget
B21: KULTUR OCH FRITID | C21: Fritidsgårdar | D21: 2021-01-01 | E21: 0 | G21: 0 | I21: KULTUR OCH FRITID | L21: Material | M21: Fritidsgårdar | R21: Cost | T21: Budget
B22: Grönkullaskolan | C22: Lärare 1 | D22: 2021-01-01 | E22: 422940 | G22: =1.325*12*U22 -> 422940 | I22: PEDAGOGISK VERKSAMHET | J22: Grönkullaskolan | L22: Personal | M22: Grundskola | N22: Lärare | R22: Cost | T22: Budget | U22: 26600 | V22: 100
B23: Grönkullaskolan | C23: Lärare 2 | D23: 2021-01-01 | E23: 409584 | G23: =1.325*12*U23 -> 409584 | I23: PEDAGOGISK VERKSAMHET | J23: Grönkullaskolan | L23: Personal | M23: Grundskola | N23: Lärare | R23: Cost | T23: Budget | U23: 25760 | V23: 100
B24: Grönkullaskolan | C24: Lärare 3 | D24: 2021-01-01 | E24: 467460 | G24: 467460 | I24: PEDAGOGISK VERKSAMHET | J24: Grönkullaskolan | L24: Personal | M24: Grundskola | N24: Lärare | R24: Cost | T24: Budget | U24: 29400 | V24: 100
B25: Grönkullaskolan | C25: Lärare 4 | D25: 2021-01-01 | E25: 445200 | G25: 445200 | I25: PEDAGOGISK VERKSAMHET | J25: Grönkullaskolan | L25: Personal | M25: Grundskola | N25: Lärare | R25: Cost | T25: Budget | U25: 28000 | V25: 100
B26: Grönkullaskolan | C26: Lärare 5 | D26: 2021-01-01 | E26: 414036 | G26: 414036 | I26: PEDAGOGISK VERKSAMHET | J26: Grönkullaskolan | L26: Personal | M26: Grundskola | N26: Lärare | R26: Cost | T26: Budget | U26: 26040 | V26: 100
B27: Grönkullaskolan | C27: Lärare 6 | D27: 2021-01-01 | E27: 463008 | G27: 463008 | I27: PEDAGOGISK VERKSAMHET | J27: Grönkullaskolan | L27: Personal | M27: Grundskola | N27: Lärare | R27: Cost | T27: Budget | U27: 29120 | V27: 100
B28: Grönkullaskolan | C28: Lärare 7 | D28: 2021-01-01 | E28: 476364 | G28: 476364 | I28: PEDAGOGISK VERKSAMHET | J28: Grönkullaskolan | L28: Personal | M28: Grundskola | N28: Lärare | R28: Cost | T28: Budget | U28: 29960 | V28: 100
B29: Grönkullaskolan | C29: Lärare 8 | D29: 2021-01-01 | E29: 476364 | G29: 476364 | I29: PEDAGOGISK VERKSAMHET | J29: Grönkullaskolan | L29: Personal | M29: Grundskola | N29: Lärare | R29: Cost | T29: Budget | U29: 29960 | V29: 100
B30: Grönkullaskolan | C30: Lärare 9 | D30: 2021-01-01 | E30: 418488 | G30: 418488 | I30: PEDAGOGISK VERKSAMHET | J30: Grönkullaskolan | L30: Personal | M30: Grundskola | N30: Lärare | R30: Cost | T30: Budget | U30: 26320 | V30: 100
B31: Grönkullaskolan | C31: Lärare 10 | D31: 2021-01-01 | E31: 458556 | G31: 458556 | I31: PEDAGOGISK VERKSAMHET | J31: Grönkullaskolan | L31: Personal | M31: Grundskola | N31: Lärare | R31: Cost | T31: Budget | U31: 28840 | V31: 100
B32: Grönkullaskolan | C32: Lärare 11 | D32: 2021-01-01 | E32: 422940 | G32: 422940 | I32: PEDAGOGISK VERKSAMHET | J32: Grönkullaskolan | L32: Personal | M32: Grundskola | N32: Lärare | R32: Cost | T32: Budget | U32: 26600 | V32: 50
B33: Grönkullaskolan | C33: Lärare 12 | D33: 2021-01-01 | E33: 400680 | G33: 400680 | I33: PEDAGOGISK VERKSAMHET | J33: Grönkullaskolan | L33: Personal | M33: Grundskola | N33: Lärare | R33: Cost | T33: Budget | U33: 25200 | V33: 50
B34: Grönkullaskolan | C34: Lärare 13 | D34: 2021-01-01 | E34: 436296 | G34: 436296 | I34: PEDAGOGISK VERKSAMHET | J34: Grönkullaskolan | L34: Personal | M34: Grundskola | N34: Lärare | R34: Cost | T34: Budget | U34: 27440 | V34: 100
B35: Grönkullaskolan | C35: Lärare 14 | D35: 2021-01-01 | E35: 422940 | G35: 422940 | I35: PEDAGOGISK VERKSAMHET | J35: Grönkullaskolan | L35: Personal | M35: Grundskola | N35: Lärare | R35: Cost | T35: Budget | U35: 26600 | V35: 100
B36: Grönkullaskolan | C36: Lärare 15 | D36: 2021-01-01 | E36: 422940 | G36: 422940 | I36: PEDAGOGISK VERKSAMHET | J36: Grönkullaskolan | L36: Personal | M36: Grundskola | N36: Lärare | R36: Cost | T36: Budget | U36: 26600 | V36: 100
B37: Grönkullaskolan | C37: Lärare 16 | D37: 2021-01-01 | E37: 436296 | G37: 436296 | I37: PEDAGOGISK VERKSAMHET | J37: Grönkullaskolan | L37: Personal | M37: Grundskola | N37: Lärare | R37: Cost | T37: Budget | U37: 27440 | V37: 100
B38: Grönkullaskolan | C38: Lärare 17 | D38: 2021-01-01 | E38: 414036 | G38: 414036 | I38: PEDAGOGISK VERKSAMHET | J38: Grönkullaskolan | L38: Personal | M38: Grundskola | N38: Lärare | R38: Cost | T38: Budget | U38: 26040 | V38: 100
B39: Grönkullaskolan | C39: Lärare 18 | D39: 2021-01-01 | E39: 431844 | G39: 431844 | I39: PEDAGOGISK VERKSAMHET | J39: Grönkullaskolan | L39: Personal | M39: Grundskola | N39: Lärare | R39: Cost | T39: Budget | U39: 27160 | V39: 100
B40: Grönkullaskolan | C40: Lärare 19 | D40: 2021-01-01 | E40: 400680 | G40: 400680 | I40: PEDAGOGISK VERKSAMHET | J40: Grönkullaskolan | L40: Personal | M40: Grundskola | N40: Lärare | R40: Cost | T40: Budget | U40: 25200 | V40: 100
B41: Grönkullaskolan | C41: Lärare 20 | D41: 2021-01-01 | E41: 489720 | G41: 489720 | I41: PEDAGOGISK VERKSAMHET | J41: Grönkullaskolan | L41: Personal | M41: Grundskola | N41: Lärare | R41: Cost | T41: Budget | U41: 30800 | V41: 100
B42: Grönkullaskolan | C42: Rektor | D42: 2021-01-01 | E42: 427392 | G42: 427392 | I42: PEDAGOGISK VERKSAMHET | J42: Grönkullaskolan | L42: Personal | M42: Grundskola | N42: Administrativ personal | R42: Cost | T42: Budget | U42: 26880 | V42: 100
B43: Grönkullaskolan | C43: Resurslärare | D43: 2021-01-01 | E43: 473184 | G43: 473184 | I43: PEDAGOGISK VERKSAMHET | J43: Grönkullaskolan | L43: Personal | M43: Grundskola | N43: Lärare | R43: Cost | T43: Budget | U43: 29760 | V43: 100
B44: Grönkullaskolan | C44: Material | D44: 2021-01-01 | E44: 636000 | G44: 0 | I44: PEDAGOGISK VERKSAMHET | J44: Grönkullaskolan | L44: Material | M44: Grundskola | N44: Skolmaterial | R44: Cost | T44: Budget
B45: Grönkullaskolan | C45: Lokalhyra | D45: 2021-01-01 | E45: 720000 | G45: 0 | I45: PEDAGOGISK VERKSAMHET | J45: Grönkullaskolan | L45: Fastigheter och Inventarier | M45: Grundskola | N45: Lokalhyra | R45: Cost | T45: Budget
B46: Grönkullaskolan | C46: Antal elever | D46: 2021-01-01 | E46: 0 | G46: 0 | I46: PEDAGOGISK VERKSAMHET | J46: Grönkullaskolan | L46: Antal elever | M46: Grundskola | N46: Antal elever | R46: Fact | T46: Budget | W46: 205
B47: Hjortbergaskolan | C47: Lärare 1 | D47: 2021-01-01 | E47: 449652 | G47: =1.325*12*U47 -> 449652 | I47: PEDAGOGISK VERKSAMHET | J47: Hjortbergaskolan | L47: Personal | M47: Grundskola | N47: Lärare | R47: Cost | T47: Budget | U47: 28280 | V47: 100
B48: Hjortbergaskolan | C48: Lärare 2 | D48: 2021-01-01 | E48: 422940 | G48: 422940 | I48: PEDAGOGISK VERKSAMHET | J48: Hjortbergaskolan | L48: Personal | M48: Grundskola | N48: Lärare | R48: Cost | T48: Budget | U48: 26600 | V48: 100
B49: Hjortbergaskolan | C49: Lärare 3 | D49: 2021-01-01 | E49: 471912 | G49: 471912 | I49: PEDAGOGISK VERKSAMHET | J49: Hjortbergaskolan | L49: Personal | M49: Grundskola | N49: Lärare | R49: Cost | T49: Budget | U49: 29680 | V49: 100
B50: Hjortbergaskolan | C50: Lärare 4 | D50: 2021-01-01 | E50: 458556 | G50: 458556 | I50: PEDAGOGISK VERKSAMHET | J50: Hjortbergaskolan | L50: Personal | M50: Grundskola | N50: Lärare | R50: Cost | T50: Budget | U50: 28840 | V50: 100
B51: Hjortbergaskolan | C51: Lärare 5 | D51: 2021-01-01 | E51: 422940 | G51: 422940 | I51: PEDAGOGISK VERKSAMHET | J51: Hjortbergaskolan | L51: Personal | M51: Grundskola | N51: Lärare | R51: Cost | T51: Budget | U51: 26600 | V51: 100
B52: Hjortbergaskolan | C52: Lärare 6 | D52: 2021-01-01 | E52: 422940 | G52: 422940 | I52: PEDAGOGISK VERKSAMHET | J52: Hjortbergaskolan | L52: Personal | M52: Grundskola | N52: Lärare | R52: Cost | T52: Budget | U52: 26600 | V52: 100
B53: Hjortbergaskolan | C53: Lärare 7 | D53: 2021-01-01 | E53: 427392 | G53: 427392 | I53: PEDAGOGISK VERKSAMHET | J53: Hjortbergaskolan | L53: Personal | M53: Grundskola | N53: Lärare | R53: Cost | T53: Budget | U53: 26880 | V53: 100
B54: Hjortbergaskolan | C54: Lärare 8 | D54: 2021-01-01 | E54: 427392 | G54: 427392 | I54: PEDAGOGISK VERKSAMHET | J54: Hjortbergaskolan | L54: Personal | M54: Grundskola | N54: Lärare | R54: Cost | T54: Budget | U54: 26880 | V54: 100
B55: Hjortbergaskolan | C55: Lärare 9 | D55: 2021-01-01 | E55: 454104 | G55: 454104 | I55: PEDAGOGISK VERKSAMHET | J55: Hjortbergaskolan | L55: Personal | M55: Grundskola | N55: Lärare | R55: Cost | T55: Budget | U55: 28560 | V55: 100
B56: Hjortbergaskolan | C56: Lärare 10 | D56: 2021-01-01 | E56: 409584 | G56: 409584 | I56: PEDAGOGISK VERKSAMHET | J56: Hjortbergaskolan | L56: Personal | M56: Grundskola | N56: Lärare | R56: Cost | T56: Budget | U56: 25760 | V56: 25
B57: Hjortbergaskolan | C57: Lärare 11 | D57: 2021-01-01 | E57: 440748 | G57: 440748 | I57: PEDAGOGISK VERKSAMHET | J57: Hjortbergaskolan | L57: Personal | M57: Grundskola | N57: Lärare | R57: Cost | T57: Budget | U57: 27720 | V57: 75
B58: Hjortbergaskolan | C58: Lärare 12 | D58: 2021-01-01 | E58: 422940 | G58: 422940 | I58: PEDAGOGISK VERKSAMHET | J58: Hjortbergaskolan | L58: Personal | M58: Grundskola | N58: Lärare | R58: Cost | T58: Budget | U58: 26600 | V58: 100
B59: Hjortbergaskolan | C59: Lärare 13 | D59: 2021-01-01 | E59: 463008 | G59: 463008 | I59: PEDAGOGISK VERKSAMHET | J59: Hjortbergaskolan | L59: Personal | M59: Grundskola | N59: Lärare | R59: Cost | T59: Budget | U59: 29120 | V59: 100
B60: Hjortbergaskolan | C60: Lärare 14 | D60: 2021-01-01 | E60: 436296 | G60: 436296 | I60: PEDAGOGISK VERKSAMHET | J60: Hjortbergaskolan | L60: Personal | M60: Grundskola | N60: Lärare | R60: Cost | T60: Budget | U60: 27440 | V60: 100
B61: Hjortbergaskolan | C61: Lärare 15 | D61: 2021-01-01 | E61: 476364 | G61: 476364 | I61: PEDAGOGISK VERKSAMHET | J61: Hjortbergaskolan | L61: Personal | M61: Grundskola | N61: Lärare | R61: Cost | T61: Budget | U61: 29960 | V61: 100
B62: Hjortbergaskolan | C62: Lärare 16 | D62: 2021-01-01 | E62: 445200 | G62: 445200 | I62: PEDAGOGISK VERKSAMHET | J62: Hjortbergaskolan | L62: Personal | M62: Grundskola | N62: Lärare | R62: Cost | T62: Budget | U62: 28000 | V62: 100
B63: Hjortbergaskolan | C63: Lärare 17 | D63: 2021-01-01 | E63: 489720 | G63: 489720 | I63: PEDAGOGISK VERKSAMHET | J63: Hjortbergaskolan | L63: Personal | M63: Grundskola | N63: Lärare | R63: Cost | T63: Budget | U63: 30800 | V63: 100
B64: Hjortbergaskolan | C64: Lärare 18 | D64: 2021-01-01 | E64: 480816 | G64: 480816 | I64: PEDAGOGISK VERKSAMHET | J64: Hjortbergaskolan | L64: Personal | M64: Grundskola | N64: Lärare | R64: Cost | T64: Budget | U64: 30240 | V64: 100
B65: Hjortbergaskolan | C65: Lärare 19 | D65: 2021-01-01 | E65: 440748 | G65: 440748 | I65: PEDAGOGISK VERKSAMHET | J65: Hjortbergaskolan | L65: Personal | M65: Grundskola | N65: Lärare | R65: Cost | T65: Budget | U65: 27720 | V65: 50
B66: Hjortbergaskolan | C66: Lärare 20 | D66: 2021-01-01 | E66: 400680 | G66: 400680 | I66: PEDAGOGISK VERKSAMHET | J66: Hjortbergaskolan | L66: Personal | M66: Grundskola | N66: Lärare | R66: Cost | T66: Budget | U66: 25200 | V66: 100
B67: Hjortbergaskolan | C67: Rektor | D67: 2021-01-01 | E67: 418488 | G67: 418488 | I67: PEDAGOGISK VERKSAMHET | J67: Hjortbergaskolan | L67: Personal | M67: Grundskola | N67: Administrativ personal | R67: Cost | T67: Budget | U67: 26320 | V67: 100
B68: Hjortbergaskolan | C68: Resurslärare | D68: 2021-01-01 | E68: 559680 | G68: 559680 | I68: PEDAGOGISK VERKSAMHET | J68: Hjortbergaskolan | N68: Lärare | T68: Budget | U68: 35200 | V68: 100
B69: Hjortbergaskolan | C69: Material | D69: 2021-01-01 | E69: 534000 | G69: 534000 | I69: PEDAGOGISK VERKSAMHET | J69: Hjortbergaskolan | L69: Material | M69: Grundskola | N69: Skolmaterial | R69: Cost | T69: Budget
B70: Hjortbergaskolan | C70: Lokalhyra | D70: 2021-01-01 | E70: 1170000 | G70: 1170000 | I70: PEDAGOGISK VERKSAMHET | J70: Hjortbergaskolan | L70: Fastigheter och Inventarier | M70: Grundskola | N70: Lokalhyra | R70: Cost | T70: Budget
B71: Hjortbergaskolan | C71: Antal elever | D71: 2021-01-01 | E71: 0 | G71: 0 | I71: PEDAGOGISK VERKSAMHET | J71: Hjortbergaskolan | L71: Antal elever | M71: Grundskola | N71: Antal elever | R71: Fact | T71: Budget

Sheet IMPORT
H2: Importerat | I2: Scenario | J2: Importerat
B3: Scenarionamn | C3: Preliminär Budget 231103 | H3: Finland_Cost.xlsx.xlsx | I3: Preliminär Budget
H4: Finland_Sales.xlsx.xlsx | I4: Preliminär Budget
B5: Mapp att importera | C5: C:\Users\lukas\OneDrive - XLD Solutions\Exceldepartment\Projects\ProjectFolders\XLD_ModelTemplates\BudgetTemplate_Karolinska\Export231103 | H5: Sweden_Cost.xlsx.xlsx | I5: Preliminär Budget
H6: Sweden_Sales.xlsx.xlsx | I6: Preliminär Budget
B7: Radera | C7: Data från samma filnamn och scenario | H7: Finland_Cost.xlsx.xlsx | I7: Slutgiltig Budget
H8: Finland_Sales.xlsx.xlsx | I8: Slutgiltig Budget
H9: Sweden_Cost.xlsx.xlsx | I9: Slutgiltig Budget
H10: Sweden_Sales.xlsx.xlsx | I10: Slutgiltig Budget
H11: Finland_Cost.xlsx.xlsx | I11: Preliminär Budget
H12: Finland_Sales.xlsx.xlsx | I12: Preliminär Budget
H13: Sweden_Cost.xlsx.xlsx | I13: Preliminär Budget
H14: Sweden_Sales.xlsx.xlsx | I14: Preliminär Budget
H15: Fysisk planering.xlsx | I15: Preliminär Budget 231102
H16: Miljö och Hälsa.xlsx | I16: Preliminär Budget 231102
H17: Näringsliv etc.xlsx | I17: Preliminär Budget 231102
H18: PolitisktVerksamhet.xlsx | I18: Preliminär Budget 231102
H19: Fysisk planering.xlsx | I19: Preliminär Budget 231102
H20: Miljö och Hälsa.xlsx | I20: Preliminär Budget 231102
H21: Näringsliv etc.xlsx | I21: Preliminär Budget 231102
H22: PolitisktVerksamhet.xlsx | I22: Preliminär Budget 231102
H23: Fysisk planering.xlsx | I23: Preliminär Budget 231102_2
H24: Miljö och Hälsa.xlsx | I24: Preliminär Budget 231102_2
H25: Näringsliv etc.xlsx | I25: Preliminär Budget 231102_2
H26: PolitisktVerksamhet.xlsx | I26: Preliminär Budget 231102_2
H27: Fysisk planering.xlsx | I27: Preliminär Budget 231102_3
H28: Miljö och Hälsa.xlsx | I28: Preliminär Budget 231102_3
H29: Näringsliv etc.xlsx | I29: Preliminär Budget 231102_3
H30: PolitisktVerksamhet.xlsx | I30: Preliminär Budget 231102_3
H31: Fysisk planering.xlsx | I31: Preliminär Budget 231102_4
H32: Miljö och Hälsa.xlsx | I32: Preliminär Budget 231102_4
H33: Näringsliv etc.xlsx | I33: Preliminär Budget 231102_4
H34: PolitisktVerksamhet.xlsx | I34: Preliminär Budget 231102_4
H35: Fysisk planering.xlsx | I35: Preliminär Budget 231102_5
H36: Miljö och Hälsa.xlsx | I36: Preliminär Budget 231102_5
H37: Näringsliv etc.xlsx | I37: Preliminär Budget 231102_5
H38: PolitisktVerksamhet.xlsx | I38: Preliminär Budget 231102_5
H39: AFFÄRSVERKSAMHET.xlsx | I39: Preliminär Budget 231102
H40: Fysisk planering.xlsx | I40: Preliminär Budget 231102
H41: Grönkullaskolan.xlsx | I41: Preliminär Budget 231102
H42: Hjortbergaskolan.xlsx | I42: Preliminär Budget 231102
H43: KULTUR OCH FRITID.xlsx | I43: Preliminär Budget 231102
H44: Miljö och Hälsa.xlsx | I44: Preliminär Budget 231102
H45: Näringsliv etc.xlsx | I45: Preliminär Budget 231102
H46: PEDAGOGISK VERKSAMHET.xlsx | I46: Preliminär Budget 231102
H47: PolitisktVerksamhet.xlsx | I47: Preliminär Budget 231102
H48: Prästängskolan.xlsx | I48: Preliminär Budget 231102
H49: SÄRSKILT RIKTADE INSATSER.xlsx | I49: Preliminär Budget 231102
H50: Vislandskolan.xlsx | I50: Preliminär Budget 231102
H51: VÅRD OCH OMSORG.xlsx | I51: Preliminär Budget 231102
H52: Grönkullaskolan.xlsx | I52: Preliminär Budget 231102
H53: Hjortbergaskolan.xlsx | I53: Preliminär Budget 231102
H54: KULTUR OCH FRITID.xlsx | I54: Preliminär Budget 231102
H55: Miljö och Hälsa.xlsx | I55: Preliminär Budget 231102
H56: Grönkullaskolan.xlsx | I56: Preliminär Budget 231103
H57: Hjortbergaskolan.xlsx | I57: Preliminär Budget 231103
H58: KULTUR OCH FRITID.xlsx | I58: Preliminär Budget 231103
H59: Miljö och Hälsa.xlsx | I59: Preliminär Budget 231103

Sheet Instruction
B3: Instruktion
B5: Scenarionamn: | C5: Välj vilken benämning ni vill ha på filerna som importeras.
B7: Mapp att importera | C7: Klicka på knappen och välj i vilken mapp som filerna som skall importeras ligger i.
B9: Radera val: | C9: Allt
C10: Raderar allt som finns i DB när man importerar
C12: Allt med samma scenario
C13: Raderar allt som finns i DB med samma SCENARIONAMN
C15: Data från samma filnamn och scenario
C16: Raderar allt som finns i DB med samma SCENARIONAMN och FILNAMN

Sheet ResultatRäkning
D7: Scenario | E7: Preliminär Budget 231103
B8: =IF(OR(E7="(All)",E7="(Multiple Items)"),"Välj endast ett scenario i taget","") -> 
D9: Sum of Budget | E9: Kategori_1
D10: Nämnd _1 | E10: Fastigheter och Inventarier | F10: Material | G10: Personal | H10: Tjänster
D11: PEDAGOGISK VERKSAMHET | E11: 2900000 | F11: 7550000 | G11: 18467360.28
D12: KULTUR OCH FRITID | F12: 5550000 | G12: 16638000 | H12: 3048000
D13: INFRASTRUKTUR, SKYDD mm | F13: 1000000 | G13: 10344000 | H13: 835000
D14: Grand Total | E14: 2900000 | F14: 14100000 | G14: 45449360.28 | H14: 3883000

Sheet Compare Budget
D41: Nämnd _1 | E41: Kategori_1 | F41: Titel | G41: Scenario | H41: Kommentar | I41: Differens
D42: INFRASTRUKTUR, SKYDD mm | I42: 0
D44: KULTUR OCH FRITID | I44: 296000
D46: PEDAGOGISK VERKSAMHET | E46: Fastigheter och Inventarier | F46: Lokalhyra | G46: Initiala Underlag | I46: -1170000
G48: Preliminär Budget 231103 | H48: Hyreshöjning | I48: 2000000
H49: Ytterligare hyresökning | I49: 900000
E51: Material | I51: 7016000
E53: Personal | I53: -446007.72
D55: Grand Total | I55: 8595992.28

Sheet Kommentar
D7: Scenario | E7: Preliminär Budget 231103
B8: =IF(E7="(All)","Välj endast ett scenario i taget","") -> 
D9: Kommentar | E9: Nämnd _1 | F9: Titel | G9: FileName | H9: Sum of Budget
D10: Löneökning | H10: 18467360.28
D11: Satsning inför OS | E11: KULTUR OCH FRITID | F11: Idrotts- och fritidsanläggningar | G11: KULTUR OCH FRITID.xlsx | H11: 13000000
D12: Dyrare material | E12: PEDAGOGISK VERKSAMHET | F12: Material | G12: Hjortbergaskolan.xlsx | H12: 7000000
D13: Nedskärning genomförd | E13: KULTUR OCH FRITID | F13: Allmän kulturverksamhet, övrigt | G13: KULTUR OCH FRITID.xlsx | H13: 5000000
D14: Hyreshöjning | E14: PEDAGOGISK VERKSAMHET | F14: Lokalhyra | G14: Hjortbergaskolan.xlsx | H14: 2000000
D15: Ytterligare hyresökning | E15: PEDAGOGISK VERKSAMHET | F15: Lokalhyra | G15: Grönkullaskolan.xlsx | H15: 900000
D16: Ny fritidsgård | E16: KULTUR OCH FRITID | F16: Fritidsgårdar | G16: KULTUR OCH FRITID.xlsx | H16: 550000
D17: Vakant | E17: PEDAGOGISK VERKSAMHET | F17: Lärare 17 | G17: Hjortbergaskolan.xlsx
F18: Lärare 19 | G18: Grönkullaskolan.xlsx

Sheet DesignTemplate (hidden)
C2: Folder to Import | D2: C:\Users\lukas\OneDrive\Dokument\Projects\Active
C4: Complexity-level | D4: 1_SuperSimple
B10: _Name | C10: _Status | D10: _Responsible | E10: _Action | F10: Calculations
B11: Proposal | C11: Warning/Bad | D11: ColorVariation1 | E11: Mandatory Action | F11: 999
B12: ActualsDB | C12: Good | D12: ColorVariation5 | F12: =F11+1 -> 1000
B13: CreateDBFile | C13: Exclude from calcualtion | D13: ColorVariation3 | F13: =F12+1 -> 1001
B14: ImportFunction | C14: OK (not that good) | D14: ColorVariation4 | F14: =F13+1 -> 1002
B15: InputBudgets | D15: ColorVariation4 | F15: =F14+1 -> 1003
B16: PushStatusTo | D16: ColorVariation2 | F16: =F15+1 -> 1004

Sheet DB
AV3: Default | AW3: 2020-01-01
Q9: =IFERROR(ABS(P9),"") -> 0 | R9: =IFERROR(IF(H9="Costs",ABS(P9)*-1,ABS(P9)),"") -> 0 | S9: =IFERROR(IF(F9=_xlfn.MAXIFS($F$9:$F$492,$B$9:$B$492,B9),Q9,Q9*-1),"") -> 0 | AW9: =IFERROR(IF(YEAR(AG9)>2000,AG9,$AW$3),$AW$3) -> 43831
A10: FileName | B10: SheetName | C10: Scenario | D10: Organisation | E10: Enhet | F10: ImportTime | G10: Placeholder | H10: IncomeOrCost | I10: SubCategory | J10: Title | K10: Date | L10: Comment | M10: KST | N10: Responsible | O10: ManagersComment | P10: Budget | Q10: BudgetPositive | R10: BudgetCostNegative | S10: BudgetChange | T10: Projekt | U10: Lönegrupp | V10: Konto | W10: Konto (Text) | X10: Utfall_Föregående År | Y10: Årsbudget_Föregående År | Z10: Område | AA10: Kategori | AB10: Personaltyp | AC10: Månadslön | AD10: Årlig tjänstgöringsgrad | AE10: Fakta | AF10: Titel | AG10: Datum | AH10: Budget Tidigare År | AI10: Nämnd _1 | AJ10: VerksamhetensNamn_6 | AK10: Kategori_1 | AL10: Kategori_2 | AM10: Kategori_3 | AN10: Kategori_4 | AO10: Anvsvarig | AP10: _ | AQ10: BladNamn | AR10: OrganisationNivå1 | AS10: OrganisationNivå2 | AT10: OrganisationNivå3 | AU10: OrganisationNivå4 | AV10: OrganisationNivå5 | AW10: JusteratDatum | AX10: Kommentar | AY10: KommentarFinns
A11: Miljö och Hälsa | C11: Initiala Underlag | F11: 2023-11-03T10:59:39 | H11: Cost | P11: 2695000 | Q11: 2695000 | R11: 2695000 | S11: -2695000 | AF11: Miljö- och hälsoskydd, myndighetsutövning | AG11: 44197 | AH11: 2695000 | AI11: INFRASTRUKTUR, SKYDD mm | AK11: Personal | AL11: Miljö- och hälsoskydd, myndighetsutövning | AQ11: Budget | AW11: 44197 | AY11: =IF(LEN(AX11)>0,"Finns","Saknas") -> Saknas
A12: Miljö och Hälsa | C12: Initiala Underlag | F12: 2023-11-03T10:59:39 | H12: Cost | P12: 0 | Q12: 0 | R12: 0 | S12: 0 | AF12: Miljö- hälsa och hållbar utveckling | AG12: 44197 | AH12: 0 | AI12: INFRASTRUKTUR, SKYDD mm | AK12: Material | AL12: Miljö- hälsa och hållbar utveckling | AQ12: Budget | AW12: 44197 | AY12: =IF(LEN(AX12)>0,"Finns","Saknas") -> Saknas
A13: Miljö och Hälsa | C13: Initiala Underlag | F13: 2023-11-03T10:59:39 | H13: Cost | P13: 140000 | Q13: 140000 | R13: 140000 | S13: -140000 | AF13: Alkoholtillstånd m.m. | AG13: 44197 | AH13: 140000 | AI13: INFRASTRUKTUR, SKYDD mm | AK13: Tjänster | AL13: Alkoholtillstånd m.m. | AQ13: Budget | AW13: 44197 | AY13: Saknas
A14: Miljö och Hälsa | C14: Initiala Underlag | F14: 2023-11-03T10:59:39 | H14: Cost | P14: 9344000 | Q14: 9344000 | R14: 9344000 | S14: -9344000 | AF14: Räddningstjänst | AG14: 44197 | AH14: 9344000 | AI14: INFRASTRUKTUR, SKYDD mm | AK14: Personal | AL14: Räddningstjänst | AQ14: Budget | AW14: 44197 | AY14: Saknas
A15: KULTUR OCH FRITID | C15: Initiala Underlag | F15: 2023-11-03T10:59:39 | H15: Cost | P15: 0 | Q15: 0 | R15: 0 | S15: 0 | AF15: Stöd till studieorganisationer | AG15: 44197 | AH15: 0 | AI15: KULTUR OCH FRITID | AK15: Personal | AL15: Stöd till studieorganisationer | AQ15: Budget | AW15: 44197 | AY15: Saknas
A16: KULTUR OCH FRITID | C16: Initiala Underlag | F16: 2023-11-03T10:59:39 | H16: Cost | P16: 5479000 | Q16: 5479000 | R16: 5479000 | S16: -5479000 | AF16: Allmän kulturverksamhet, övrigt | AG16: 44197 | AH16: 5479000 | AI16: KULTUR OCH FRITID | AK16: Material | AL16: Allmän kulturverksamhet, övrigt | AQ16: Budget | AW16: 44197 | AY16: Saknas
A17: KULTUR OCH FRITID | C17: Initiala Underlag | F17: 2023-11-03T10:59:39 | H17: Cost | P17: 3048000 | Q17: 3048000 | R17: 3048000 | S17: -3048000 | AF17: Bibliotek | AG17: 44197 | AH17: 3048000 | AI17: KULTUR OCH FRITID | AK17: Tjänster | AL17: Bibliotek | AQ17: Budget | AW17: 44197 | AY17: Saknas
A18: KULTUR OCH FRITID | C18: Initiala Underlag | F18: 2023-11-03T10:59:39 | H18: Cost | P18: 3638000 | Q18: 3638000 | R18: 3638000 | S18: -3638000 | AF18: Musikskola / kulturskola | AG18: 44197 | AH18: 3638000 | AI18: KULTUR OCH FRITID | AK18: Personal | AL18: Musikskola / kulturskola | AQ18: Budget | AW18: 44197 | AY18: Saknas
A19: KULTUR OCH FRITID | C19: Initiala Underlag | F19: 2023-11-03T10:59:39 | H19: Cost | P19: 0 | Q19: 0 | R19: 0 | S19: 0 | AF19: Allmän fritidsverksamhet | AG19: 44197 | AH19: 0 | AI19: KULTUR OCH FRITID | AK19: Material | AL19: Allmän fritidsverksamhet | AQ19: Budget | AW19: 44197 | AY19: Saknas
A20: KULTUR OCH FRITID | C20: Initiala Underlag | F20: 2023-11-03T10:59:39 | H20: Cost | P20: 12775000 | Q20: 12775000 | R20: 12775000 | S20: -12775000 | AF20: Idrotts- och fritidsanläggningar | AG20: 44197 | AH20: 12775000 | AI20: KULTUR OCH FRITID | AK20: Personal | AL20: Idrotts- och fritidsanläggningar | AQ20: Budget | AW20: 44197 | AY20: Saknas
A21: KULTUR OCH FRITID | C21: Initiala Underlag | F21: 2023-11-03T10:59:39 | H21: Cost | P21: 0 | Q21: 0 | R21: 0 | S21: 0 | AF21: Fritidsgårdar | AG21: 44197 | AH21: 0 | AI21: KULTUR OCH FRITID | AK21: Material | AL21: Fritidsgårdar | AQ21: Budget | AW21: 44197 | AY21: Saknas
A22: Grönkullaskolan | C22: Initiala Underlag | F22: 2023-11-03T10:59:39 | H22: Cost | P22: 422940 | Q22: 422940 | R22: 422940 | S22: -422940 | AC22: 26600 | AD22: 100 | AF22: Lärare 1 | AG22: 44197 | AH22: 422940 | AI22: PEDAGOGISK VERKSAMHET | AJ22: Grönkullaskolan | AK22: Personal | AL22: Grundskola | AM22: Lärare | AQ22: Budget | AW22: 44197 | AY22: Saknas
A23: Grönkullaskolan | C23: Initiala Underlag | F23: 2023-11-03T10:59:39 | H23: Cost | P23: 409584 | Q23: 409584 | R23: 409584 | S23: -409584 | AC23: 25760 | AD23: 100 | AF23: Lärare 2 | AG23: 44197 | AH23: 409584 | AI23: PEDAGOGISK VERKSAMHET | AJ23: Grönkullaskolan | AK23: Personal | AL23: Grundskola | AM23: Lärare | AQ23: Budget | AW23: 44197 | AY23: Saknas
A24: Grönkullaskolan | C24: Initiala Underlag | F24: 2023-11-03T10:59:39 | H24: Cost | P24: 467460 | Q24: 467460 | R24: 467460 | S24: -467460 | AC24: 29400 | AD24: 100 | AF24: Lärare 3 | AG24: 44197 | AH24: 467460 | AI24: PEDAGOGISK VERKSAMHET | AJ24: Grönkullaskolan | AK24: Personal | AL24: Grundskola | AM24: Lärare | AQ24: Budget | AW24: 44197 | AY24: Saknas
A25: Grönkullaskolan | C25: Initiala Underlag | F25: 2023-11-03T10:59:39 | H25: Cost | P25: 445200 | Q25: 445200 | R25: 445200 | S25: -445200 | AC25: 28000 | AD25: 100 | AF25: Lärare 4 | AG25: 44197 | AH25: 445200 | AI25: PEDAGOGISK VERKSAMHET | AJ25: Grönkullaskolan | AK25: Personal | AL25: Grundskola | AM25: Lärare | AQ25: Budget | AW25: 44197 | AY25: Saknas
A26: Grönkullaskolan | C26: Initiala Underlag | F26: 2023-11-03T10:59:39 | H26: Cost | P26: 414036 | Q26: 414036 | R26: 414036 | S26: -414036 | AC26: 26040 | AD26: 100 | AF26: Lärare 5 | AG26: 44197 | AH26: 414036 | AI26: PEDAGOGISK VERKSAMHET | AJ26: Grönkullaskolan | AK26: Personal | AL26: Grundskola | AM26: Lärare | AQ26: Budget | AW26: 44197 | AY26: Saknas
A27: Grönkullaskolan | C27: Initiala Underlag | F27: 2023-11-03T10:59:39 | H27: Cost | P27: 463008 | Q27: 463008 | R27: 463008 | S27: -463008 | AC27: 29120 | AD27: 100 | AF27: Lärare 6 | AG27: 44197 | AH27: 463008 | AI27: PEDAGOGISK VERKSAMHET | AJ27: Grönkullaskolan | AK27: Personal | AL27: Grundskola | AM27: Lärare | AQ27: Budget | AW27: 44197 | AY27: Saknas
A28: Grönkullaskolan | C28: Initiala Underlag | F28: 2023-11-03T10:59:39 | H28: Cost | P28: 476364 | Q28: 476364 | R28: 476364 | S28: -476364 | AC28: 29960 | AD28: 100 | AF28: Lärare 7 | AG28: 44197 | AH28: 476364 | AI28: PEDAGOGISK VERKSAMHET | AJ28: Grönkullaskolan | AK28: Personal | AL28: Grundskola | AM28: Lärare | AQ28: Budget | AW28: 44197 | AY28: Saknas
A29: Grönkullaskolan | C29: Initiala Underlag | F29: 2023-11-03T10:59:39 | H29: Cost | P29: 476364 | Q29: 476364 | R29: 476364 | S29: -476364 | AC29: 29960 | AD29: 100 | AF29: Lärare 8 | AG29: 44197 | AH29: 476364 | AI29: PEDAGOGISK VERKSAMHET | AJ29: Grönkullaskolan | AK29: Personal | AL29: Grundskola | AM29: Lärare | AQ29: Budget | AW29: 44197 | AY29: Saknas
A30: Grönkullaskolan | C30: Initiala Underlag | F30: 2023-11-03T10:59:39 | H30: Cost | P30: 418488 | Q30: 418488 | R30: 418488 | S30: -418488 | AC30: 26320 | AD30: 100 | AF30: Lärare 9 | AG30: 44197 | AH30: 418488 | AI30: PEDAGOGISK VERKSAMHET | AJ30: Grönkullaskolan | AK30: Personal | AL30: Grundskola | AM30: Lärare | AQ30: Budget | AW30: 44197 | AY30: Saknas
A31: Grönkullaskolan | C31: Initiala Underlag | F31: 2023-11-03T10:59:39 | H31: Cost | P31: 458556 | Q31: 458556 | R31: 458556 | S31: -458556 | AC31: 28840 | AD31: 100 | AF31: Lärare 10 | AG31: 44197 | AH31: 458556 | AI31: PEDAGOGISK VERKSAMHET | AJ31: Grönkullaskolan | AK31: Personal | AL31: Grundskola | AM31: Lärare | AQ31: Budget | AW31: 44197 | AY31: Saknas
A32: Grönkullaskolan | C32: Initiala Underlag | F32: 2023-11-03T10:59:39 | H32: Cost | P32: 422940 | Q32: 422940 | R32: 422940 | S32: -422940 | AC32: 26600 | AD32: 50 | AF32: Lärare 11 | AG32: 44197 | AH32: 422940 | AI32: PEDAGOGISK VERKSAMHET | AJ32: Grönkullaskolan | AK32: Personal | AL32: Grundskola | AM32: Lärare | AQ32: Budget | AW32: 44197 | AY32: Saknas
A33: Grönkullaskolan | C33: Initiala Underlag | F33: 2023-11-03T10:59:39 | H33: Cost | P33: 400680 | Q33: 400680 | R33: 400680 | S33: -400680 | AC33: 25200 | AD33: 50 | AF33: Lärare 12 | AG33: 44197 | AH33: 400680 | AI33: PEDAGOGISK VERKSAMHET | AJ33: Grönkullaskolan | AK33: Personal | AL33: Grundskola | AM33: Lärare | AQ33: Budget | AW33: 44197 | AY33: Saknas
A34: Grönkullaskolan | C34: Initiala Underlag | F34: 2023-11-03T10:59:39 | H34: Cost | P34: 436296 | Q34: 436296 | R34: 436296 | S34: -436296 | AC34: 27440 | AD34: 100 | AF34: Lärare 13 | AG34: 44197 | AH34: 436296 | AI34: PEDAGOGISK VERKSAMHET | AJ34: Grönkullaskolan | AK34: Personal | AL34: Grundskola | AM34: Lärare | AQ34: Budget | AW34: 44197 | AY34: Saknas
A35: Grönkullaskolan | C35: Initiala Underlag | F35: 2023-11-03T10:59:39 | H35: Cost | P35: 422940 | Q35: 422940 | R35: 422940 | S35: -422940 | AC35: 26600 | AD35: 100 | AF35: Lärare 14 | AG35: 44197 | AH35: 422940 | AI35: PEDAGOGISK VERKSAMHET | AJ35: Grönkullaskolan | AK35: Personal | AL35: Grundskola | AM35: Lärare | AQ35: Budget | AW35: 44197 | AY35: Saknas
A36: Grönkullaskolan | C36: Initiala Underlag | F36: 2023-11-03T10:59:39 | H36: Cost | P36: 422940 | Q36: 422940 | R36: 422940 | S36: -422940 | AC36: 26600 | AD36: 100 | AF36: Lärare 15 | AG36: 44197 | AH36: 422940 | AI36: PEDAGOGISK VERKSAMHET | AJ36: Grönkullaskolan | AK36: Personal | AL36: Grundskola | AM36: Lärare | AQ36: Budget | AW36: 44197 | AY36: Saknas
A37: Grönkullaskolan | C37: Initiala Underlag | F37: 2023-11-03T10:59:39 | H37: Cost | P37: 436296 | Q37: 436296 | R37: 436296 | S37: -436296 | AC37: 27440 | AD37: 100 | AF37: Lärare 16 | AG37: 44197 | AH37: 436296 | AI37: PEDAGOGISK VERKSAMHET | AJ37: Grönkullaskolan | AK37: Personal | AL37: Grundskola | AM37: Lärare | AQ37: Budget | AW37: 44197 | AY37: Saknas
A38: Grönkullaskolan | C38: Initiala Underlag | F38: 2023-11-03T10:59:39 | H38: Cost | P38: 414036 | Q38: 414036 | R38: 414036 | S38: -414036 | AC38: 26040 | AD38: 100 | AF38: Lärare 17 | AG38: 44197 | AH38: 414036 | AI38: PEDAGOGISK VERKSAMHET | AJ38: Grönkullaskolan | AK38: Personal | AL38: Grundskola | AM38: Lärare | AQ38: Budget | AW38: 44197 | AY38: Saknas
A39: Grönkullaskolan | C39: Initiala Underlag | F39: 2023-11-03T10:59:39 | H39: Cost | P39: 431844 | Q39: 431844 | R39: 431844 | S39: -431844 | AC39: 27160 | AD39: 100 | AF39: Lärare 18 | AG39: 44197 | AH39: 431844 | AI39: PEDAGOGISK VERKSAMHET | AJ39: Grönkullaskolan | AK39: Personal | AL39: Grundskola | AM39: Lärare | AQ39: Budget | AW39: 44197 | AY39: Saknas
A40: Grönkullaskolan | C40: Initiala Underlag | F40: 2023-11-03T10:59:39 | H40: Cost | P40: 400680 | Q40: 400680 | R40: 400680 | S40: -400680 | AC40: 25200 | AD40: 100 | AF40: Lärare 19 | AG40: 44197 | AH40: 400680 | AI40: PEDAGOGISK VERKSAMHET | AJ40: Grönkullaskolan | AK40: Personal | AL40: Grundskola | AM40: Lärare | AQ40: Budget | AW40: 44197 | AY40: Saknas
A41: Grönkullaskolan | C41: Initiala Underlag | F41: 2023-11-03T10:59:39 | H41: Cost | P41: 489720 | Q41: 489720 | R41: 489720 | S41: -489720 | AC41: 30800 | AD41: 100 | AF41: Lärare 20 | AG41: 44197 | AH41: 489720 | AI41: PEDAGOGISK VERKSAMHET | AJ41: Grönkullaskolan | AK41: Personal | AL41: Grundskola | AM41: Lärare | AQ41: Budget | AW41: 44197 | AY41: Saknas
A42: Grönkullaskolan | C42: Initiala Underlag | F42: 2023-11-03T10:59:39 | H42: Cost | P42: 427392 | Q42: 427392 | R42: 427392 | S42: -427392 | AC42: 26880 | AD42: 100 | AF42: Rektor | AG42: 44197 | AH42: 427392 | AI42: PEDAGOGISK VERKSAMHET | AJ42: Grönkullaskolan | AK42: Personal | AL42: Grundskola | AM42: Administrativ personal | AQ42: Budget | AW42: 44197 | AY42: Saknas
A43: Grönkullaskolan | C43: Initiala Underlag | F43: 2023-11-03T10:59:39 | H43: Cost | P43: 473184 | Q43: 473184 | R43: 473184 | S43: -473184 | AC43: 29760 | AD43: 100 | AF43: Resurslärare | AG43: 44197 | AH43: 473184 | AI43: PEDAGOGISK VERKSAMHET | AJ43: Grönkullaskolan | AK43: Personal | AL43: Grundskola | AM43: Lärare | AQ43: Budget | AW43: 44197 | AY43: Saknas
A44: Grönkullaskolan | C44: Initiala Underlag | F44: 2023-11-03T10:59:39 | H44: Cost | P44: 0 | Q44: 0 | R44: 0 | S44: 0 | AF44: Material | AG44: 44197 | AH44: 636000 | AI44: PEDAGOGISK VERKSAMHET | AJ44: Grönkullaskolan | AK44: Material | AL44: Grundskola | AM44: Skolmaterial | AQ44: Budget | AW44: 44197 | AY44: Saknas
A45: Grönkullaskolan | C45: Initiala Underlag | F45: 2023-11-03T10:59:39 | H45: Cost | P45: 0 | Q45: 0 | R45: 0 | S45: 0 | AF45: Lokalhyra | AG45: 44197 | AH45: 720000 | AI45: PEDAGOGISK VERKSAMHET | AJ45: Grönkullaskolan | AK45: Fastigheter och Inventarier | AL45: Grundskola | AM45: Lokalhyra | AQ45: Budget | AW45: 44197 | AY45: Saknas
A46: Grönkullaskolan | C46: Initiala Underlag | F46: 2023-11-03T10:59:39 | H46: Fact | P46: 0 | Q46: 0 | R46: 0 | S46: 0 | AE46: 205 | AF46: Antal elever | AG46: 44197 | AH46: 0 | AI46: PEDAGOGISK VERKSAMHET | AJ46: Grönkullaskolan | AK46: Antal elever | AL46: Grundskola | AM46: Antal elever | AQ46: Budget | AW46: 44197 | AY46: Saknas
A47: Hjortbergaskolan | C47: Initiala Underlag | F47: 2023-11-03T10:59:39 | H47: Cost | P47: 449652 | Q47: 449652 | R47: 449652 | S47: -449652 | AC47: 28280 | AD47: 100 | AF47: Lärare 1 | AG47: 44197 | AH47: 449652 | AI47: PEDAGOGISK VERKSAMHET | AJ47: Hjortbergaskolan | AK47: Personal | AL47: Grundskola | AM47: Lärare | AQ47: Budget | AW47: 44197 | AY47: Saknas
A48: Hjortbergaskolan | C48: Initiala Underlag | F48: 2023-11-03T10:59:39 | H48: Cost | P48: 422940 | Q48: 422940 | R48: 422940 | S48: -422940 | AC48: 26600 | AD48: 100 | AF48: Lärare 2 | AG48: 44197 | AH48: 422940 | AI48: PEDAGOGISK VERKSAMHET | AJ48: Hjortbergaskolan | AK48: Personal | AL48: Grundskola | AM48: Lärare | AQ48: Budget | AW48: 44197 | AY48: Saknas
A49: Hjortbergaskolan | C49: Initiala Underlag | F49: 2023-11-03T10:59:39 | H49: Cost | P49: 471912 | Q49: 471912 | R49: 471912 | S49: -471912 | AC49: 29680 | AD49: 100 | AF49: Lärare 3 | AG49: 44197 | AH49: 471912 | AI49: PEDAGOGISK VERKSAMHET | AJ49: Hjortbergaskolan | AK49: Personal | AL49: Grundskola | AM49: Lärare | AQ49: Budget | AW49: 44197 | AY49: Saknas
A50: Hjortbergaskolan | C50: Initiala Underlag | F50: 2023-11-03T10:59:39 | H50: Cost | P50: 458556 | Q50: 458556 | R50: 458556 | S50: -458556 | AC50: 28840 | AD50: 100 | AF50: Lärare 4 | AG50: 44197 | AH50: 458556 | AI50: PEDAGOGISK VERKSAMHET | AJ50: Hjortbergaskolan | AK50: Personal | AL50: Grundskola | AM50: Lärare | AQ50: Budget | AW50: 44197 | AY50: Saknas
A51: Hjortbergaskolan | C51: Initiala Underlag | F51: 2023-11-03T10:59:39 | H51: Cost | P51: 422940 | Q51: 422940 | R51: 422940 | S51: -422940 | AC51: 26600 | AD51: 100 | AF51: Lärare 5 | AG51: 44197 | AH51: 422940 | AI51: PEDAGOGISK VERKSAMHET | AJ51: Hjortbergaskolan | AK51: Personal | AL51: Grundskola | AM51: Lärare | AQ51: Budget | AW51: 44197 | AY51: Saknas
A52: Hjortbergaskolan | C52: Initiala Underlag | F52: 2023-11-03T10:59:39 | H52: Cost | P52: 422940 | Q52: 422940 | R52: 422940 | S52: -422940 | AC52: 26600 | AD52: 100 | AF52: Lärare 6 | AG52: 44197 | AH52: 422940 | AI52: PEDAGOGISK VERKSAMHET | AJ52: Hjortbergaskolan | AK52: Personal | AL52: Grundskola | AM52: Lärare | AQ52: Budget | AW52: 44197 | AY52: Saknas
A53: Hjortbergaskolan | C53: Initiala Underlag | F53: 2023-11-03T10:59:39 | H53: Cost | P53: 427392 | Q53: 427392 | R53: 427392 | S53: -427392 | AC53: 26880 | AD53: 100 | AF53: Lärare 7 | AG53: 44197 | AH53: 427392 | AI53: PEDAGOGISK VERKSAMHET | AJ53: Hjortbergaskolan | AK53: Personal | AL53: Grundskola | AM53: Lärare | AQ53: Budget | AW53: 44197 | AY53: Saknas
A54: Hjortbergaskolan | C54: Initiala Underlag | F54: 2023-11-03T10:59:39 | H54: Cost | P54: 427392 | Q54: 427392 | R54: 427392 | S54: -427392 | AC54: 26880 | AD54: 100 | AF54: Lärare 8 | AG54: 44197 | AH54: 427392 | AI54: PEDAGOGISK VERKSAMHET | AJ54: Hjortbergaskolan | AK54: Personal | AL54: Grundskola | AM54: Lärare | AQ54: Budget | AW54: 44197 | AY54: Saknas
A55: Hjortbergaskolan | C55: Initiala Underlag | F55: 2023-11-03T10:59:39 | H55: Cost | P55: 454104 | Q55: 454104 | R55: 454104 | S55: -454104 | AC55: 28560 | AD55: 100 | AF55: Lärare 9 | AG55: 44197 | AH55: 454104 | AI55: PEDAGOGISK VERKSAMHET | AJ55: Hjortbergaskolan | AK55: Personal | AL55: Grundskola | AM55: Lärare | AQ55: Budget | AW55: 44197 | AY55: Saknas
A56: Hjortbergaskolan | C56: Initiala Underlag | F56: 2023-11-03T10:59:39 | H56: Cost | P56: 409584 | Q56: 409584 | R56: 409584 | S56: -409584 | AC56: 25760 | AD56: 25 | AF56: Lärare 10 | AG56: 44197 | AH56: 409584 | AI56: PEDAGOGISK VERKSAMHET | AJ56: Hjortbergaskolan | AK56: Personal | AL56: Grundskola | AM56: Lärare | AQ56: Budget | AW56: 44197 | AY56: Saknas
A57: Hjortbergaskolan | C57: Initiala Underlag | F57: 2023-11-03T10:59:39 | H57: Cost | P57: 440748 | Q57: 440748 | R57: 440748 | S57: -440748 | AC57: 27720 | AD57: 75 | AF57: Lärare 11 | AG57: 44197 | AH57: 440748 | AI57: PEDAGOGISK VERKSAMHET | AJ57: Hjortbergaskolan | AK57: Personal | AL57: Grundskola | AM57: Lärare | AQ57: Budget | AW57: 44197 | AY57: Saknas
A58: Hjortbergaskolan | C58: Initiala Underlag | F58: 2023-11-03T10:59:39 | H58: Cost | P58: 422940 | Q58: 422940 | R58: 422940 | S58: -422940 | AC58: 26600 | AD58: 100 | AF58: Lärare 12 | AG58: 44197 | AH58: 422940 | AI58: PEDAGOGISK VERKSAMHET | AJ58: Hjortbergaskolan | AK58: Personal | AL58: Grundskola | AM58: Lärare | AQ58: Budget | AW58: 44197 | AY58: Saknas
A59: Hjortbergaskolan | C59: Initiala Underlag | F59: 2023-11-03T10:59:39 | H59: Cost | P59: 463008 | Q59: 463008 | R59: 463008 | S59: -463008 | AC59: 29120 | AD59: 100 | AF59: Lärare 13 | AG59: 44197 | AH59: 463008 | AI59: PEDAGOGISK VERKSAMHET | AJ59: Hjortbergaskolan | AK59: Personal | AL59: Grundskola | AM59: Lärare | AQ59: Budget | AW59: 44197 | AY59: Saknas
A60: Hjortbergaskolan | C60: Initiala Underlag | F60: 2023-11-03T10:59:39 | H60: Cost | P60: 436296 | Q60: 436296 | R60: 436296 | S60: -436296 | AC60: 27440 | AD60: 100 | AF60: Lärare 14 | AG60: 44197 | AH60: 436296 | AI60: PEDAGOGISK VERKSAMHET | AJ60: Hjortbergaskolan | AK60: Personal | AL60: Grundskola | AM60: Lärare | AQ60: Budget | AW60: 44197 | AY60: Saknas
A61: Hjortbergaskolan | C61: Initiala Underlag | F61: 2023-11-03T10:59:39 | H61: Cost | P61: 476364 | Q61: 476364 | R61: 476364 | S61: -476364 | AC61: 29960 | AD61: 100 | AF61: Lärare 15 | AG61: 44197 | AH61: 476364 | AI61: PEDAGOGISK VERKSAMHET | AJ61: Hjortbergaskolan | AK61: Personal | AL61: Grundskola | AM61: Lärare | AQ61: Budget | AW61: 44197 | AY61: Saknas
A62: Hjortbergaskolan | C62: Initiala Underlag | F62: 2023-11-03T10:59:39 | H62: Cost | P62: 445200 | Q62: 445200 | R62: 445200 | S62: -445200 | AC62: 28000 | AD62: 100 | AF62: Lärare 16 | AG62: 44197 | AH62: 445200 | AI62: PEDAGOGISK VERKSAMHET | AJ62: Hjortbergaskolan | AK62: Personal | AL62: Grundskola | AM62: Lärare | AQ62: Budget | AW62: 44197 | AY62: Saknas
A63: Hjortbergaskolan | C63: Initiala Underlag | F63: 2023-11-03T10:59:39 | H63: Cost | P63: 489720 | Q63: 489720 | R63: 489720 | S63: -489720 | AC63: 30800 | AD63: 100 | AF63: Lärare 17 | AG63: 44197 | AH63: 489720 | AI63: PEDAGOGISK VERKSAMHET | AJ63: Hjortbergaskolan | AK63: Personal | AL63: Grundskola | AM63: Lärare | AQ63: Budget | AW63: 44197 | AY63: Saknas
A64: Hjortbergaskolan | C64: Initiala Underlag | F64: 2023-11-03T10:59:39 | H64: Cost | P64: 480816 | Q64: 480816 | R64: 480816 | S64: -480816 | AC64: 30240 | AD64: 100 | AF64: Lärare 18 | AG64: 44197 | AH64: 480816 | AI64: PEDAGOGISK VERKSAMHET | AJ64: Hjortbergaskolan | AK64: Personal | AL64: Grundskola | AM64: Lärare | AQ64: Budget | AW64: 44197 | AY64: Saknas
A65: Hjortbergaskolan | C65: Initiala Underlag | F65: 2023-11-03T10:59:39 | H65: Cost | P65: 440748 | Q65: 440748 | R65: 440748 | S65: -440748 | AC65: 27720 | AD65: 50 | AF65: Lärare 19 | AG65: 44197 | AH65: 440748 | AI65: PEDAGOGISK VERKSAMHET | AJ65: Hjortbergaskolan | AK65: Personal | AL65: Grundskola | AM65: Lärare | AQ65: Budget | AW65: 44197 | AY65: Saknas
A66: Hjortbergaskolan | C66: Initiala Underlag | F66: 2023-11-03T10:59:39 | H66: Cost | P66: 400680 | Q66: 400680 | R66: 400680 | S66: -400680 | AC66: 25200 | AD66: 100 | AF66: Lärare 20 | AG66: 44197 | AH66: 400680 | AI66: PEDAGOGISK VERKSAMHET | AJ66: Hjortbergaskolan | AK66: Personal | AL66: Grundskola | AM66: Lärare | AQ66: Budget | AW66: 44197 | AY66: Saknas
A67: Hjortbergaskolan | C67: Initiala Underlag | F67: 2023-11-03T10:59:39 | H67: Cost | P67: 418488 | Q67: 418488 | R67: 418488 | S67: -418488 | AC67: 26320 | AD67: 100 | AF67: Rektor | AG67: 44197 | AH67: 418488 | AI67: PEDAGOGISK VERKSAMHET | AJ67: Hjortbergaskolan | AK67: Personal | AL67: Grundskola | AM67: Administrativ personal | AQ67: Budget | AW67: 44197 | AY67: Saknas
A68: Hjortbergaskolan | C68: Initiala Underlag | F68: 2023-11-03T10:59:39 | P68: 559680 | Q68: 559680 | R68: 559680 | S68: -559680 | AC68: 35200 | AD68: 100 | AF68: Resurslärare | AG68: 44197 | AH68: 559680 | AI68: PEDAGOGISK VERKSAMHET | AJ68: Hjortbergaskolan | AM68: Lärare | AQ68: Budget | AW68: 44197 | AY68: Saknas
A69: Hjortbergaskolan | C69: Initiala Underlag | F69: 2023-11-03T10:59:39 | H69: Cost | P69: 534000 | Q69: 534000 | R69: 534000 | S69: -534000 | AF69: Material | AG69: 44197 | AH69: 534000 | AI69: PEDAGOGISK VERKSAMHET | AJ69: Hjortbergaskolan | AK69: Material | AL69: Grundskola | AM69: Skolmaterial | AQ69: Budget | AW69: 44197 | AY69: Saknas
A70: Hjortbergaskolan | C70: Initiala Underlag | F70: 2023-11-03T10:59:39 | H70: Cost | P70: 1170000 | Q70: 1170000 | R70: 1170000 | S70: -1170000 | AF70: Lokalhyra | AG70: 44197 | AH70: 1170000 | AI70: PEDAGOGISK VERKSAMHET | AJ70: Hjortbergaskolan | AK70: Fastigheter och Inventarier | AL70: Grundskola | AM70: Lokalhyra | AQ70: Budget | AW70: 44197 | AY70: Saknas
A71: Hjortbergaskolan | C71: Initiala Underlag | F71: 2023-11-03T10:59:39 | H71: Fact | P71: 0 | Q71: 0 | R71: 0 | S71: 0 | AF71: Antal elever | AG71: 44197 | AH71: 0 | AI71: PEDAGOGISK VERKSAMHET | AJ71: Hjortbergaskolan | AK71: Antal elever | AL71: Grundskola | AM71: Antal elever | AQ71: Budget | AW71: 44197 | AY71: Saknas
A72: Grönkullaskolan.xlsx | B72: Budget | C72: Preliminär Budget 231102 | F72: 2023-11-03T11:47:42 | H72: Cost | P72: 435628.2 | Q72: 435628.2 | R72: 435628.2 | S72: -435628.2 | AC72: 26600 | AD72: 100 | AF72: Lärare 1 | AG72: 44197 | AH72: 422940 | AI72: PEDAGOGISK VERKSAMHET | AJ72: Grönkullaskolan | AK72: Personal | AL72: Grundskola | AM72: Lärare | AQ72: Budget | AW72: 44197 | AX72: Löneökning | AY72: Finns
A73: Grönkullaskolan.xlsx | B73: Budget | C73: Preliminär Budget 231102 | F73: 2023-11-03T11:47:42 | H73: Cost | P73: 421871.52 | Q73: 421871.52 | R73: 421871.52 | S73: -421871.52 | AC73: 25760 | AD73: 100 | AF73: Lärare 2 | AG73: 44197 | AH73: 409584 | AI73: PEDAGOGISK VERKSAMHET | AJ73: Grönkullaskolan | AK73: Personal | AL73: Grundskola | AM73: Lärare | AQ73: Budget | AW73: 44197 | AX73: Löneökning | AY73: Finns
A74: Grönkullaskolan.xlsx | B74: Budget | C74: Preliminär Budget 231102 | F74: 2023-11-03T11:47:42 | H74: Cost | P74: 481483.8 | Q74: 481483.8 | R74: 481483.8 | S74: -481483.8 | AC74: 29400 | AD74: 100 | AF74: Lärare 3 | AG74: 44197 | AH74: 467460 | AI74: PEDAGOGISK VERKSAMHET | AJ74: Grönkullaskolan | AK74: Personal | AL74: Grundskola | AM74: Lärare | AQ74: Budget | AW74: 44197 | AX74: Löneökning | AY74: Finns
A75: Grönkullaskolan.xlsx | B75: Budget | C75: Preliminär Budget 231102 | F75: 2023-11-03T11:47:42 | H75: Cost | P75: 458556 | Q75: 458556 | R75: 458556 | S75: -458556 | AC75: 28000 | AD75: 100 | AF75: Lärare 4 | AG75: 44197 | AH75: 445200 | AI75: PEDAGOGISK VERKSAMHET | AJ75: Grönkullaskolan | AK75: Personal | AL75: Grundskola | AM75: Lärare | AQ75: Budget | AW75: 44197 | AX75: Löneökning | AY75: Finns
A76: Grönkullaskolan.xlsx | B76: Budget | C76: Preliminär Budget 231102 | F76: 2023-11-03T11:47:42 | H76: Cost | P76: 426457.08 | Q76: 426457.08 | R76: 426457.08 | S76: -426457.08 | AC76: 26040 | AD76: 100 | AF76: Lärare 5 | AG76: 44197 | AH76: 414036 | AI76: PEDAGOGISK VERKSAMHET | AJ76: Grönkullaskolan | AK76: Personal | AL76: Grundskola | AM76: Lärare | AQ76: Budget | AW76: 44197 | AX76: Löneökning | AY76: =IF(LEN(AX76)>0,"Finns","Saknas") -> Finns
A77: Grönkullaskolan.xlsx | B77: Budget | C77: Preliminär Budget 231102 | F77: 2023-11-03T11:47:42 | H77: Cost | P77: 476898.24 | Q77: 476898.24 | R77: 476898.24 | S77: -476898.24 | AC77: 29120 | AD77: 100 | AF77: Lärare 6 | AG77: 44197 | AH77: 463008 | AI77: PEDAGOGISK VERKSAMHET | AJ77: Grönkullaskolan | AK77: Personal | AL77: Grundskola | AM77: Lärare | AQ77: Budget | AW77: 44197 | AX77: Löneökning | AY77: Finns
A78: Grönkullaskolan.xlsx | B78: Budget | C78: Preliminär Budget 231102 | F78: 2023-11-03T11:47:42 | H78: Cost | P78: 490654.92 | Q78: 490654.92 | R78: 490654.92 | S78: -490654.92 | AC78: 29960 | AD78: 100 | AF78: Lärare 7 | AG78: 44197 | AH78: 476364 | AI78: PEDAGOGISK VERKSAMHET | AJ78: Grönkullaskolan | AK78: Personal | AL78: Grundskola | AM78: Lärare | AQ78: Budget | AW78: 44197 | AX78: Löneökning | AY78: Finns
A79: Grönkullaskolan.xlsx | B79: Budget | C79: Preliminär Budget 231102 | F79: 2023-11-03T11:47:42 | H79: Cost | P79: 490654.92 | Q79: 490654.92 | R79: 490654.92 | S79: -490654.92 | AC79: 29960 | AD79: 100 | AF79: Lärare 8 | AG79: 44197 | AH79: 476364 | AI79: PEDAGOGISK VERKSAMHET | AJ79: Grönkullaskolan | AK79: Personal | AL79: Grundskola | AM79: Lärare | AQ79: Budget | AW79: 44197 | AX79: Löneökning | AY79: Finns
A80: Grönkullaskolan.xlsx | B80: Budget | C80: Preliminär Budget 231102 | F80: 2023-11-03T11:47:42 | H80: Cost | P80: 431042.64 | Q80: 431042.64 | R80: 431042.64 | S80: -431042.64 | AC80: 26320 | AD80: 100 | AF80: Lärare 9 | AG80: 44197 | AH80: 418488 | AI80: PEDAGOGISK VERKSAMHET | AJ80: Grönkullaskolan | AK80: Personal | AL80: Grundskola | AM80: Lärare | AQ80: Budget | AW80: 44197 | AX80: Löneökning | AY80: Finns
A81: Grönkullaskolan.xlsx | B81: Budget | C81: Preliminär Budget 231102 | F81: 2023-11-03T11:47:42 | H81: Cost | P81: 472312.68 | Q81: 472312.68 | R81: 472312.68 | S81: -472312.68 | AC81: 28840 | AD81: 100 | AF81: Lärare 10 | AG81: 44197 | AH81: 458556 | AI81: PEDAGOGISK VERKSAMHET | AJ81: Grönkullaskolan | AK81: Personal | AL81: Grundskola | AM81: Lärare | AQ81: Budget | AW81: 44197 | AX81: Löneökning | AY81: Finns
A82: Grönkullaskolan.xlsx | B82: Budget | C82: Preliminär Budget 231102 | F82: 2023-11-03T11:47:42 | H82: Cost | P82: 435628.2 | Q82: 435628.2 | R82: 435628.2 | S82: -435628.2 | AC82: 26600 | AD82: 50 | AF82: Lärare 11 | AG82: 44197 | AH82: 422940 | AI82: PEDAGOGISK VERKSAMHET | AJ82: Grönkullaskolan | AK82: Personal | AL82: Grundskola | AM82: Lärare | AQ82: Budget | AW82: 44197 | AX82: Löneökning | AY82: Finns
A83: Grönkullaskolan.xlsx | B83: Budget | C83: Preliminär Budget 231102 | F83: 2023-11-03T11:47:42 | H83: Cost | P83: 412700.4 | Q83: 412700.4 | R83: 412700.4 | S83: -412700.4 | AC83: 25200 | AD83: 50 | AF83: Lärare 12 | AG83: 44197 | AH83: 400680 | AI83: PEDAGOGISK VERKSAMHET | AJ83: Grönkullaskolan | AK83: Personal | AL83: Grundskola | AM83: Lärare | AQ83: Budget | AW83: 44197 | AX83: Löneökning | AY83: Finns
A84: Grönkullaskolan.xlsx | B84: Budget | C84: Preliminär Budget 231102 | F84: 2023-11-03T11:47:42 | H84: Cost | P84: 449384.88 | Q84: 449384.88 | R84: 449384.88 | S84: -449384.88 | AC84: 27440 | AD84: 100 | AF84: Lärare 13 | AG84: 44197 | AH84: 436296 | AI84: PEDAGOGISK VERKSAMHET | AJ84: Grönkullaskolan | AK84: Personal | AL84: Grundskola | AM84: Lärare | AQ84: Budget | AW84: 44197 | AX84: Löneökning | AY84: Finns
A85: Grönkullaskolan.xlsx | B85: Budget | C85: Preliminär Budget 231102 | F85: 2023-11-03T11:47:42 | H85: Cost | P85: 435628.2 | Q85: 435628.2 | R85: 435628.2 | S85: -435628.2 | AC85: 26600 | AD85: 100 | AF85: Lärare 14 | AG85: 44197 | AH85: 422940 | AI85: PEDAGOGISK VERKSAMHET | AJ85: Grönkullaskolan | AK85: Personal | AL85: Grundskola | AM85: Lärare | AQ85: Budget | AW85: 44197 | AX85: Löneökning | AY85: Finns
A86: Grönkullaskolan.xlsx | B86: Budget | C86: Preliminär Budget 231102 | F86: 2023-11-03T11:47:42 | H86: Cost | P86: 435628.2 | Q86: 435628.2 | R86: 435628.2 | S86: -435628.2 | AC86: 26600 | AD86: 100 | AF86: Lärare 15 | AG86: 44197 | AH86: 422940 | AI86: PEDAGOGISK VERKSAMHET | AJ86: Grönkullaskolan | AK86: Personal | AL86: Grundskola | AM86: Lärare | AQ86: Budget | AW86: 44197 | AX86: Löneökning | AY86: Finns
A87: Grönkullaskolan.xlsx | B87: Budget | C87: Preliminär Budget 231102 | F87: 2023-11-03T11:47:42 | H87: Cost | P87: 449384.88 | Q87: 449384.88 | R87: 449384.88 | S87: -449384.88 | AC87: 27440 | AD87: 100 | AF87: Lärare 16 | AG87: 44197 | AH87: 436296 | AI87: PEDAGOGISK VERKSAMHET | AJ87: Grönkullaskolan | AK87: Personal | AL87: Grundskola | AM87: Lärare | AQ87: Budget | AW87: 44197 | AX87: Löneökning | AY87: Finns
A88: Grönkullaskolan.xlsx | B88: Budget | C88: Preliminär Budget 231102 | F88: 2023-11-03T11:47:42 | H88: Cost | P88: 426457.08 | Q88: 426457.08 | R88: 426457.08 | S88: -426457.08 | AC88: 26040 | AD88: 100 | AF88: Lärare 17 | AG88: 44197 | AH88: 414036 | AI88: PEDAGOGISK VERKSAMHET | AJ88: Grönkullaskolan | AK88: Personal | AL88: Grundskola | AM88: Lärare | AQ88: Budget | AW88: 44197 | AX88: Löneökning | AY88: Finns
A89: Grönkullaskolan.xlsx | B89: Budget | C89: Preliminär Budget 231102 | F89: 2023-11-03T11:47:42 | H89: Cost | P89: 444799.32 | Q89: 444799.32 | R89: 444799.32 | S89: -444799.32 | AC89: 27160 | AD89: 100 | AF89: Lärare 18 | AG89: 44197 | AH89: 431844 | AI89: PEDAGOGISK VERKSAMHET | AJ89: Grönkullaskolan | AK89: Personal | AL89: Grundskola | AM89: Lärare | AQ89: Budget | AW89: 44197 | AX89: Löneökning | AY89: Finns
A90: Grönkullaskolan.xlsx | B90: Budget | C90: Preliminär Budget 231102 | F90: 2023-11-03T11:47:42 | H90: Cost | Q90: 0 | R90: 0 | S90: 0 | AC90: 25200 | AD90: 100 | AF90: Lärare 19 | AG90: 44197 | AH90: 400680 | AI90: PEDAGOGISK VERKSAMHET | AJ90: Grönkullaskolan | AK90: Personal | AL90: Grundskola | AM90: Lärare | AQ90: Budget | AW90: 44197 | AX90: Vakant | AY90: Finns
A91: Grönkullaskolan.xlsx | B91: Budget | C91: Preliminär Budget 231102 | F91: 2023-11-03T11:47:42 | H91: Cost | P91: 504411.6 | Q91: 504411.6 | R91: 504411.6 | S91: -504411.6 | AC91: 30800 | AD91: 100 | AF91: Lärare 20 | AG91: 44197 | AH91: 489720 | AI91: PEDAGOGISK VERKSAMHET | AJ91: Grönkullaskolan | AK91: Personal | AL91: Grundskola | AM91: Lärare | AQ91: Budget | AW91: 44197 | AX91: Löneökning | AY91: Finns
A92: Grönkullaskolan.xlsx | B92: Budget | C92: Preliminär Budget 231102 | F92: 2023-11-03T11:47:42 | H92: Cost | P92: 440213.76 | Q92: 440213.76 | R92: 440213.76 | S92: -440213.76 | AC92: 26880 | AD92: 100 | AF92: Rektor | AG92: 44197 | AH92: 427392 | AI92: PEDAGOGISK VERKSAMHET | AJ92: Grönkullaskolan | AK92: Personal | AL92: Grundskola | AM92: Administrativ personal | AQ92: Budget | AW92: 44197 | AX92: Löneökning | AY92: Finns
A93: Grönkullaskolan.xlsx | B93: Budget | C93: Preliminär Budget 231102 | F93: 2023-11-03T11:47:42 | H93: Cost | P93: 487379.52 | Q93: 487379.52 | R93: 487379.52 | S93: -487379.52 | AC93: 29760 | AD93: 100 | AF93: Resurslärare | AG93: 44197 | AH93: 473184 | AI93: PEDAGOGISK VERKSAMHET | AJ93: Grönkullaskolan | AK93: Personal | AL93: Grundskola | AM93: Lärare | AQ93: Budget | AW93: 44197 | AX93: Löneökning | AY93: Finns
A94: Grönkullaskolan.xlsx | B94: Budget | C94: Preliminär Budget 231102 | F94: 2023-11-03T11:47:42 | H94: Cost | P94: 500000 | Q94: 500000 | R94: 500000 | S94: -500000 | AF94: Material | AG94: 44197 | AH94: 636000 | AI94: PEDAGOGISK VERKSAMHET | AJ94: Grönkullaskolan | AK94: Material | AL94: Grundskola | AM94: Skolmaterial | AQ94: Budget | AW94: 44197 | AY94: Saknas
A95: Grönkullaskolan.xlsx | B95: Budget | C95: Preliminär Budget 231102 | F95: 2023-11-03T11:47:42 | H95: Cost | P95: 800000 | Q95: 800000 | R95: 800000 | S95: -800000 | AF95: Lokalhyra | AG95: 44197 | AH95: 720000 | AI95: PEDAGOGISK VERKSAMHET | AJ95: Grönkullaskolan | AK95: Fastigheter och Inventarier | AL95: Grundskola | AM95: Lokalhyra | AQ95: Budget | AW95: 44197 | AX95: Hyresökning | AY95: Finns
A96: Grönkullaskolan.xlsx | B96: Budget | C96: Preliminär Budget 231102 | F96: 2023-11-03T11:47:42 | H96: Fact | Q96: 0 | R96: 0 | S96: 0 | AE96: 205 | AF96: Antal elever | AG96: 44197 | AI96: PEDAGOGISK VERKSAMHET | AJ96: Grönkullaskolan | AK96: Antal elever | AL96: Grundskola | AM96: Antal elever | AQ96: Budget | AW96: 44197 | AY96: Saknas
A97: Hjortbergaskolan.xlsx | B97: Budget | C97: Preliminär Budget 231102 | F97: 2023-11-03T11:47:42 | H97: Cost | P97: 449652 | Q97: 449652 | R97: 449652 | S97: -449652 | AC97: 28280 | AD97: 100 | AF97: Lärare 1 | AG97: 44197 | AH97: 449652 | AI97: PEDAGOGISK VERKSAMHET | AJ97: Hjortbergaskolan | AK97: Personal | AL97: Grundskola | AM97: Lärare | AQ97: Budget | AW97: 44197 | AY97: Saknas
A98: Hjortbergaskolan.xlsx | B98: Budget | C98: Preliminär Budget 231102 | F98: 2023-11-03T11:47:42 | H98: Cost | P98: 422940 | Q98: 422940 | R98: 422940 | S98: -422940 | AC98: 26600 | AD98: 100 | AF98: Lärare 2 | AG98: 44197 | AH98: 422940 | AI98: PEDAGOGISK VERKSAMHET | AJ98: Hjortbergaskolan | AK98: Personal | AL98: Grundskola | AM98: Lärare | AQ98: Budget | AW98: 44197 | AY98: Saknas
A99: Hjortbergaskolan.xlsx | B99: Budget | C99: Preliminär Budget 231102 | F99: 2023-11-03T11:47:42 | H99: Cost | P99: 471912 | Q99: 471912 | R99: 471912 | S99: -471912 | AC99: 29680 | AD99: 100 | AF99: Lärare 3 | AG99: 44197 | AH99: 471912 | AI99: PEDAGOGISK VERKSAMHET | AJ99: Hjortbergaskolan | AK99: Personal | AL99: Grundskola | AM99: Lärare | AQ99: Budget | AW99: 44197 | AY99: Saknas
A100: Hjortbergaskolan.xlsx | B100: Budget | C100: Preliminär Budget 231102 | F100: 2023-11-03T11:47:42 | H100: Cost | P100: 458556 | Q100: 458556 | R100: 458556 | S100: -458556 | AC100: 28840 | AD100: 100 | AF100: Lärare 4 | AG100: 44197 | AH100: 458556 | AI100: PEDAGOGISK VERKSAMHET | AJ100: Hjortbergaskolan | AK100: Personal | AL100: Grundskola | AM100: Lärare | AQ100: Budget | AW100: 44197 | AY100: Saknas
A101: Hjortbergaskolan.xlsx | B101: Budget | C101: Preliminär Budget 231102 | F101: 2023-11-03T11:47:42 | H101: Cost | P101: 422940 | Q101: 422940 | R101: 422940 | S101: -422940 | AC101: 26600 | AD101: 100 | AF101: Lärare 5 | AG101: 44197 | AH101: 422940 | AI101: PEDAGOGISK VERKSAMHET | AJ101: Hjortbergaskolan | AK101: Personal | AL101: Grundskola | AM101: Lärare | AQ101: Budget | AW101: 44197 | AY101: Saknas
A102: Hjortbergaskolan.xlsx | B102: Budget | C102: Preliminär Budget 231102 | F102: 2023-11-03T11:47:42 | H102: Cost | P102: 422940 | Q102: 422940 | R102: 422940 | S102: -422940 | AC102: 26600 | AD102: 100 | AF102: Lärare 6 | AG102: 44197 | AH102: 422940 | AI102: PEDAGOGISK VERKSAMHET | AJ102: Hjortbergaskolan | AK102: Personal | AL102: Grundskola | AM102: Lärare | AQ102: Budget | AW102: 44197 | AY102: Saknas
A103: Hjortbergaskolan.xlsx | B103: Budget | C103: Preliminär Budget 231102 | F103: 2023-11-03T11:47:42 | H103: Cost | P103: 427392 | Q103: 427392 | R103: 427392 | S103: -427392 | AC103: 26880 | AD103: 100 | AF103: Lärare 7 | AG103: 44197 | AH103: 427392 | AI103: PEDAGOGISK VERKSAMHET | AJ103: Hjortbergaskolan | AK103: Personal | AL103: Grundskola | AM103: Lärare | AQ103: Budget | AW103: 44197 | AY103: Saknas
A104: Hjortbergaskolan.xlsx | B104: Budget | C104: Preliminär Budget 231102 | F104: 2023-11-03T11:47:42 | H104: Cost | P104: 427392 | Q104: 427392 | R104: 427392 | S104: -427392 | AC104: 26880 | AD104: 100 | AF104: Lärare 8 | AG104: 44197 | AH104: 427392 | AI104: PEDAGOGISK VERKSAMHET | AJ104: Hjortbergaskolan | AK104: Personal | AL104: Grundskola | AM104: Lärare | AQ104: Budget | AW104: 44197 | AY104: Saknas
A105: Hjortbergaskolan.xlsx | B105: Budget | C105: Preliminär Budget 231102 | F105: 2023-11-03T11:47:42 | H105: Cost | P105: 454104 | Q105: 454104 | R105: 454104 | S105: -454104 | AC105: 28560 | AD105: 100 | AF105: Lärare 9 | AG105: 44197 | AH105: 454104 | AI105: PEDAGOGISK VERKSAMHET | AJ105: Hjortbergaskolan | AK105: Personal | AL105: Grundskola | AM105: Lärare | AQ105: Budget | AW105: 44197 | AY105: Saknas
A106: Hjortbergaskolan.xlsx | B106: Budget | C106: Preliminär Budget 231102 | F106: 2023-11-03T11:47:42 | H106: Cost | P106: 409584 | Q106: 409584 | R106: 409584 | S106: -409584 | AC106: 25760 | AD106: 25 | AF106: Lärare 10 | AG106: 44197 | AH106: 409584 | AI106: PEDAGOGISK VERKSAMHET | AJ106: Hjortbergaskolan | AK106: Personal | AL106: Grundskola | AM106: Lärare | AQ106: Budget | AW106: 44197 | AY106: Saknas
A107: Hjortbergaskolan.xlsx | B107: Budget | C107: Preliminär Budget 231102 | F107: 2023-11-03T11:47:42 | H107: Cost | P107: 440748 | Q107: 440748 | R107: 440748 | S107: -440748 | AC107: 27720 | AD107: 75 | AF107: Lärare 11 | AG107: 44197 | AH107: 440748 | AI107: PEDAGOGISK VERKSAMHET | AJ107: Hjortbergaskolan | AK107: Personal | AL107: Grundskola | AM107: Lärare | AQ107: Budget | AW107: 44197 | AY107: Saknas
A108: Hjortbergaskolan.xlsx | B108: Budget | C108: Preliminär Budget 231102 | F108: 2023-11-03T11:47:42 | H108: Cost | P108: 422940 | Q108: 422940 | R108: 422940 | S108: -422940 | AC108: 26600 | AD108: 100 | AF108: Lärare 12 | AG108: 44197 | AH108: 422940 | AI108: PEDAGOGISK VERKSAMHET | AJ108: Hjortbergaskolan | AK108: Personal | AL108: Grundskola | AM108: Lärare | AQ108: Budget | AW108: 44197 | AY108: Saknas
A109: Hjortbergaskolan.xlsx | B109: Budget | C109: Preliminär Budget 231102 | F109: 2023-11-03T11:47:42 | H109: Cost | P109: 463008 | Q109: 463008 | R109: 463008 | S109: -463008 | AC109: 29120 | AD109: 100 | AF109: Lärare 13 | AG109: 44197 | AH109: 463008 | AI109: PEDAGOGISK VERKSAMHET | AJ109: Hjortbergaskolan | AK109: Personal | AL109: Grundskola | AM109: Lärare | AQ109: Budget | AW109: 44197 | AY109: Saknas
A110: Hjortbergaskolan.xlsx | B110: Budget | C110: Preliminär Budget 231102 | F110: 2023-11-03T11:47:42 | H110: Cost | P110: 436296 | Q110: 436296 | R110: 436296 | S110: -436296 | AC110: 27440 | AD110: 100 | AF110: Lärare 14 | AG110: 44197 | AH110: 436296 | AI110: PEDAGOGISK VERKSAMHET | AJ110: Hjortbergaskolan | AK110: Personal | AL110: Grundskola | AM110: Lärare | AQ110: Budget | AW110: 44197 | AY110: Saknas
A111: Hjortbergaskolan.xlsx | B111: Budget | C111: Preliminär Budget 231102 | F111: 2023-11-03T11:47:42 | H111: Cost | P111: 476364 | Q111: 476364 | R111: 476364 | S111: -476364 | AC111: 29960 | AD111: 100 | AF111: Lärare 15 | AG111: 44197 | AH111: 476364 | AI111: PEDAGOGISK VERKSAMHET | AJ111: Hjortbergaskolan | AK111: Personal | AL111: Grundskola | AM111: Lärare | AQ111: Budget | AW111: 44197 | AY111: Saknas
A112: Hjortbergaskolan.xlsx | B112: Budget | C112: Preliminär Budget 231102 | F112: 2023-11-03T11:47:42 | H112: Cost | P112: 445200 | Q112: 445200 | R112: 445200 | S112: -445200 | AC112: 28000 | AD112: 100 | AF112: Lärare 16 | AG112: 44197 | AH112: 445200 | AI112: PEDAGOGISK VERKSAMHET | AJ112: Hjortbergaskolan | AK112: Personal | AL112: Grundskola | AM112: Lärare | AQ112: Budget | AW112: 44197 | AY112: Saknas
A113: Hjortbergaskolan.xlsx | B113: Budget | C113: Preliminär Budget 231102 | F113: 2023-11-03T11:47:42 | H113: Cost | P113: 489720 | Q113: 489720 | R113: 489720 | S113: -489720 | AC113: 30800 | AD113: 100 | AF113: Lärare 17 | AG113: 44197 | AH113: 489720 | AI113: PEDAGOGISK VERKSAMHET | AJ113: Hjortbergaskolan | AK113: Personal | AL113: Grundskola | AM113: Lärare | AQ113: Budget | AW113: 44197 | AY113: Saknas
A114: Hjortbergaskolan.xlsx | B114: Budget | C114: Preliminär Budget 231102 | F114: 2023-11-03T11:47:42 | H114: Cost | P114: 480816 | Q114: 480816 | R114: 480816 | S114: -480816 | AC114: 30240 | AD114: 100 | AF114: Lärare 18 | AG114: 44197 | AH114: 480816 | AI114: PEDAGOGISK VERKSAMHET | AJ114: Hjortbergaskolan | AK114: Personal | AL114: Grundskola | AM114: Lärare | AQ114: Budget | AW114: 44197 | AY114: Saknas
A115: Hjortbergaskolan.xlsx | B115: Budget | C115: Preliminär Budget 231102 | F115: 2023-11-03T11:47:42 | H115: Cost | P115: 440748 | Q115: 440748 | R115: 440748 | S115: -440748 | AC115: 27720 | AD115: 50 | AF115: Lärare 19 | AG115: 44197 | AH115: 440748 | AI115: PEDAGOGISK VERKSAMHET | AJ115: Hjortbergaskolan | AK115: Personal | AL115: Grundskola | AM115: Lärare | AQ115: Budget | AW115: 44197 | AY115: Saknas
A116: Hjortbergaskolan.xlsx | B116: Budget | C116: Preliminär Budget 231102 | F116: 2023-11-03T11:47:42 | H116: Cost | P116: 400680 | Q116: 400680 | R116: 400680 | S116: -400680 | AC116: 25200 | AD116: 100 | AF116: Lärare 20 | AG116: 44197 | AH116: 400680 | AI116: PEDAGOGISK VERKSAMHET | AJ116: Hjortbergaskolan | AK116: Personal | AL116: Grundskola | AM116: Lärare | AQ116: Budget | AW116: 44197 | AY116: Saknas
A117: Hjortbergaskolan.xlsx | B117: Budget | C117: Preliminär Budget 231102 | F117: 2023-11-03T11:47:42 | H117: Cost | P117: 418488 | Q117: 418488 | R117: 418488 | S117: -418488 | AC117: 26320 | AD117: 100 | AF117: Rektor | AG117: 44197 | AH117: 418488 | AI117: PEDAGOGISK VERKSAMHET | AJ117: Hjortbergaskolan | AK117: Personal | AL117: Grundskola | AM117: Administrativ personal | AQ117: Budget | AW117: 44197 | AY117: Saknas
A118: Hjortbergaskolan.xlsx | B118: Budget | C118: Preliminär Budget 231102 | F118: 2023-11-03T11:47:42 | P118: 559680 | Q118: 559680 | R118: 559680 | S118: -559680 | AC118: 35200 | AD118: 100 | AF118: Resurslärare | AG118: 44197 | AH118: 559680 | AI118: PEDAGOGISK VERKSAMHET | AJ118: Hjortbergaskolan | AM118: Lärare | AQ118: Budget | AW118: 44197 | AY118: Saknas
A119: Hjortbergaskolan.xlsx | B119: Budget | C119: Preliminär Budget 231102 | F119: 2023-11-03T11:47:42 | H119: Cost | P119: 534000 | Q119: 534000 | R119: 534000 | S119: -534000 | AF119: Material | AG119: 44197 | AH119: 534000 | AI119: PEDAGOGISK VERKSAMHET | AJ119: Hjortbergaskolan | AK119: Material | AL119: Grundskola | AM119: Skolmaterial | AQ119: Budget | AW119: 44197 | AY119: Saknas
A120: Hjortbergaskolan.xlsx | B120: Budget | C120: Preliminär Budget 231102 | F120: 2023-11-03T11:47:42 | H120: Cost | P120: 1170000 | Q120: 1170000 | R120: 1170000 | S120: -1170000 | AF120: Lokalhyra | AG120: 44197 | AH120: 1170000 | AI120: PEDAGOGISK VERKSAMHET | AJ120: Hjortbergaskolan | AK120: Fastigheter och Inventarier | AL120: Grundskola | AM120: Lokalhyra | AQ120: Budget | AW120: 44197 | AY120: Saknas
A121: Hjortbergaskolan.xlsx | B121: Budget | C121: Preliminär Budget 231102 | F121: 2023-11-03T11:47:42 | H121: Fact | Q121: 0 | R121: 0 | S121: 0 | AF121: Antal elever | AG121: 44197 | AI121: PEDAGOGISK VERKSAMHET | AJ121: Hjortbergaskolan | AK121: Antal elever | AL121: Grundskola | AM121: Antal elever | AQ121: Budget | AW121: 44197 | AY121: Saknas
A122: KULTUR OCH FRITID.xlsx | B122: Budget | C122: Preliminär Budget 231102 | F122: 2023-11-03T11:47:42 | H122: Cost | Q122: 0 | R122: 0 | S122: 0 | AF122: Stöd till studieorganisationer | AG122: 44197 | AI122: KULTUR OCH FRITID | AK122: Personal | AL122: Stöd till studieorganisationer | AQ122: Budget | AW122: 44197 | AY122: Saknas
A123: KULTUR OCH FRITID.xlsx | B123: Budget | C123: Preliminär Budget 231102 | F123: 2023-11-03T11:47:42 | H123: Cost | P123: 5000000 | Q123: 5000000 | R123: 5000000 | S123: -5000000 | AF123: Allmän kulturverksamhet, övrigt | AG123: 44197 | AH123: 5479000 | AI123: KULTUR OCH FRITID | AK123: Material | AL123: Allmän kulturverksamhet, övrigt | AQ123: Budget | AW123: 44197 | AX123: Nedskärning genomförd | AY123: Finns
A124: KULTUR OCH FRITID.xlsx | B124: Budget | C124: Preliminär Budget 231102 | F124: 2023-11-03T11:47:42 | H124: Cost | P124: 3048000 | Q124: 3048000 | R124: 3048000 | S124: -3048000 | AF124: Bibliotek | AG124: 44197 | AH124: 3048000 | AI124: KULTUR OCH FRITID | AK124: Tjänster | AL124: Bibliotek | AQ124: Budget | AW124: 44197 | AY124: Saknas
A125: KULTUR OCH FRITID.xlsx | B125: Budget | C125: Preliminär Budget 231102 | F125: 2023-11-03T11:47:42 | H125: Cost | P125: 3638000 | Q125: 3638000 | R125: 3638000 | S125: -3638000 | AF125: Musikskola / kulturskola | AG125: 44197 | AH125: 3638000 | AI125: KULTUR OCH FRITID | AK125: Personal | AL125: Musikskola / kulturskola | AQ125: Budget | AW125: 44197 | AY125: Saknas
A126: KULTUR OCH FRITID.xlsx | B126: Budget | C126: Preliminär Budget 231102 | F126: 2023-11-03T11:47:42 | H126: Cost | Q126: 0 | R126: 0 | S126: 0 | AF126: Allmän fritidsverksamhet | AG126: 44197 | AI126: KULTUR OCH FRITID | AK126: Material | AL126: Allmän fritidsverksamhet | AQ126: Budget | AW126: 44197 | AY126: Saknas
A127: KULTUR OCH FRITID.xlsx | B127: Budget | C127: Preliminär Budget 231102 | F127: 2023-11-03T11:47:42 | H127: Cost | P127: 13000000 | Q127: 13000000 | R127: 13000000 | S127: -13000000 | AF127: Idrotts- och fritidsanläggningar | AG127: 44197 | AH127: 12775000 | AI127: KULTUR OCH FRITID | AK127: Personal | AL127: Idrotts- och fritidsanläggningar | AQ127: Budget | AW127: 44197 | AX127: Satsning inför OS | AY127: Finns
A128: KULTUR OCH FRITID.xlsx | B128: Budget | C128: Preliminär Budget 231102 | F128: 2023-11-03T11:47:42 | H128: Cost | P128: 550000 | Q128: 550000 | R128: 550000 | S128: -550000 | AF128: Fritidsgårdar | AG128: 44197 | AI128: KULTUR OCH FRITID | AK128: Material | AL128: Fritidsgårdar | AQ128: Budget | AW128: 44197 | AX128: Ny fritidsgård | AY128: Finns
A129: Miljö och Hälsa.xlsx | B129: Budget | C129: Preliminär Budget 231102 | F129: 2023-11-03T11:47:42 | H129: Cost | P129: 2695000 | Q129: 2695000 | R129: 2695000 | S129: -2695000 | AF129: Miljö- och hälsoskydd, myndighetsutövning | AG129: 44197 | AH129: 2695000 | AI129: INFRASTRUKTUR, SKYDD mm | AK129: Personal | AL129: Miljö- och hälsoskydd, myndighetsutövning | AQ129: Budget | AW129: 44197 | AY129: Saknas
A130: Miljö och Hälsa.xlsx | B130: Budget | C130: Preliminär Budget 231102 | F130: 2023-11-03T11:47:42 | H130: Cost | Q130: 0 | R130: 0 | S130: 0 | AF130: Miljö- hälsa och hållbar utveckling | AG130: 44197 | AI130: INFRASTRUKTUR, SKYDD mm | AK130: Material | AL130: Miljö- hälsa och hållbar utveckling | AQ130: Budget | AW130: 44197 | AY130: Saknas
A131: Miljö och Hälsa.xlsx | B131: Budget | C131: Preliminär Budget 231102 | F131: 2023-11-03T11:47:42 | H131: Cost | P131: 140000 | Q131: 140000 | R131: 140000 | S131: -140000 | AF131: Alkoholtillstånd m.m. | AG131: 44197 | AH131: 140000 | AI131: INFRASTRUKTUR, SKYDD mm | AK131: Tjänster | AL131: Alkoholtillstånd m.m. | AQ131: Budget | AW131: 44197 | AY131: Saknas
A132: Miljö och Hälsa.xlsx | B132: Budget | C132: Preliminär Budget 231102 | F132: 2023-11-03T11:47:42 | H132: Cost | P132: 9344000 | Q132: 9344000 | R132: 9344000 | S132: -9344000 | AF132: Räddningstjänst | AG132: 44197 | AH132: 9344000 | AI132: INFRASTRUKTUR, SKYDD mm | AK132: Personal | AL132: Räddningstjänst | AQ132: Budget | AW132: 44197 | AY132: Saknas
A133: Grönkullaskolan.xlsx | B133: Budget | C133: Preliminär Budget 231103 | F133: 2023-11-03T11:59:22 | H133: Cost | P133: 435628.2 | Q133: 435628.2 | R133: 435628.2 | S133: 435628.2 | AC133: 26600 | AD133: 100 | AF133: Lärare 1 | AG133: 44197 | AH133: 422940 | AI133: PEDAGOGISK VERKSAMHET | AJ133: Grönkullaskolan | AK133: Personal | AL133: Grundskola | AM133: Lärare | AQ133: Budget | AW133: 44197 | AX133: Löneökning | AY133: Finns
A134: Grönkullaskolan.xlsx | B134: Budget | C134: Preliminär Budget 231103 | F134: 2023-11-03T11:59:22 | H134: Cost | P134: 421871.52 | Q134: 421871.52 | R134: 421871.52 | S134: 421871.52 | AC134: 25760 | AD134: 100 | AF134: Lärare 2 | AG134: 44197 | AH134: 409584 | AI134: PEDAGOGISK VERKSAMHET | AJ134: Grönkullaskolan | AK134: Personal | AL134: Grundskola | AM134: Lärare | AQ134: Budget | AW134: 44197 | AX134: Löneökning | AY134: Finns
A135: Grönkullaskolan.xlsx | B135: Budget | C135: Preliminär Budget 231103 | F135: 2023-11-03T11:59:22 | H135: Cost | P135: 481483.8 | Q135: 481483.8 | R135: 481483.8 | S135: 481483.8 | AC135: 29400 | AD135: 100 | AF135: Lärare 3 | AG135: 44197 | AH135: 467460 | AI135: PEDAGOGISK VERKSAMHET | AJ135: Grönkullaskolan | AK135: Personal | AL135: Grundskola | AM135: Lärare | AQ135: Budget | AW135: 44197 | AX135: Löneökning | AY135: Finns
A136: Grönkullaskolan.xlsx | B136: Budget | C136: Preliminär Budget 231103 | F136: 2023-11-03T11:59:22 | H136: Cost | P136: 458556 | Q136: 458556 | R136: 458556 | S136: 458556 | AC136: 28000 | AD136: 100 | AF136: Lärare 4 | AG136: 44197 | AH136: 445200 | AI136: PEDAGOGISK VERKSAMHET | AJ136: Grönkullaskolan | AK136: Personal | AL136: Grundskola | AM136: Lärare | AQ136: Budget | AW136: 44197 | AX136: Löneökning | AY136: Finns
A137: Grönkullaskolan.xlsx | B137: Budget | C137: Preliminär Budget 231103 | F137: 2023-11-03T11:59:22 | H137: Cost | P137: 426457.08 | Q137: 426457.08 | R137: 426457.08 | S137: 426457.08 | AC137: 26040 | AD137: 100 | AF137: Lärare 5 | AG137: 44197 | AH137: 414036 | AI137: PEDAGOGISK VERKSAMHET | AJ137: Grönkullaskolan | AK137: Personal | AL137: Grundskola | AM137: Lärare | AQ137: Budget | AW137: 44197 | AX137: Löneökning | AY137: Finns
A138: Grönkullaskolan.xlsx | B138: Budget | C138: Preliminär Budget 231103 | F138: 2023-11-03T11:59:22 | H138: Cost | P138: 476898.24 | Q138: 476898.24 | R138: 476898.24 | S138: 476898.24 | AC138: 29120 | AD138: 100 | AF138: Lärare 6 | AG138: 44197 | AH138: 463008 | AI138: PEDAGOGISK VERKSAMHET | AJ138: Grönkullaskolan | AK138: Personal | AL138: Grundskola | AM138: Lärare | AQ138: Budget | AW138: 44197 | AX138: Löneökning | AY138: Finns
A139: Grönkullaskolan.xlsx | B139: Budget | C139: Preliminär Budget 231103 | F139: 2023-11-03T11:59:22 | H139: Cost | P139: 490654.92 | Q139: 490654.92 | R139: 490654.92 | S139: 490654.92 | AC139: 29960 | AD139: 100 | AF139: Lärare 7 | AG139: 44197 | AH139: 476364 | AI139: PEDAGOGISK VERKSAMHET | AJ139: Grönkullaskolan | AK139: Personal | AL139: Grundskola | AM139: Lärare | AQ139: Budget | AW139: 44197 | AX139: Löneökning | AY139: Finns
A140: Grönkullaskolan.xlsx | B140: Budget | C140: Preliminär Budget 231103 | F140: 2023-11-03T11:59:22 | H140: Cost | P140: 490654.92 | Q140: 490654.92 | R140: 490654.92 | S140: 490654.92 | AC140: 29960 | AD140: 100 | AF140: Lärare 8 | AG140: 44197 | AH140: 476364 | AI140: PEDAGOGISK VERKSAMHET | AJ140: Grönkullaskolan | AK140: Personal | AL140: Grundskola | AM140: Lärare | AQ140: Budget | AW140: 44197 | AX140: Löneökning | AY140: =IF(LEN(AX140)>0,"Finns","Saknas") -> Finns
A141: Grönkullaskolan.xlsx | B141: Budget | C141: Preliminär Budget 231103 | F141: 2023-11-03T11:59:22 | H141: Cost | P141: 431042.64 | Q141: 431042.64 | R141: 431042.64 | S141: 431042.64 | AC141: 26320 | AD141: 100 | AF141: Lärare 9 | AG141: 44197 | AH141: 418488 | AI141: PEDAGOGISK VERKSAMHET | AJ141: Grönkullaskolan | AK141: Personal | AL141: Grundskola | AM141: Lärare | AQ141: Budget | AW141: 44197 | AX141: Löneökning | AY141: Finns
A142: Grönkullaskolan.xlsx | B142: Budget | C142: Preliminär Budget 231103 | F142: 2023-11-03T11:59:22 | H142: Cost | P142: 472312.68 | Q142: 472312.68 | R142: 472312.68 | S142: 472312.68 | AC142: 28840 | AD142: 100 | AF142: Lärare 10 | AG142: 44197 | AH142: 458556 | AI142: PEDAGOGISK VERKSAMHET | AJ142: Grönkullaskolan | AK142: Personal | AL142: Grundskola | AM142: Lärare | AQ142: Budget | AW142: 44197 | AX142: Löneökning | AY142: Finns
A143: Grönkullaskolan.xlsx | B143: Budget | C143: Preliminär Budget 231103 | F143: 2023-11-03T11:59:22 | H143: Cost | P143: 435628.2 | Q143: 435628.2 | R143: 435628.2 | S143: 435628.2 | AC143: 26600 | AD143: 50 | AF143: Lärare 11 | AG143: 44197 | AH143: 422940 | AI143: PEDAGOGISK VERKSAMHET | AJ143: Grönkullaskolan | AK143: Personal | AL143: Grundskola | AM143: Lärare | AQ143: Budget | AW143: 44197 | AX143: Löneökning | AY143: Finns
A144: Grönkullaskolan.xlsx | B144: Budget | C144: Preliminär Budget 231103 | F144: 2023-11-03T11:59:22 | H144: Cost | P144: 412700.4 | Q144: 412700.4 | R144: 412700.4 | S144: 412700.4 | AC144: 25200 | AD144: 50 | AF144: Lärare 12 | AG144: 44197 | AH144: 400680 | AI144: PEDAGOGISK VERKSAMHET | AJ144: Grönkullaskolan | AK144: Personal | AL144: Grundskola | AM144: Lärare | AQ144: Budget | AW144: 44197 | AX144: Löneökning | AY144: Finns
A145: Grönkullaskolan.xlsx | B145: Budget | C145: Preliminär Budget 231103 | F145: 2023-11-03T11:59:22 | H145: Cost | P145: 449384.88 | Q145: 449384.88 | R145: 449384.88 | S145: 449384.88 | AC145: 27440 | AD145: 100 | AF145: Lärare 13 | AG145: 44197 | AH145: 436296 | AI145: PEDAGOGISK VERKSAMHET | AJ145: Grönkullaskolan | AK145: Personal | AL145: Grundskola | AM145: Lärare | AQ145: Budget | AW145: 44197 | AX145: Löneökning | AY145: Finns
A146: Grönkullaskolan.xlsx | B146: Budget | C146: Preliminär Budget 231103 | F146: 2023-11-03T11:59:22 | H146: Cost | P146: 435628.2 | Q146: 435628.2 | R146: 435628.2 | S146: 435628.2 | AC146: 26600 | AD146: 100 | AF146: Lärare 14 | AG146: 44197 | AH146: 422940 | AI146: PEDAGOGISK VERKSAMHET | AJ146: Grönkullaskolan | AK146: Personal | AL146: Grundskola | AM146: Lärare | AQ146: Budget | AW146: 44197 | AX146: Löneökning | AY146: Finns
A147: Grönkullaskolan.xlsx | B147: Budget | C147: Preliminär Budget 231103 | F147: 2023-11-03T11:59:22 | H147: Cost | P147: 435628.2 | Q147: 435628.2 | R147: 435628.2 | S147: 435628.2 | AC147: 26600 | AD147: 100 | AF147: Lärare 15 | AG147: 44197 | AH147: 422940 | AI147: PEDAGOGISK VERKSAMHET | AJ147: Grönkullaskolan | AK147: Personal | AL147: Grundskola | AM147: Lärare | AQ147: Budget | AW147: 44197 | AX147: Löneökning | AY147: Finns
A148: Grönkullaskolan.xlsx | B148: Budget | C148: Preliminär Budget 231103 | F148: 2023-11-03T11:59:22 | H148: Cost | P148: 449384.88 | Q148: 449384.88 | R148: 449384.88 | S148: 449384.88 | AC148: 27440 | AD148: 100 | AF148: Lärare 16 | AG148: 44197 | AH148: 436296 | AI148: PEDAGOGISK VERKSAMHET | AJ148: Grönkullaskolan | AK148: Personal | AL148: Grundskola | AM148: Lärare | AQ148: Budget | AW148: 44197 | AX148: Löneökning | AY148: Finns
A149: Grönkullaskolan.xlsx | B149: Budget | C149: Preliminär Budget 231103 | F149: 2023-11-03T11:59:22 | H149: Cost | P149: 426457.08 | Q149: 426457.08 | R149: 426457.08 | S149: 426457.08 | AC149: 26040 | AD149: 100 | AF149: Lärare 17 | AG149: 44197 | AH149: 414036 | AI149: PEDAGOGISK VERKSAMHET | AJ149: Grönkullaskolan | AK149: Personal | AL149: Grundskola | AM149: Lärare | AQ149: Budget | AW149: 44197 | AX149: Löneökning | AY149: Finns
A150: Grönkullaskolan.xlsx | B150: Budget | C150: Preliminär Budget 231103 | F150: 2023-11-03T11:59:22 | H150: Cost | P150: 444799.32 | Q150: 444799.32 | R150: 444799.32 | S150: 444799.32 | AC150: 27160 | AD150: 100 | AF150: Lärare 18 | AG150: 44197 | AH150: 431844 | AI150: PEDAGOGISK VERKSAMHET | AJ150: Grönkullaskolan | AK150: Personal | AL150: Grundskola | AM150: Lärare | AQ150: Budget | AW150: 44197 | AX150: Löneökning | AY150: Finns
A151: Grönkullaskolan.xlsx | B151: Budget | C151: Preliminär Budget 231103 | F151: 2023-11-03T11:59:22 | H151: Cost | Q151: 0 | R151: 0 | S151: 0 | AC151: 25200 | AD151: 100 | AF151: Lärare 19 | AG151: 44197 | AH151: 400680 | AI151: PEDAGOGISK VERKSAMHET | AJ151: Grönkullaskolan | AK151: Personal | AL151: Grundskola | AM151: Lärare | AQ151: Budget | AW151: 44197 | AX151: Vakant | AY151: Finns
A152: Grönkullaskolan.xlsx | B152: Budget | C152: Preliminär Budget 231103 | F152: 2023-11-03T11:59:22 | H152: Cost | P152: 504411.6 | Q152: 504411.6 | R152: 504411.6 | S152: 504411.6 | AC152: 30800 | AD152: 100 | AF152: Lärare 20 | AG152: 44197 | AH152: 489720 | AI152: PEDAGOGISK VERKSAMHET | AJ152: Grönkullaskolan | AK152: Personal | AL152: Grundskola | AM152: Lärare | AQ152: Budget | AW152: 44197 | AX152: Löneökning | AY152: Finns
A153: Grönkullaskolan.xlsx | B153: Budget | C153: Preliminär Budget 231103 | F153: 2023-11-03T11:59:22 | H153: Cost | P153: 440213.76 | Q153: 440213.76 | R153: 440213.76 | S153: 440213.76 | AC153: 26880 | AD153: 100 | AF153: Rektor | AG153: 44197 | AH153: 427392 | AI153: PEDAGOGISK VERKSAMHET | AJ153: Grönkullaskolan | AK153: Personal | AL153: Grundskola | AM153: Administrativ personal | AQ153: Budget | AW153: 44197 | AX153: Löneökning | AY153: Finns
A154: Grönkullaskolan.xlsx | B154: Budget | C154: Preliminär Budget 231103 | F154: 2023-11-03T11:59:22 | H154: Cost | P154: 487379.52 | Q154: 487379.52 | R154: 487379.52 | S154: 487379.52 | AC154: 29760 | AD154: 100 | AF154: Resurslärare | AG154: 44197 | AH154: 473184 | AI154: PEDAGOGISK VERKSAMHET | AJ154: Grönkullaskolan | AK154: Personal | AL154: Grundskola | AM154: Lärare | AQ154: Budget | AW154: 44197 | AX154: Löneökning | AY154: Finns
A155: Grönkullaskolan.xlsx | B155: Budget | C155: Preliminär Budget 231103 | F155: 2023-11-03T11:59:22 | H155: Cost | P155: 550000 | Q155: 550000 | R155: 550000 | S155: 550000 | AF155: Material | AG155: 44197 | AH155: 636000 | AI155: PEDAGOGISK VERKSAMHET | AJ155: Grönkullaskolan | AK155: Material | AL155: Grundskola | AM155: Skolmaterial | AQ155: Budget | AW155: 44197 | AY155: Saknas
A156: Grönkullaskolan.xlsx | B156: Budget | C156: Preliminär Budget 231103 | F156: 2023-11-03T11:59:22 | H156: Cost | P156: 900000 | Q156: 900000 | R156: 900000 | S156: 900000 | AF156: Lokalhyra | AG156: 44197 | AH156: 720000 | AI156: PEDAGOGISK VERKSAMHET | AJ156: Grönkullaskolan | AK156: Fastigheter och Inventarier | AL156: Grundskola | AM156: Lokalhyra | AQ156: Budget | AW156: 44197 | AX156: Ytterligare hyresökning | AY156: Finns
A157: Grönkullaskolan.xlsx | B157: Budget | C157: Preliminär Budget 231103 | F157: 2023-11-03T11:59:22 | H157: Fact | Q157: 0 | R157: 0 | S157: 0 | AE157: 205 | AF157: Antal elever | AG157: 44197 | AI157: PEDAGOGISK VERKSAMHET | AJ157: Grönkullaskolan | AK157: Antal elever | AL157: Grundskola | AM157: Antal elever | AQ157: Budget | AW157: 44197 | AY157: Saknas
A158: Hjortbergaskolan.xlsx | B158: Budget | C158: Preliminär Budget 231103 | F158: 2023-11-03T11:59:22 | H158: Cost | P158: 458645.04 | Q158: 458645.04 | R158: 458645.04 | S158: 458645.04 | AC158: 28280 | AD158: 100 | AF158: Lärare 1 | AG158: 44197 | AH158: 449652 | AI158: PEDAGOGISK VERKSAMHET | AJ158: Hjortbergaskolan | AK158: Personal | AL158: Grundskola | AM158: Lärare | AQ158: Budget | AW158: 44197 | AX158: Löneökning | AY158: Finns
A159: Hjortbergaskolan.xlsx | B159: Budget | C159: Preliminär Budget 231103 | F159: 2023-11-03T11:59:22 | H159: Cost | P159: 431398.8 | Q159: 431398.8 | R159: 431398.8 | S159: 431398.8 | AC159: 26600 | AD159: 100 | AF159: Lärare 2 | AG159: 44197 | AH159: 422940 | AI159: PEDAGOGISK VERKSAMHET | AJ159: Hjortbergaskolan | AK159: Personal | AL159: Grundskola | AM159: Lärare | AQ159: Budget | AW159: 44197 | AX159: Löneökning | AY159: Finns
A160: Hjortbergaskolan.xlsx | B160: Budget | C160: Preliminär Budget 231103 | F160: 2023-11-03T11:59:22 | H160: Cost | P160: 481350.24 | Q160: 481350.24 | R160: 481350.24 | S160: 481350.24 | AC160: 29680 | AD160: 100 | AF160: Lärare 3 | AG160: 44197 | AH160: 471912 | AI160: PEDAGOGISK VERKSAMHET | AJ160: Hjortbergaskolan | AK160: Personal | AL160: Grundskola | AM160: Lärare | AQ160: Budget | AW160: 44197 | AX160: Löneökning | AY160: Finns
A161: Hjortbergaskolan.xlsx | B161: Budget | C161: Preliminär Budget 231103 | F161: 2023-11-03T11:59:22 | H161: Cost | P161: 467727.12 | Q161: 467727.12 | R161: 467727.12 | S161: 467727.12 | AC161: 28840 | AD161: 100 | AF161: Lärare 4 | AG161: 44197 | AH161: 458556 | AI161: PEDAGOGISK VERKSAMHET | AJ161: Hjortbergaskolan | AK161: Personal | AL161: Grundskola | AM161: Lärare | AQ161: Budget | AW161: 44197 | AX161: Löneökning | AY161: Finns
A162: Hjortbergaskolan.xlsx | B162: Budget | C162: Preliminär Budget 231103 | F162: 2023-11-03T11:59:22 | H162: Cost | P162: 431398.8 | Q162: 431398.8 | R162: 431398.8 | S162: 431398.8 | AC162: 26600 | AD162: 100 | AF162: Lärare 5 | AG162: 44197 | AH162: 422940 | AI162: PEDAGOGISK VERKSAMHET | AJ162: Hjortbergaskolan | AK162: Personal | AL162: Grundskola | AM162: Lärare | AQ162: Budget | AW162: 44197 | AX162: Löneökning | AY162: Finns
A163: Hjortbergaskolan.xlsx | B163: Budget | C163: Preliminär Budget 231103 | F163: 2023-11-03T11:59:22 | H163: Cost | P163: 431398.8 | Q163: 431398.8 | R163: 431398.8 | S163: 431398.8 | AC163: 26600 | AD163: 100 | AF163: Lärare 6 | AG163: 44197 | AH163: 422940 | AI163: PEDAGOGISK VERKSAMHET | AJ163: Hjortbergaskolan | AK163: Personal | AL163: Grundskola | AM163: Lärare | AQ163: Budget | AW163: 44197 | AX163: Löneökning | AY163: Finns
A164: Hjortbergaskolan.xlsx | B164: Budget | C164: Preliminär Budget 231103 | F164: 2023-11-03T11:59:22 | H164: Cost | P164: 435939.84 | Q164: 435939.84 | R164: 435939.84 | S164: 435939.84 | AC164: 26880 | AD164: 100 | AF164: Lärare 7 | AG164: 44197 | AH164: 427392 | AI164: PEDAGOGISK VERKSAMHET | AJ164: Hjortbergaskolan | AK164: Personal | AL164: Grundskola | AM164: Lärare | AQ164: Budget | AW164: 44197 | AX164: Löneökning | AY164: Finns
A165: Hjortbergaskolan.xlsx | B165: Budget | C165: Preliminär Budget 231103 | F165: 2023-11-03T11:59:22 | H165: Cost | P165: 435939.84 | Q165: 435939.84 | R165: 435939.84 | S165: 435939.84 | AC165: 26880 | AD165: 100 | AF165: Lärare 8 | AG165: 44197 | AH165: 427392 | AI165: PEDAGOGISK VERKSAMHET | AJ165: Hjortbergaskolan | AK165: Personal | AL165: Grundskola | AM165: Lärare | AQ165: Budget | AW165: 44197 | AX165: Löneökning | AY165: Finns
A166: Hjortbergaskolan.xlsx | B166: Budget | C166: Preliminär Budget 231103 | F166: 2023-11-03T11:59:22 | H166: Cost | P166: 463186.08 | Q166: 463186.08 | R166: 463186.08 | S166: 463186.08 | AC166: 28560 | AD166: 100 | AF166: Lärare 9 | AG166: 44197 | AH166: 454104 | AI166: PEDAGOGISK VERKSAMHET | AJ166: Hjortbergaskolan | AK166: Personal | AL166: Grundskola | AM166: Lärare | AQ166: Budget | AW166: 44197 | AX166: Löneökning | AY166: Finns
A167: Hjortbergaskolan.xlsx | B167: Budget | C167: Preliminär Budget 231103 | F167: 2023-11-03T11:59:22 | H167: Cost | P167: 417775.68 | Q167: 417775.68 | R167: 417775.68 | S167: 417775.68 | AC167: 25760 | AD167: 25 | AF167: Lärare 10 | AG167: 44197 | AH167: 409584 | AI167: PEDAGOGISK VERKSAMHET | AJ167: Hjortbergaskolan | AK167: Personal | AL167: Grundskola | AM167: Lärare | AQ167: Budget | AW167: 44197 | AX167: Löneökning | AY167: Finns
A168: Hjortbergaskolan.xlsx | B168: Budget | C168: Preliminär Budget 231103 | F168: 2023-11-03T11:59:22 | H168: Cost | P168: 449562.96 | Q168: 449562.96 | R168: 449562.96 | S168: 449562.96 | AC168: 27720 | AD168: 75 | AF168: Lärare 11 | AG168: 44197 | AH168: 440748 | AI168: PEDAGOGISK VERKSAMHET | AJ168: Hjortbergaskolan | AK168: Personal | AL168: Grundskola | AM168: Lärare | AQ168: Budget | AW168: 44197 | AX168: Löneökning | AY168: Finns
A169: Hjortbergaskolan.xlsx | B169: Budget | C169: Preliminär Budget 231103 | F169: 2023-11-03T11:59:22 | H169: Cost | P169: 431398.8 | Q169: 431398.8 | R169: 431398.8 | S169: 431398.8 | AC169: 26600 | AD169: 100 | AF169: Lärare 12 | AG169: 44197 | AH169: 422940 | AI169: PEDAGOGISK VERKSAMHET | AJ169: Hjortbergaskolan | AK169: Personal | AL169: Grundskola | AM169: Lärare | AQ169: Budget | AW169: 44197 | AX169: Löneökning | AY169: Finns
A170: Hjortbergaskolan.xlsx | B170: Budget | C170: Preliminär Budget 231103 | F170: 2023-11-03T11:59:22 | H170: Cost | P170: 472268.16 | Q170: 472268.16 | R170: 472268.16 | S170: 472268.16 | AC170: 29120 | AD170: 100 | AF170: Lärare 13 | AG170: 44197 | AH170: 463008 | AI170: PEDAGOGISK VERKSAMHET | AJ170: Hjortbergaskolan | AK170: Personal | AL170: Grundskola | AM170: Lärare | AQ170: Budget | AW170: 44197 | AX170: Löneökning | AY170: Finns
A171: Hjortbergaskolan.xlsx | B171: Budget | C171: Preliminär Budget 231103 | F171: 2023-11-03T11:59:22 | H171: Cost | P171: 445021.92 | Q171: 445021.92 | R171: 445021.92 | S171: 445021.92 | AC171: 27440 | AD171: 100 | AF171: Lärare 14 | AG171: 44197 | AH171: 436296 | AI171: PEDAGOGISK VERKSAMHET | AJ171: Hjortbergaskolan | AK171: Personal | AL171: Grundskola | AM171: Lärare | AQ171: Budget | AW171: 44197 | AX171: Löneökning | AY171: Finns
A172: Hjortbergaskolan.xlsx | B172: Budget | C172: Preliminär Budget 231103 | F172: 2023-11-03T11:59:22 | H172: Cost | P172: 485891.28 | Q172: 485891.28 | R172: 485891.28 | S172: 485891.28 | AC172: 29960 | AD172: 100 | AF172: Lärare 15 | AG172: 44197 | AH172: 476364 | AI172: PEDAGOGISK VERKSAMHET | AJ172: Hjortbergaskolan | AK172: Personal | AL172: Grundskola | AM172: Lärare | AQ172: Budget | AW172: 44197 | AX172: Löneökning | AY172: Finns
A173: Hjortbergaskolan.xlsx | B173: Budget | C173: Preliminär Budget 231103 | F173: 2023-11-03T11:59:22 | H173: Cost | P173: 454104 | Q173: 454104 | R173: 454104 | S173: 454104 | AC173: 28000 | AD173: 100 | AF173: Lärare 16 | AG173: 44197 | AH173: 445200 | AI173: PEDAGOGISK VERKSAMHET | AJ173: Hjortbergaskolan | AK173: Personal | AL173: Grundskola | AM173: Lärare | AQ173: Budget | AW173: 44197 | AX173: Löneökning | AY173: Finns
A174: Hjortbergaskolan.xlsx | B174: Budget | C174: Preliminär Budget 231103 | F174: 2023-11-03T11:59:22 | H174: Cost | Q174: 0 | R174: 0 | S174: 0 | AC174: 30800 | AD174: 100 | AF174: Lärare 17 | AG174: 44197 | AH174: 489720 | AI174: PEDAGOGISK VERKSAMHET | AJ174: Hjortbergaskolan | AK174: Personal | AL174: Grundskola | AM174: Lärare | AQ174: Budget | AW174: 44197 | AX174: Vakant | AY174: Finns
A175: Hjortbergaskolan.xlsx | B175: Budget | C175: Preliminär Budget 231103 | F175: 2023-11-03T11:59:22 | H175: Cost | P175: 490432.32 | Q175: 490432.32 | R175: 490432.32 | S175: 490432.32 | AC175: 30240 | AD175: 100 | AF175: Lärare 18 | AG175: 44197 | AH175: 480816 | AI175: PEDAGOGISK VERKSAMHET | AJ175: Hjortbergaskolan | AK175: Personal | AL175: Grundskola | AM175: Lärare | AQ175: Budget | AW175: 44197 | AX175: Löneökning | AY175: Finns
A176: Hjortbergaskolan.xlsx | B176: Budget | C176: Preliminär Budget 231103 | F176: 2023-11-03T11:59:22 | H176: Cost | P176: 449562.96 | Q176: 449562.96 | R176: 449562.96 | S176: 449562.96 | AC176: 27720 | AD176: 50 | AF176: Lärare 19 | AG176: 44197 | AH176: 440748 | AI176: PEDAGOGISK VERKSAMHET | AJ176: Hjortbergaskolan | AK176: Personal | AL176: Grundskola | AM176: Lärare | AQ176: Budget | AW176: 44197 | AX176: Löneökning | AY176: Finns
A177: Hjortbergaskolan.xlsx | B177: Budget | C177: Preliminär Budget 231103 | F177: 2023-11-03T11:59:22 | H177: Cost | P177: 408693.6 | Q177: 408693.6 | R177: 408693.6 | S177: 408693.6 | AC177: 25200 | AD177: 100 | AF177: Lärare 20 | AG177: 44197 | AH177: 400680 | AI177: PEDAGOGISK VERKSAMHET | AJ177: Hjortbergaskolan | AK177: Personal | AL177: Grundskola | AM177: Lärare | AQ177: Budget | AW177: 44197 | AX177: Löneökning | AY177: Finns
A178: Hjortbergaskolan.xlsx | B178: Budget | C178: Preliminär Budget 231103 | F178: 2023-11-03T11:59:22 | H178: Cost | P178: 418488 | Q178: 418488 | R178: 418488 | S178: 418488 | AC178: 26320 | AD178: 100 | AF178: Rektor | AG178: 44197 | AH178: 418488 | AI178: PEDAGOGISK VERKSAMHET | AJ178: Hjortbergaskolan | AK178: Personal | AL178: Grundskola | AM178: Administrativ personal | AQ178: Budget | AW178: 44197 | AX178: Löneökning | AY178: Finns
A179: Hjortbergaskolan.xlsx | B179: Budget | C179: Preliminär Budget 231103 | F179: 2023-11-03T11:59:22 | P179: 559680 | Q179: 559680 | R179: 559680 | S179: 559680 | AC179: 35200 | AD179: 100 | AF179: Resurslärare | AG179: 44197 | AH179: 559680 | AI179: PEDAGOGISK VERKSAMHET | AJ179: Hjortbergaskolan | AK179: Personal | AL179: Grundskola | AM179: Lärare | AQ179: Budget | AW179: 44197 | AX179: Löneökning | AY179: Finns
A180: Hjortbergaskolan.xlsx | B180: Budget | C180: Preliminär Budget 231103 | F180: 2023-11-03T11:59:22 | H180: Cost | P180: 7000000 | Q180: 7000000 | R180: 7000000 | S180: 7000000 | AF180: Material | AG180: 44197 | AH180: 534000 | AI180: PEDAGOGISK VERKSAMHET | AJ180: Hjortbergaskolan | AK180: Material | AL180: Grundskola | AM180: Skolmaterial | AQ180: Budget | AW180: 44197 | AX180: Dyrare material | AY180: Finns
A181: Hjortbergaskolan.xlsx | B181: Budget | C181: Preliminär Budget 231103 | F181: 2023-11-03T11:59:22 | H181: Cost | P181: 2000000 | Q181: 2000000 | R181: 2000000 | S181: 2000000 | AF181: Lokalhyra | AG181: 44197 | AH181: 1170000 | AI181: PEDAGOGISK VERKSAMHET | AJ181: Hjortbergaskolan | AK181: Fastigheter och Inventarier | AL181: Grundskola | AM181: Lokalhyra | AQ181: Budget | AW181: 44197 | AX181: Hyreshöjning | AY181: Finns
A182: Hjortbergaskolan.xlsx | B182: Budget | C182: Preliminär Budget 231103 | F182: 2023-11-03T11:59:22 | H182: Fact | Q182: 0 | R182: 0 | S182: 0 | AF182: Antal elever | AG182: 44197 | AI182: PEDAGOGISK VERKSAMHET | AJ182: Hjortbergaskolan | AK182: Antal elever | AL182: Grundskola | AM182: Antal elever | AQ182: Budget | AW182: 44197 | AY182: Saknas
A183: KULTUR OCH FRITID.xlsx | B183: Budget | C183: Preliminär Budget 231103 | F183: 2023-11-03T11:59:22 | H183: Cost | Q183: 0 | R183: 0 | S183: 0 | AF183: Stöd till studieorganisationer | AG183: 44197 | AI183: KULTUR OCH FRITID | AK183: Personal | AL183: Stöd till studieorganisationer | AQ183: Budget | AW183: 44197 | AY183: Saknas
A184: KULTUR OCH FRITID.xlsx | B184: Budget | C184: Preliminär Budget 231103 | F184: 2023-11-03T11:59:22 | H184: Cost | P184: 5000000 | Q184: 5000000 | R184: 5000000 | S184: 5000000 | AF184: Allmän kulturverksamhet, övrigt | AG184: 44197 | AH184: 5479000 | AI184: KULTUR OCH FRITID | AK184: Material | AL184: Allmän kulturverksamhet, övrigt | AQ184: Budget | AW184: 44197 | AX184: Nedskärning genomförd | AY184: Finns
A185: KULTUR OCH FRITID.xlsx | B185: Budget | C185: Preliminär Budget 231103 | F185: 2023-11-03T11:59:22 | H185: Cost | P185: 3048000 | Q185: 3048000 | R185: 3048000 | S185: 3048000 | AF185: Bibliotek | AG185: 44197 | AH185: 3048000 | AI185: KULTUR OCH FRITID | AK185: Tjänster | AL185: Bibliotek | AQ185: Budget | AW185: 44197 | AY185: Saknas
A186: KULTUR OCH FRITID.xlsx | B186: Budget | C186: Preliminär Budget 231103 | F186: 2023-11-03T11:59:22 | H186: Cost | P186: 3638000 | Q186: 3638000 | R186: 3638000 | S186: 3638000 | AF186: Musikskola / kulturskola | AG186: 44197 | AH186: 3638000 | AI186: KULTUR OCH FRITID | AK186: Personal | AL186: Musikskola / kulturskola | AQ186: Budget | AW186: 44197 | AY186: Saknas
A187: KULTUR OCH FRITID.xlsx | B187: Budget | C187: Preliminär Budget 231103 | F187: 2023-11-03T11:59:22 | H187: Cost | Q187: 0 | R187: 0 | S187: 0 | AF187: Allmän fritidsverksamhet | AG187: 44197 | AI187: KULTUR OCH FRITID | AK187: Material | AL187: Allmän fritidsverksamhet | AQ187: Budget | AW187: 44197 | AY187: Saknas
A188: KULTUR OCH FRITID.xlsx | B188: Budget | C188: Preliminär Budget 231103 | F188: 2023-11-03T11:59:22 | H188: Cost | P188: 13000000 | Q188: 13000000 | R188: 13000000 | S188: 13000000 | AF188: Idrotts- och fritidsanläggningar | AG188: 44197 | AH188: 12775000 | AI188: KULTUR OCH FRITID | AK188: Personal | AL188: Idrotts- och fritidsanläggningar | AQ188: Budget | AW188: 44197 | AX188: Satsning inför OS | AY188: Finns
A189: KULTUR OCH FRITID.xlsx | B189: Budget | C189: Preliminär Budget 231103 | F189: 2023-11-03T11:59:22 | H189: Cost | P189: 550000 | Q189: 550000 | R189: 550000 | S189: 550000 | AF189: Fritidsgårdar | AG189: 44197 | AI189: KULTUR OCH FRITID | AK189: Material | AL189: Fritidsgårdar | AQ189: Budget | AW189: 44197 | AX189: Ny fritidsgård | AY189: Finns
A190: Miljö och Hälsa.xlsx | B190: Budget | C190: Preliminär Budget 231103 | F190: 2023-11-03T11:59:22 | H190: Cost | P190: 2000000 | Q190: 2000000 | R190: 2000000 | S190: 2000000 | AF190: Miljö- och hälsoskydd, myndighetsutövning | AG190: 44197 | AH190: 2695000 | AI190: INFRASTRUKTUR, SKYDD mm | AK190: Personal | AL190: Miljö- och hälsoskydd, myndighetsutövning | AQ190: Budget | AW190: 44197 | AY190: Saknas
A191: Miljö och Hälsa.xlsx | B191: Budget | C191: Preliminär Budget 231103 | F191: 2023-11-03T11:59:22 | H191: Cost | P191: 695000 | Q191: 695000 | R191: 695000 | S191: 695000 | AF191: Miljö- och hälsoskydd, myndighetsutövning | AG191: 44197 | AI191: INFRASTRUKTUR, SKYDD mm | AK191: Tjänster | AL191: Miljö- och hälsoskydd, myndighetsutövning | AQ191: Budget | AW191: 44197 | AY191: Saknas
A192: Miljö och Hälsa.xlsx | B192: Budget | C192: Preliminär Budget 231103 | F192: 2023-11-03T11:59:22 | H192: Cost | Q192: 0 | R192: 0 | S192: 0 | AF192: Miljö- hälsa och hållbar utveckling | AG192: 44197 | AI192: INFRASTRUKTUR, SKYDD mm | AK192: Material | AL192: Miljö- hälsa och hållbar utveckling | AQ192: Budget | AW192: 44197 | AY192: Saknas
A193: Miljö och Hälsa.xlsx | B193: Budget | C193: Preliminär Budget 231103 | F193: 2023-11-03T11:59:22 | H193: Cost | P193: 140000 | Q193: 140000 | R193: 140000 | S193: 140000 | AF193: Alkoholtillstånd m.m. | AG193: 44197 | AH193: 140000 | AI193: INFRASTRUKTUR, SKYDD mm | AK193: Tjänster | AL193: Alkoholtillstånd m.m. | AQ193: Budget | AW193: 44197 | AY193: Saknas
A194: Miljö och Hälsa.xlsx | B194: Budget | C194: Preliminär Budget 231103 | F194: 2023-11-03T11:59:22 | H194: Cost | P194: 8344000 | Q194: 8344000 | R194: 8344000 | S194: 8344000 | AF194: Räddningstjänst | AG194: 44197 | AH194: 9344000 | AI194: INFRASTRUKTUR, SKYDD mm | AK194: Personal | AL194: Räddningstjänst | AQ194: Budget | AW194: 44197 | AY194: Saknas
A195: Miljö och Hälsa.xlsx | B195: Budget | C195: Preliminär Budget 231103 | F195: 2023-11-03T11:59:22 | H195: Cost | P195: 1000000 | Q195: 1000000 | R195: 1000000 | S195: 1000000 | AF195: Räddningstjänst | AG195: 44197 | AI195: INFRASTRUKTUR, SKYDD mm | AK195: Material | AL195: Räddningstjänst | AQ195: Budget | AW195: 44197 | AY195: Saknas

Sheet tmpDB
A7: FileName | B7: SheetName | C7: Scenario | D7: Organisation | E7: Unit | F7: ImportTime | G7: Market | H7: IncomeOrCost | I7: SubCategory | J7: Title | K7: Date | L7: Comment | M7: KST | N7: Responsible | O7: ManagersComment | P7: Budget | Q7: BudgetPositive | R7: BudgetCostNegative | S7: BudgetChange | T7: _TestNyKolumn | U7: Namn | V7: Befattning | W7: Tjänstgöringsgrad % | X7: Belopp | Y7: Ny lön(lönerev) | Z7: Lönekontering/projekt % | AA7: Projekt | AB7: Lönegrupp | AC7: Antal månader | AD7: LKP vid heltid | AE7: Årskst lön/projekt | AF7: Årskst LKP/projekt | AG7: Lön inkl LKP övriga proj | AH7: Kommentarer | AI7: Proj | AJ7: Proj (Text) | AK7: Konto | AL7: Konto (Text) | AM7: Verks | AN7: Utfall_Föregående År | AO7: Årsbudget_Föregående År | AP7: Kommentar | AQ7: Olle | AR7: NyttProjectNo | AS7: Område | AT7: Belopp | AU7: as | AV7: ScenarioVar | AW7: Kategori | AX7: Personaltyp | AY7: Månadslön | AZ7: Årlig tjänstgöringsgrad | BA7: Fakta
A10: FileName | B10: SheetName | C10: Scenario | D10: Organisation | E10: Unit | F10: ImportTime | G10: Market | H10: IncomeOrCost | I10: SubCategory | J10: Title | K10: Date | L10: Comment | M10: KST | N10: Responsible | O10: ManagersComment | P10: Budget | Q10: BudgetPositive | R10: BudgetCostNegative | S10: BudgetChange | T10: _TestNyKolumn | U10: Namn | V10: Befattning | W10: Tjänstgöringsgrad % | X10: Belopp | Y10: Ny lön(lönerev) | Z10: Lönekontering/projekt % | AA10: Projekt | AB10: Lönegrupp | AC10: Antal månader | AD10: LKP vid heltid | AE10: Årskst lön/projekt | AF10: Årskst LKP/projekt | AG10: Lön inkl LKP övriga proj | AH10: Kommentarer | AI10: Proj | AJ10: Proj (Text) | AK10: Konto | AL10: Konto (Text) | AM10: Verks | AN10: Utfall_Föregående År | AO10: Årsbudget_Föregående År | AP10: Kommentar | AQ10: Olle | AR10: NyttProjectNo | AS10: Område | AT10: Belopp | AU10: as | AV10: ScenarioVar | AW10: Kategori | AX10: Personaltyp | AY10: Månadslön | AZ10: Årlig tjänstgöringsgrad | BA10: Fakta
A11: PolitisktVerksamhet | B11: Budget | C11: Initiala Underlag | D11: POLITISK VERKSAMHET | F11: 2023-11-02T10:54:27 | H11: Cost | I11: Nämnd- och styrelseverksamhet | J11: Nämnd- och styrelseverksamhet | K11: 44197 | P11: 5107200 | AW11: Personal
A12: PolitisktVerksamhet | B12: Budget | C12: Initiala Underlag | D12: POLITISK VERKSAMHET | F12: 2023-11-02T10:54:27 | H12: Cost | I12: Nämnd- och styrelseverksamhet | J12: Nämnd- och styrelseverksamhet | K12: 44197 | P12: 638400 | AW12: Material
A13: PolitisktVerksamhet | B13: Budget | C13: Initiala Underlag | D13: POLITISK VERKSAMHET | F13: 2023-11-02T10:54:27 | H13: Cost | I13: Nämnd- och styrelseverksamhet | J13: Nämnd- och styrelseverksamhet | K13: 44197 | P13: 638400 | AW13: Tjänster
A14: PolitisktVerksamhet | B14: Budget | C14: Initiala Underlag | D14: POLITISK VERKSAMHET | F14: 2023-11-02T10:54:27 | H14: Cost | I14: Stöd till politiska partier | J14: Stöd till politiska partier | K14: 44197 | P14: 558000 | AW14: Bidrag
A15: PolitisktVerksamhet | B15: Budget | C15: Initiala Underlag | D15: POLITISK VERKSAMHET | F15: 2023-11-02T10:54:27 | H15: Cost | I15: Revision | J15: Revision | K15: 44197 | P15: 667000 | AW15: Tjänster
A16: PolitisktVerksamhet | B16: Budget | C16: Initiala Underlag | D16: POLITISK VERKSAMHET | F16: 2023-11-02T10:54:27 | H16: Cost | I16: Övrig politisk verksamhet | J16: Övrig politisk verksamhet | K16: 44197 | P16: 983000 | AW16: Tjänster
A17: Fysisk planering | B17: Budget | C17: Initiala Underlag | D17: INFRASTRUKTUR, SKYDD mm | F17: 2023-11-02T10:54:27 | H17: Cost | I17: Fysisk och teknisk planering, bostadsförbättring | J17: Fysisk och teknisk planering, bostadsförbättring | K17: 44197 | P17: 9335000 | AW17: Personal
A18: Näringsliv etc | B18: Budget | C18: Initiala Underlag | D18: INFRASTRUKTUR, SKYDD mm | F18: 2023-11-02T10:54:27 | H18: Cost | I18: Näringslivsfrämjande åtgärder | J18: Näringslivsfrämjande åtgärder | K18: 44197 | P18: 16845000 | AW18: Personal
A19: Näringsliv etc | B19: Budget | C19: Initiala Underlag | D19: INFRASTRUKTUR, SKYDD mm | F19: 2023-11-02T10:54:27 | H19: Cost | I19: Konsument- och energirådgivning | J19: Konsument- och energirådgivning | K19: 44197 | P19: 0 | AW19: Material
A20: Näringsliv etc | B20: Budget | C20: Initiala Underlag | D20: INFRASTRUKTUR, SKYDD mm | F20: 2023-11-02T10:54:27 | H20: Cost | I20: Turistverksamhet | J20: Turistverksamhet | K20: 44197 | P20: 6246000 | AW20: Tjänster
A21: Fysisk planering | B21: Budget | C21: Initiala Underlag | D21: INFRASTRUKTUR, SKYDD mm | F21: 2023-11-02T10:54:27 | H21: Cost | I21: Väg- och järnvägsnät, parkering | J21: Väg- och järnvägsnät, parkering | K21: 44197 | P21: 6931000 | AW21: Material
A22: Fysisk planering | B22: Budget | C22: Initiala Underlag | D22: INFRASTRUKTUR, SKYDD mm | F22: 2023-11-02T10:54:27 | H22: Cost | I22: Parker | J22: Parker | K22: 44197 | P22: 1729000 | AW22: Tjänster
A23: Miljö och Hälsa | B23: Budget | C23: Initiala Underlag | D23: INFRASTRUKTUR, SKYDD mm | F23: 2023-11-02T10:54:27 | H23: Cost | I23: Miljö- och hälsoskydd, myndighetsutövning | J23: Miljö- och hälsoskydd, myndighetsutövning | K23: 44197 | P23: 2695000 | AW23: Personal
A24: Miljö och Hälsa | B24: Budget | C24: Initiala Underlag | D24: INFRASTRUKTUR, SKYDD mm | F24: 2023-11-02T10:54:27 | H24: Cost | I24: Miljö- hälsa och hållbar utveckling | J24: Miljö- hälsa och hållbar utveckling | K24: 44197 | P24: 0 | AW24: Material
A25: Miljö och Hälsa | B25: Budget | C25: Initiala Underlag | D25: INFRASTRUKTUR, SKYDD mm | F25: 2023-11-02T10:54:27 | H25: Cost | I25: Alkoholtillstånd m.m. | J25: Alkoholtillstånd m.m. | K25: 44197 | P25: 140000 | AW25: Tjänster
A26: Miljö och Hälsa | B26: Budget | C26: Initiala Underlag | D26: INFRASTRUKTUR, SKYDD mm | F26: 2023-11-02T10:54:27 | H26: Cost | I26: Räddningstjänst | J26: Räddningstjänst | K26: 44197 | P26: 9344000 | AW26: Personal
A27: Fysisk planering | B27: Budget | C27: Initiala Underlag | D27: INFRASTRUKTUR, SKYDD mm | F27: 2023-11-02T10:54:27 | H27: Cost | I27: Totalförsvar och samhällsskydd | J27: Totalförsvar och samhällsskydd | K27: 44197 | P27: 379000 | AW27: Material
A28: KULTUR OCH FRITID, TOTALT | B28: Budget | C28: Initiala Underlag | D28: INFRASTRUKTUR, SKYDD mm | F28: 2023-11-02T10:54:27 | H28: Cost | I28: KULTUR OCH FRITID, TOTALT | J28: KULTUR OCH FRITID, TOTALT | K28: 44197 | P28: 0 | AW28: Tjänster
A29: KULTUR OCH FRITID | B29: Budget | C29: Initiala Underlag | D29: KULTUR OCH FRITID | F29: 2023-11-02T10:54:27 | H29: Cost | I29: Stöd till studieorganisationer | J29: Stöd till studieorganisationer | K29: 44197 | P29: 0 | AW29: Personal
A30: KULTUR OCH FRITID | B30: Budget | C30: Initiala Underlag | D30: KULTUR OCH FRITID | F30: 2023-11-02T10:54:27 | H30: Cost | I30: Allmän kulturverksamhet, övrigt | J30: Allmän kulturverksamhet, övrigt | K30: 44197 | P30: 5479000 | AW30: Material
A31: KULTUR OCH FRITID | B31: Budget | C31: Initiala Underlag | D31: KULTUR OCH FRITID | F31: 2023-11-02T10:54:27 | H31: Cost | I31: Bibliotek | J31: Bibliotek | K31: 44197 | P31: 3048000 | AW31: Tjänster
A32: KULTUR OCH FRITID | B32: Budget | C32: Initiala Underlag | D32: KULTUR OCH FRITID | F32: 2023-11-02T10:54:27 | H32: Cost | I32: Musikskola / kulturskola | J32: Musikskola / kulturskola | K32: 44197 | P32: 3638000 | AW32: Personal
A33: KULTUR OCH FRITID | B33: Budget | C33: Initiala Underlag | D33: KULTUR OCH FRITID | F33: 2023-11-02T10:54:27 | H33: Cost | I33: Allmän fritidsverksamhet | J33: Allmän fritidsverksamhet | K33: 44197 | P33: 0 | AW33: Material
A34: KULTUR OCH FRITID | B34: Budget | C34: Initiala Underlag | D34: KULTUR OCH FRITID | F34: 2023-11-02T10:54:27 | H34: Cost | I34: Idrotts- och fritidsanläggningar | J34: Idrotts- och fritidsanläggningar | K34: 44197 | P34: 12775000 | AW34: Personal
A35: KULTUR OCH FRITID | B35: Budget | C35: Initiala Underlag | D35: KULTUR OCH FRITID | F35: 2023-11-02T10:54:27 | H35: Cost | I35: Fritidsgårdar | J35: Fritidsgårdar | K35: 44197 | P35: 0 | AW35: Material
A36: PEDAGOGISK VERKSAMHET | B36: Budget | C36: Initiala Underlag | D36: PEDAGOGISK VERKSAMHET | F36: 2023-11-02T10:54:27 | H36: Cost | I36: Öppen förskola | J36: Öppen förskola | K36: 44197 | P36: 0 | AW36: Tjänster
A37: PEDAGOGISK VERKSAMHET | B37: Budget | C37: Initiala Underlag | D37: PEDAGOGISK VERKSAMHET | F37: 2023-11-02T10:54:27 | H37: Cost | I37: Förskola | J37: Förskola | K37: 44197 | P37: 51873000 | AW37: Personal
A38: PEDAGOGISK VERKSAMHET | B38: Budget | C38: Initiala Underlag | D38: PEDAGOGISK VERKSAMHET | F38: 2023-11-02T10:54:27 | H38: Cost | I38: Pedagogisk omsorg | J38: Pedagogisk omsorg | K38: 44197 | P38: 0 | AW38: Material
A39: PEDAGOGISK VERKSAMHET | B39: Budget | C39: Initiala Underlag | D39: PEDAGOGISK VERKSAMHET | F39: 2023-11-02T10:54:27 | H39: Cost | I39: Öppen fritidsverksamhet | J39: Öppen fritidsverksamhet | K39: 44197 | P39: 0 | AW39: Tjänster
A40: PEDAGOGISK VERKSAMHET | B40: Budget | C40: Initiala Underlag | D40: PEDAGOGISK VERKSAMHET | F40: 2023-11-02T10:54:27 | H40: Cost | I40: Fritidshem | J40: Fritidshem | K40: 44197 | P40: 5422000 | AW40: Personal
A41: PEDAGOGISK VERKSAMHET | B41: Budget | C41: Initiala Underlag | D41: PEDAGOGISK VERKSAMHET | F41: 2023-11-02T10:54:27 | H41: Cost | I41: Förskoleklass | J41: Förskoleklass | K41: 44197 | P41: 6368000 | AW41: Material
A42: PEDAGOGISK VERKSAMHET | B42: Budget | C42: Initiala Underlag | D42: PEDAGOGISK VERKSAMHET | F42: 2023-11-02T10:54:27 | H42: Cost | I42: Grundsärskola | J42: Grundsärskola | K42: 44197 | P42: 2022000 | AW42: Tjänster
A43: PEDAGOGISK VERKSAMHET | B43: Budget | C43: Initiala Underlag | D43: PEDAGOGISK VERKSAMHET | F43: 2023-11-02T10:54:27 | H43: Cost | I43: Gymnasieskola | J43: Gymnasieskola | K43: 44197 | P43: 45308000 | AW43: Personal
A44: PEDAGOGISK VERKSAMHET | B44: Budget | C44: Initiala Underlag | D44: PEDAGOGISK VERKSAMHET | F44: 2023-11-02T10:54:27 | H44: Cost | I44: Gymnasiesärskola | J44: Gymnasiesärskola | K44: 44197 | P44: 0 | AW44: Material
A45: PEDAGOGISK VERKSAMHET | B45: Budget | C45: Initiala Underlag | D45: PEDAGOGISK VERKSAMHET | F45: 2023-11-02T10:54:27 | H45: Cost | I45: Grundläggande vuxenutbildning | J45: Grundläggande vuxenutbildning | K45: 44197 | P45: 0 | AW45: Tjänster
A46: PEDAGOGISK VERKSAMHET | B46: Budget | C46: Initiala Underlag | D46: PEDAGOGISK VERKSAMHET | F46: 2023-11-02T10:54:27 | H46: Cost | I46: Gymnasial vuxen- och påbyggnadsutbildning | J46: Gymnasial vuxen- och påbyggnadsutbildning | K46: 44197 | P46: 4894000 | AW46: Personal
A47: PEDAGOGISK VERKSAMHET | B47: Budget | C47: Initiala Underlag | D47: PEDAGOGISK VERKSAMHET | F47: 2023-11-02T10:54:27 | H47: Cost | I47: Särskild utbildning för vuxna | J47: Särskild utbildning för vuxna | K47: 44197 | P47: 0 | AW47: Material
A48: PEDAGOGISK VERKSAMHET | B48: Budget | C48: Initiala Underlag | D48: PEDAGOGISK VERKSAMHET | F48: 2023-11-02T10:54:27 | H48: Cost | I48: Högskoleutbildning m.m. | J48: Högskoleutbildning m.m. | K48: 44197 | P48: 478000 | AW48: Tjänster
A49: PEDAGOGISK VERKSAMHET | B49: Budget | C49: Initiala Underlag | D49: PEDAGOGISK VERKSAMHET | F49: 2023-11-02T10:54:27 | H49: Cost | I49: Svenska för invandrare | J49: Svenska för invandrare | K49: 44197 | P49: 3975000 | AW49: Personal
A50: PEDAGOGISK VERKSAMHET | B50: Budget | C50: Initiala Underlag | D50: PEDAGOGISK VERKSAMHET | F50: 2023-11-02T10:54:27 | H50: Cost | I50: Uppdragsutbildning m.m. | J50: Uppdragsutbildning m.m. | K50: 44197 | P50: 0 | AW50: Personal
A51: VÅRD OCH OMSORG | B51: Budget | C51: Initiala Underlag | D51: VÅRD OCH OMSORG | F51: 2023-11-02T10:54:27 | H51: Cost | I51: Primärvård | J51: Primärvård | K51: 44197 | P51: 0 | AW51: Material
A52: VÅRD OCH OMSORG | B52: Budget | C52: Initiala Underlag | D52: VÅRD OCH OMSORG | F52: 2023-11-02T10:54:27 | H52: Cost | I52: Hälso- och sjukvård, övrigt exkl. hemsjukvård | J52: Hälso- och sjukvård, övrigt exkl. hemsjukvård | K52: 44197 | P52: 0 | AW52: Tjänster
A53: VÅRD OCH OMSORG | B53: Budget | C53: Initiala Underlag | D53: VÅRD OCH OMSORG | F53: 2023-11-02T10:54:27 | H53: Cost | I53: Vård och omsorg om äldre | J53: Vård och omsorg om äldre | K53: 44197 | P53: 125217000 | AW53: Personal
A54: VÅRD OCH OMSORG | B54: Budget | C54: Initiala Underlag | D54: VÅRD OCH OMSORG | F54: 2023-11-02T10:54:27 | H54: Cost | I54: Insatser till personer med funktionsnedsättning (ej LSS/SFB) | J54: Insatser till personer med funktionsnedsättning (ej LSS/SFB) | K54: 44197 | P54: 6162000 | AW54: Material
A55: VÅRD OCH OMSORG | B55: Budget | C55: Initiala Underlag | D55: VÅRD OCH OMSORG | F55: 2023-11-02T10:54:27 | H55: Cost | I55: Insatser enligt LSS/SFB | J55: Insatser enligt LSS/SFB | K55: 44197 | P55: 57582000 | AW55: Tjänster
A56: VÅRD OCH OMSORG | B56: Budget | C56: Initiala Underlag | D56: VÅRD OCH OMSORG | F56: 2023-11-02T10:54:27 | H56: Cost | I56: Färdtjänst/riksfärdtjänst | J56: Färdtjänst/riksfärdtjänst | K56: 44197 | P56: 1103000 | AW56: Personal
A57: VÅRD OCH OMSORG | B57: Budget | C57: Initiala Underlag | D57: VÅRD OCH OMSORG | F57: 2023-11-02T10:54:27 | H57: Cost | I57: Vård för vuxna med missbruksproblem | J57: Vård för vuxna med missbruksproblem | K57: 44197 | P57: 4836000 | AW57: Material
A58: VÅRD OCH OMSORG | B58: Budget | C58: Initiala Underlag | D58: VÅRD OCH OMSORG | F58: 2023-11-02T10:54:27 | H58: Cost | I58: Barn och ungdomsvård | J58: Barn och ungdomsvård | K58: 44197 | P58: 18690000 | AW58: Tjänster
A59: VÅRD OCH OMSORG | B59: Budget | C59: Initiala Underlag | D59: VÅRD OCH OMSORG | F59: 2023-11-02T10:54:27 | H59: Cost | I59: Övriga insatser till vuxna | J59: Övriga insatser till vuxna | K59: 44197 | P59: 776000 | AW59: Personal
A60: VÅRD OCH OMSORG | B60: Budget | C60: Initiala Underlag | D60: VÅRD OCH OMSORG | F60: 2023-11-02T10:54:27 | H60: Cost | I60: Ekonomiskt bistånd | J60: Ekonomiskt bistånd | K60: 44197 | P60: 6854000 | AW60: Material
A61: VÅRD OCH OMSORG | B61: Budget | C61: Initiala Underlag | D61: VÅRD OCH OMSORG | F61: 2023-11-02T10:54:27 | H61: Cost | I61: Familjerätt och familjerådgivning | J61: Familjerätt och familjerådgivning | K61: 44197 | P61: 862000 | AW61: Tjänster
A62: VÅRD OCH OMSORG | B62: Budget | C62: Initiala Underlag | D62: VÅRD OCH OMSORG | F62: 2023-11-02T10:54:27 | H62: Cost | I62: SÄRSKILT RIKTADE INSATSER, TOTALT | J62: SÄRSKILT RIKTADE INSATSER, TOTALT | K62: 44197 | P62: 0 | AW62: Personal
A63: SÄRSKILT RIKTADE INSATSER | B63: Budget | C63: Initiala Underlag | D63: SÄRSKILT RIKTADE INSATSER | F63: 2023-11-02T10:54:27 | H63: Cost | I63: Flyktingmottagande | J63: Flyktingmottagande | K63: 44197 | P63: 2838000 | AW63: Material
A64: SÄRSKILT RIKTADE INSATSER | B64: Budget | C64: Initiala Underlag | D64: SÄRSKILT RIKTADE INSATSER | F64: 2023-11-02T10:54:27 | H64: Cost | I64: Arbetsmarknadsåtgärder | J64: Arbetsmarknadsåtgärder | K64: 44197 | P64: 6846000 | AW64: Tjänster
A65: AFFÄRSVERKSAMHET | B65: Budget | C65: Initiala Underlag | D65: AFFÄRSVERKSAMHET | F65: 2023-11-02T10:54:27 | H65: Income | I65: Arbetsområden och lokaler | J65: Arbetsområden och lokaler | K65: 44197 | P65: 1206000
A66: AFFÄRSVERKSAMHET | B66: Budget | C66: Initiala Underlag | D66: AFFÄRSVERKSAMHET | F66: 2023-11-02T10:54:27 | H66: Income | I66: Hamnverksamhet | J66: Hamnverksamhet | K66: 44197 | P66: 0
A67: AFFÄRSVERKSAMHET | B67: Budget | C67: Initiala Underlag | D67: AFFÄRSVERKSAMHET | F67: 2023-11-02T10:54:27 | H67: Income | I67: Kommersiell verksamhet | J67: Kommersiell verksamhet | K67: 44197 | P67: 156000
A68: AFFÄRSVERKSAMHET | B68: Budget | C68: Initiala Underlag | D68: AFFÄRSVERKSAMHET | F68: 2023-11-02T10:54:27 | H68: Income | I68: Bostadsverksamhet | J68: Bostadsverksamhet | K68: 44197 | P68: 149000
A69: AFFÄRSVERKSAMHET | B69: Budget | C69: Initiala Underlag | D69: AFFÄRSVERKSAMHET | F69: 2023-11-02T10:54:27 | H69: Income | I69: Flygtrafik | J69: Flygtrafik | K69: 44197 | P69: 0
A70: AFFÄRSVERKSAMHET | B70: Budget | C70: Initiala Underlag | D70: AFFÄRSVERKSAMHET | F70: 2023-11-02T10:54:27 | H70: Income | I70: Buss, bil och spårbundna persontransporter | J70: Buss, bil och spårbundna persontransporter | K70: 44197 | P70: 2258000
A71: AFFÄRSVERKSAMHET | B71: Budget | C71: Initiala Underlag | D71: AFFÄRSVERKSAMHET | F71: 2023-11-02T10:54:27 | H71: Income | I71: Sjötrafik | J71: Sjötrafik | K71: 44197 | P71: 0
A72: AFFÄRSVERKSAMHET | B72: Budget | C72: Initiala Underlag | D72: AFFÄRSVERKSAMHET | F72: 2023-11-02T10:54:27 | H72: Income | I72: Elförsörjning och gasförsörjning | J72: Elförsörjning och gasförsörjning | K72: 44197 | P72: 0
A73: AFFÄRSVERKSAMHET | B73: Budget | C73: Initiala Underlag | D73: AFFÄRSVERKSAMHET | F73: 2023-11-02T10:54:27 | H73: Income | I73: Fjärrvärmeförsörjning | J73: Fjärrvärmeförsörjning | K73: 44197 | P73: 0
A74: AFFÄRSVERKSAMHET | B74: Budget | C74: Initiala Underlag | D74: AFFÄRSVERKSAMHET | F74: 2023-11-02T10:54:27 | H74: Income | I74: Vattenförsörjning och avloppshantering | J74: Vattenförsörjning och avloppshantering | K74: 44197 | P74: 14001000
A75: AFFÄRSVERKSAMHET | B75: Budget | C75: Initiala Underlag | D75: AFFÄRSVERKSAMHET | F75: 2023-11-02T10:54:27 | H75: Income | I75: Avfallshantering | J75: Avfallshantering | K75: 44197 | P75: 9792000
A76: Grönkullaskolan | B76: Budget | C76: Initiala Underlag | D76: PEDAGOGISK VERKSAMHET | E76: Grönkullaskolan | F76: 2023-11-02T10:54:27 | H76: Cost | I76: Grundskola | J76: Lärare 1 | K76: 44197 | P76: 422940 | AW76: Personal | AX76: Lärare | AY76: 26600 | AZ76: 100
A77: Grönkullaskolan | B77: Budget | C77: Initiala Underlag | D77: PEDAGOGISK VERKSAMHET | E77: Grönkullaskolan | F77: 2023-11-02T10:54:27 | H77: Cost | I77: Grundskola | J77: Lärare 2 | K77: 44197 | P77: 409584 | AW77: Personal | AX77: Lärare | AY77: 25760 | AZ77: 100
A78: Grönkullaskolan | B78: Budget | C78: Initiala Underlag | D78: PEDAGOGISK VERKSAMHET | E78: Grönkullaskolan | F78: 2023-11-02T10:54:27 | H78: Cost | I78: Grundskola | J78: Lärare 3 | K78: 44197 | P78: 467460 | AW78: Personal | AX78: Lärare | AY78: 29400 | AZ78: 100
A79: Grönkullaskolan | B79: Budget | C79: Initiala Underlag | D79: PEDAGOGISK VERKSAMHET | E79: Grönkullaskolan | F79: 2023-11-02T10:54:27 | H79: Cost | I79: Grundskola | J79: Lärare 4 | K79: 44197 | P79: 445200 | AW79: Personal | AX79: Lärare | AY79: 28000 | AZ79: 100
A80: Grönkullaskolan | B80: Budget | C80: Initiala Underlag | D80: PEDAGOGISK VERKSAMHET | E80: Grönkullaskolan | F80: 2023-11-02T10:54:27 | H80: Cost | I80: Grundskola | J80: Lärare 5 | K80: 44197 | P80: 414036 | AW80: Personal | AX80: Lärare | AY80: 26040 | AZ80: 100
A81: Grönkullaskolan | B81: Budget | C81: Initiala Underlag | D81: PEDAGOGISK VERKSAMHET | E81: Grönkullaskolan | F81: 2023-11-02T10:54:27 | H81: Cost | I81: Grundskola | J81: Lärare 6 | K81: 44197 | P81: 463008 | AW81: Personal | AX81: Lärare | AY81: 29120 | AZ81: 100
A82: Grönkullaskolan | B82: Budget | C82: Initiala Underlag | D82: PEDAGOGISK VERKSAMHET | E82: Grönkullaskolan | F82: 2023-11-02T10:54:27 | H82: Cost | I82: Grundskola | J82: Lärare 7 | K82: 44197 | P82: 476364 | AW82: Personal | AX82: Lärare | AY82: 29960 | AZ82: 100
A83: Grönkullaskolan | B83: Budget | C83: Initiala Underlag | D83: PEDAGOGISK VERKSAMHET | E83: Grönkullaskolan | F83: 2023-11-02T10:54:27 | H83: Cost | I83: Grundskola | J83: Lärare 8 | K83: 44197 | P83: 476364 | AW83: Personal | AX83: Lärare | AY83: 29960 | AZ83: 100
A84: Grönkullaskolan | B84: Budget | C84: Initiala Underlag | D84: PEDAGOGISK VERKSAMHET | E84: Grönkullaskolan | F84: 2023-11-02T10:54:27 | H84: Cost | I84: Grundskola | J84: Lärare 9 | K84: 44197 | P84: 418488 | AW84: Personal | AX84: Lärare | AY84: 26320 | AZ84: 100
A85: Grönkullaskolan | B85: Budget | C85: Initiala Underlag | D85: PEDAGOGISK VERKSAMHET | E85: Grönkullaskolan | F85: 2023-11-02T10:54:27 | H85: Cost | I85: Grundskola | J85: Lärare 10 | K85: 44197 | P85: 458556 | AW85: Personal | AX85: Lärare | AY85: 28840 | AZ85: 100
A86: Grönkullaskolan | B86: Budget | C86: Initiala Underlag | D86: PEDAGOGISK VERKSAMHET | E86: Grönkullaskolan | F86: 2023-11-02T10:54:27 | H86: Cost | I86: Grundskola | J86: Lärare 11 | K86: 44197 | P86: 211470 | AW86: Personal | AX86: Lärare | AY86: 26600 | AZ86: 50
A87: Grönkullaskolan | B87: Budget | C87: Initiala Underlag | D87: PEDAGOGISK VERKSAMHET | E87: Grönkullaskolan | F87: 2023-11-02T10:54:27 | H87: Cost | I87: Grundskola | J87: Lärare 12 | K87: 44197 | P87: 200340 | AW87: Personal | AX87: Lärare | AY87: 25200 | AZ87: 50
A88: Grönkullaskolan | B88: Budget | C88: Initiala Underlag | D88: PEDAGOGISK VERKSAMHET | E88: Grönkullaskolan | F88: 2023-11-02T10:54:27 | H88: Cost | I88: Grundskola | J88: Lärare 13 | K88: 44197 | P88: 436296 | AW88: Personal | AX88: Lärare | AY88: 27440 | AZ88: 100
A89: Grönkullaskolan | B89: Budget | C89: Initiala Underlag | D89: PEDAGOGISK VERKSAMHET | E89: Grönkullaskolan | F89: 2023-11-02T10:54:27 | H89: Cost | I89: Grundskola | J89: Lärare 14 | K89: 44197 | P89: 422940 | AW89: Personal | AX89: Lärare | AY89: 26600 | AZ89: 100
A90: Grönkullaskolan | B90: Budget | C90: Initiala Underlag | D90: PEDAGOGISK VERKSAMHET | E90: Grönkullaskolan | F90: 2023-11-02T10:54:27 | H90: Cost | I90: Grundskola | J90: Lärare 15 | K90: 44197 | P90: 422940 | AW90: Personal | AX90: Lärare | AY90: 26600 | AZ90: 100
A91: Grönkullaskolan | B91: Budget | C91: Initiala Underlag | D91: PEDAGOGISK VERKSAMHET | E91: Grönkullaskolan | F91: 2023-11-02T10:54:27 | H91: Cost | I91: Grundskola | J91: Lärare 16 | K91: 44197 | P91: 436296 | AW91: Personal | AX91: Lärare | AY91: 27440 | AZ91: 100
A92: Grönkullaskolan | B92: Budget | C92: Initiala Underlag | D92: PEDAGOGISK VERKSAMHET | E92: Grönkullaskolan | F92: 2023-11-02T10:54:27 | H92: Cost | I92: Grundskola | J92: Lärare 17 | K92: 44197 | P92: 414036 | AW92: Personal | AX92: Lärare | AY92: 26040 | AZ92: 100
A93: Grönkullaskolan | B93: Budget | C93: Initiala Underlag | D93: PEDAGOGISK VERKSAMHET | E93: Grönkullaskolan | F93: 2023-11-02T10:54:27 | H93: Cost | I93: Grundskola | J93: Lärare 18 | K93: 44197 | P93: 431844 | AW93: Personal | AX93: Lärare | AY93: 27160 | AZ93: 100
A94: Grönkullaskolan | B94: Budget | C94: Initiala Underlag | D94: PEDAGOGISK VERKSAMHET | E94: Grönkullaskolan | F94: 2023-11-02T10:54:27 | H94: Cost | I94: Grundskola | J94: Lärare 19 | K94: 44197 | P94: 400680 | AW94: Personal | AX94: Lärare | AY94: 25200 | AZ94: 100
A95: Grönkullaskolan | B95: Budget | C95: Initiala Underlag | D95: PEDAGOGISK VERKSAMHET | E95: Grönkullaskolan | F95: 2023-11-02T10:54:27 | H95: Cost | I95: Grundskola | J95: Lärare 20 | K95: 44197 | P95: 489720 | AW95: Personal | AX95: Lärare | AY95: 30800 | AZ95: 100
A96: Grönkullaskolan | B96: Budget | C96: Initiala Underlag | D96: PEDAGOGISK VERKSAMHET | E96: Grönkullaskolan | F96: 2023-11-02T10:54:27 | H96: Cost | I96: Grundskola | J96: Rektor | K96: 44197 | P96: 427392 | AW96: Personal | AX96: Administrativ personal | AY96: 26880 | AZ96: 100
A97: Grönkullaskolan | B97: Budget | C97: Initiala Underlag | D97: PEDAGOGISK VERKSAMHET | E97: Grönkullaskolan | F97: 2023-11-02T10:54:27 | H97: Cost | I97: Grundskola | J97: Resurslärare | K97: 44197 | P97: 473184 | AW97: Personal | AX97: Lärare | AY97: 29760 | AZ97: 100
A98: Grönkullaskolan | B98: Budget | C98: Initiala Underlag | D98: PEDAGOGISK VERKSAMHET | E98: Grönkullaskolan | F98: 2023-11-02T10:54:27 | H98: Cost | I98: Grundskola | J98: Material | K98: 44197 | P98: 636000 | AW98: Material | AX98: Skolmaterial
A99: Grönkullaskolan | B99: Budget | C99: Initiala Underlag | D99: PEDAGOGISK VERKSAMHET | E99: Grönkullaskolan | F99: 2023-11-02T10:54:27 | H99: Cost | I99: Grundskola | J99: Lokalhyra | K99: 44197 | P99: 720000 | AW99: Fastigheter och Inventarier | AX99: Lokalhyra
A100: Grönkullaskolan | B100: Budget | C100: Initiala Underlag | D100: PEDAGOGISK VERKSAMHET | E100: Grönkullaskolan | F100: 2023-11-02T10:54:27 | H100: Fact | I100: Grundskola | J100: Antal elever | K100: 44197 | P100: 0 | AW100: Antal elever | AX100: Antal elever | BA100: 205
A101: Prästängskolan | B101: Budget | C101: Initiala Underlag | D101: PEDAGOGISK VERKSAMHET | E101: Prästängskolan | F101: 2023-11-02T10:54:27 | H101: Cost | I101: Grundskola | J101: Lärare 1 | K101: 44197 | P101: 409584 | AW101: Personal | AX101: Lärare | AY101: 25760 | AZ101: 100
A102: Prästängskolan | B102: Budget | C102: Initiala Underlag | D102: PEDAGOGISK VERKSAMHET | E102: Prästängskolan | F102: 2023-11-02T10:54:27 | H102: Cost | I102: Grundskola | J102: Lärare 2 | K102: 44197 | P102: 454104 | AW102: Personal | AX102: Lärare | AY102: 28560 | AZ102: 100
A103: Prästängskolan | B103: Budget | C103: Initiala Underlag | D103: PEDAGOGISK VERKSAMHET | E103: Prästängskolan | F103: 2023-11-02T10:54:27 | H103: Cost | I103: Grundskola | J103: Lärare 3 | K103: 44197 | P103: 463008 | AW103: Personal | AX103: Lärare | AY103: 29120 | AZ103: 100
A104: Prästängskolan | B104: Budget | C104: Initiala Underlag | D104: PEDAGOGISK VERKSAMHET | E104: Prästängskolan | F104: 2023-11-02T10:54:27 | H104: Cost | I104: Grundskola | J104: Lärare 4 | K104: 44197 | P104: 422940 | AW104: Personal | AX104: Lärare | AY104: 26600 | AZ104: 100
A105: Prästängskolan | B105: Budget | C105: Initiala Underlag | D105: PEDAGOGISK VERKSAMHET | E105: Prästängskolan | F105: 2023-11-02T10:54:27 | H105: Cost | I105: Grundskola | J105: Lärare 5 | K105: 44197 | P105: 409584 | AW105: Personal | AX105: Lärare | AY105: 25760 | AZ105: 100
A106: Prästängskolan | B106: Budget | C106: Initiala Underlag | D106: PEDAGOGISK VERKSAMHET | E106: Prästängskolan | F106: 2023-11-02T10:54:27 | H106: Cost | I106: Grundskola | J106: Lärare 6 | K106: 44197 | P106: 422940 | AW106: Personal | AX106: Lärare | AY106: 26600 | AZ106: 100
A107: Prästängskolan | B107: Budget | C107: Initiala Underlag | D107: PEDAGOGISK VERKSAMHET | E107: Prästängskolan | F107: 2023-11-02T10:54:27 | H107: Cost | I107: Grundskola | J107: Lärare 7 | K107: 44197 | P107: 418488 | AW107: Personal | AX107: Lärare | AY107: 26320 | AZ107: 100
A108: Prästängskolan | B108: Budget | C108: Initiala Underlag | D108: PEDAGOGISK VERKSAMHET | E108: Prästängskolan | F108: 2023-11-02T10:54:27 | H108: Cost | I108: Grundskola | J108: Lärare 8 | K108: 44197 | P108: 436296 | AW108: Personal | AX108: Lärare | AY108: 27440 | AZ108: 100
A109: Prästängskolan | B109: Budget | C109: Initiala Underlag | D109: PEDAGOGISK VERKSAMHET | E109: Prästängskolan | F109: 2023-11-02T10:54:27 | H109: Cost | I109: Grundskola | J109: Lärare 9 | K109: 44197 | P109: 449652 | AW109: Personal | AX109: Lärare | AY109: 28280 | AZ109: 100
A110: Prästängskolan | B110: Budget | C110: Initiala Underlag | D110: PEDAGOGISK VERKSAMHET | E110: Prästängskolan | F110: 2023-11-02T10:54:27 | H110: Cost | I110: Grundskola | J110: Lärare 10 | K110: 44197 | P110: 107961 | AW110: Personal | AX110: Lärare | AY110: 27160 | AZ110: 25
A111: Prästängskolan | B111: Budget | C111: Initiala Underlag | D111: PEDAGOGISK VERKSAMHET | E111: Prästängskolan | F111: 2023-11-02T10:54:27 | H111: Cost | I111: Grundskola | J111: Lärare 11 | K111: 44197 | P111: 367290 | AW111: Personal | AX111: Lärare | AY111: 30800 | AZ111: 75
A112: Prästängskolan | B112: Budget | C112: Initiala Underlag | D112: PEDAGOGISK VERKSAMHET | E112: Prästängskolan | F112: 2023-11-02T10:54:27 | H112: Cost | I112: Grundskola | J112: Lärare 12 | K112: 44197 | P112: 400680 | AW112: Personal | AX112: Lärare | AY112: 25200 | AZ112: 100
A113: Prästängskolan | B113: Budget | C113: Initiala Underlag | D113: PEDAGOGISK VERKSAMHET | E113: Prästängskolan | F113: 2023-11-02T10:54:27 | H113: Cost | I113: Grundskola | J113: Lärare 13 | K113: 44197 | P113: 489720 | AW113: Personal | AX113: Lärare | AY113: 30800 | AZ113: 100
A114: Prästängskolan | B114: Budget | C114: Initiala Underlag | D114: PEDAGOGISK VERKSAMHET | E114: Prästängskolan | F114: 2023-11-02T10:54:27 | H114: Cost | I114: Grundskola | J114: Lärare 14 | K114: 44197 | P114: 467460 | AW114: Personal | AX114: Lärare | AY114: 29400 | AZ114: 100
A115: Prästängskolan | B115: Budget | C115: Initiala Underlag | D115: PEDAGOGISK VERKSAMHET | E115: Prästängskolan | F115: 2023-11-02T10:54:27 | H115: Cost | I115: Grundskola | J115: Lärare 15 | K115: 44197 | P115: 467460 | AW115: Personal | AX115: Lärare | AY115: 29400 | AZ115: 100
A116: Prästängskolan | B116: Budget | C116: Initiala Underlag | D116: PEDAGOGISK VERKSAMHET | E116: Prästängskolan | F116: 2023-11-02T10:54:27 | H116: Cost | I116: Grundskola | J116: Lärare 16 | K116: 44197 | P116: 467460 | AW116: Personal | AX116: Lärare | AY116: 29400 | AZ116: 100
A117: Prästängskolan | B117: Budget | C117: Initiala Underlag | D117: PEDAGOGISK VERKSAMHET | E117: Prästängskolan | F117: 2023-11-02T10:54:27 | H117: Cost | I117: Grundskola | J117: Lärare 17 | K117: 44197 | P117: 405132 | AW117: Personal | AX117: Lärare | AY117: 25480 | AZ117: 100
A118: Prästängskolan | B118: Budget | C118: Initiala Underlag | D118: PEDAGOGISK VERKSAMHET | E118: Prästängskolan | F118: 2023-11-02T10:54:27 | H118: Cost | I118: Grundskola | J118: Lärare 18 | K118: 44197 | P118: 454104 | AW118: Personal | AX118: Lärare | AY118: 28560 | AZ118: 100
A119: Prästängskolan | B119: Budget | C119: Initiala Underlag | D119: PEDAGOGISK VERKSAMHET | E119: Prästängskolan | F119: 2023-11-02T10:54:27 | H119: Cost | I119: Grundskola | J119: Lärare 19 | K119: 44197 | P119: 240408 | AW119: Personal | AX119: Lärare | AY119: 30240 | AZ119: 50
A120: Prästängskolan | B120: Budget | C120: Initiala Underlag | D120: PEDAGOGISK VERKSAMHET | E120: Prästängskolan | F120: 2023-11-02T10:54:27 | H120: Cost | I120: Grundskola | J120: Lärare 20 | K120: 44197 | P120: 414036 | AW120: Personal | AX120: Lärare | AY120: 26040 | AZ120: 100
A121: Prästängskolan | B121: Budget | C121: Initiala Underlag | D121: PEDAGOGISK VERKSAMHET | E121: Prästängskolan | F121: 2023-11-02T10:54:27 | H121: Cost | I121: Grundskola | J121: Rektor | K121: 44197 | P121: 458556 | AW121: Personal | AX121: Administrativ personal | AY121: 28840 | AZ121: 100
A122: Vislandskolan | B122: Budget | C122: Initiala Underlag | D122: PEDAGOGISK VERKSAMHET | E122: Vislandskolan | F122: 2023-11-02T10:54:27 | J122: Resurslärare | K122: 44197 | P122: 493536 | AX122: Lärare | AY122: 31040 | AZ122: 100
A123: Vislandskolan | B123: Budget | C123: Initiala Underlag | D123: PEDAGOGISK VERKSAMHET | E123: Vislandskolan | F123: 2023-11-02T10:54:27 | H123: Cost | I123: Grundskola | J123: Material | K123: 44197 | P123: 612000 | AW123: Material | AX123: Skolmaterial
A124: Vislandskolan | B124: Budget | C124: Initiala Underlag | D124: PEDAGOGISK VERKSAMHET | E124: Vislandskolan | F124: 2023-11-02T10:54:27 | H124: Cost | I124: Grundskola | J124: Lokalhyra | K124: 44197 | P124: 1280000 | AW124: Fastigheter och Inventarier | AX124: Lokalhyra
A125: Vislandskolan | B125: Budget | C125: Initiala Underlag | D125: PEDAGOGISK VERKSAMHET | E125: Vislandskolan | F125: 2023-11-02T10:54:27 | H125: Fact | I125: Grundskola | J125: Antal elever | K125: 44197 | P125: 0 | AW125: Antal elever | AX125: Antal elever | BA125: 315
A126: Vislandskolan | B126: Budget | C126: Initiala Underlag | D126: PEDAGOGISK VERKSAMHET | E126: Vislandskolan | F126: 2023-11-02T10:54:27 | H126: Cost | I126: Grundskola | J126: Lärare 1 | K126: 44197 | P126: 467460 | AW126: Personal | AX126: Lärare | AY126: 29400 | AZ126: 100
A127: Vislandskolan | B127: Budget | C127: Initiala Underlag | D127: PEDAGOGISK VERKSAMHET | E127: Vislandskolan | F127: 2023-11-02T10:54:27 | H127: Cost | I127: Grundskola | J127: Lärare 2 | K127: 44197 | P127: 485268 | AW127: Personal | AX127: Lärare | AY127: 30520 | AZ127: 100
A128: Vislandskolan | B128: Budget | C128: Initiala Underlag | D128: PEDAGOGISK VERKSAMHET | E128: Vislandskolan | F128: 2023-11-02T10:54:27 | H128: Cost | I128: Grundskola | J128: Lärare 3 | K128: 44197 | P128: 414036 | AW128: Personal | AX128: Lärare | AY128: 26040 | AZ128: 100
A129: Vislandskolan | B129: Budget | C129: Initiala Underlag | D129: PEDAGOGISK VERKSAMHET | E129: Vislandskolan | F129: 2023-11-02T10:54:27 | H129: Cost | I129: Grundskola | J129: Lärare 4 | K129: 44197 | P129: 445200 | AW129: Personal | AX129: Lärare | AY129: 28000 | AZ129: 100
A130: Vislandskolan | B130: Budget | C130: Initiala Underlag | D130: PEDAGOGISK VERKSAMHET | E130: Vislandskolan | F130: 2023-11-02T10:54:27 | H130: Cost | I130: Grundskola | J130: Lärare 5 | K130: 44197 | P130: 480816 | AW130: Personal | AX130: Lärare | AY130: 30240 | AZ130: 100
A131: Vislandskolan | B131: Budget | C131: Initiala Underlag | D131: PEDAGOGISK VERKSAMHET | E131: Vislandskolan | F131: 2023-11-02T10:54:27 | H131: Cost | I131: Grundskola | J131: Lärare 6 | K131: 44197 | P131: 436296 | AW131: Personal | AX131: Lärare | AY131: 27440 | AZ131: 100
A132: Vislandskolan | B132: Budget | C132: Initiala Underlag | D132: PEDAGOGISK VERKSAMHET | E132: Vislandskolan | F132: 2023-11-02T10:54:27 | H132: Cost | I132: Grundskola | J132: Lärare 7 | K132: 44197 | P132: 449652 | AW132: Personal | AX132: Lärare | AY132: 28280 | AZ132: 100
A133: Vislandskolan | B133: Budget | C133: Initiala Underlag | D133: PEDAGOGISK VERKSAMHET | E133: Vislandskolan | F133: 2023-11-02T10:54:27 | H133: Cost | I133: Grundskola | J133: Lärare 8 | K133: 44197 | P133: 431844 | AW133: Personal | AX133: Lärare | AY133: 27160 | AZ133: 100
A134: Vislandskolan | B134: Budget | C134: Initiala Underlag | D134: PEDAGOGISK VERKSAMHET | E134: Vislandskolan | F134: 2023-11-02T10:54:27 | H134: Cost | I134: Grundskola | J134: Lärare 9 | K134: 44197 | P134: 414036 | AW134: Personal | AX134: Lärare | AY134: 26040 | AZ134: 100
A135: Vislandskolan | B135: Budget | C135: Initiala Underlag | D135: PEDAGOGISK VERKSAMHET | E135: Vislandskolan | F135: 2023-11-02T10:54:27 | H135: Cost | I135: Grundskola | J135: Lärare 10 | K135: 44197 | P135: 489720 | AW135: Personal | AX135: Lärare | AY135: 30800 | AZ135: 100
A136: Vislandskolan | B136: Budget | C136: Initiala Underlag | D136: PEDAGOGISK VERKSAMHET | E136: Vislandskolan | F136: 2023-11-02T10:54:27 | H136: Cost | I136: Grundskola | J136: Lärare 11 | K136: 44197 | P136: 231504 | AW136: Personal | AX136: Lärare | AY136: 29120 | AZ136: 50
A137: Vislandskolan | B137: Budget | C137: Initiala Underlag | D137: PEDAGOGISK VERKSAMHET | E137: Vislandskolan | F137: 2023-11-02T10:54:27 | H137: Cost | I137: Grundskola | J137: Lärare 12 | K137: 44197 | P137: 227052 | AW137: Personal | AX137: Lärare | AY137: 28560 | AZ137: 50
A138: Vislandskolan | B138: Budget | C138: Initiala Underlag | D138: PEDAGOGISK VERKSAMHET | E138: Vislandskolan | F138: 2023-11-02T10:54:27 | H138: Cost | I138: Grundskola | J138: Lärare 13 | K138: 44197 | P138: 458556 | AW138: Personal | AX138: Lärare | AY138: 28840 | AZ138: 100
A139: Vislandskolan | B139: Budget | C139: Initiala Underlag | D139: PEDAGOGISK VERKSAMHET | E139: Vislandskolan | F139: 2023-11-02T10:54:27 | H139: Cost | I139: Grundskola | J139: Lärare 14 | K139: 44197 | P139: 445200 | AW139: Personal | AX139: Lärare | AY139: 28000 | AZ139: 100
A140: Vislandskolan | B140: Budget | C140: Initiala Underlag | D140: PEDAGOGISK VERKSAMHET | E140: Vislandskolan | F140: 2023-11-02T10:54:27 | H140: Cost | I140: Grundskola | J140: Lärare 15 | K140: 44197 | P140: 440748 | AW140: Personal | AX140: Lärare | AY140: 27720 | AZ140: 100
A141: Vislandskolan | B141: Budget | C141: Initiala Underlag | D141: PEDAGOGISK VERKSAMHET | E141: Vislandskolan | F141: 2023-11-02T10:54:27 | H141: Cost | I141: Grundskola | J141: Lärare 16 | K141: 44197 | P141: 467460 | AW141: Personal | AX141: Lärare | AY141: 29400 | AZ141: 100
A142: Vislandskolan | B142: Budget | C142: Initiala Underlag | D142: PEDAGOGISK VERKSAMHET | E142: Vislandskolan | F142: 2023-11-02T10:54:27 | H142: Cost | I142: Grundskola | J142: Lärare 17 | K142: 44197 | P142: 476364 | AW142: Personal | AX142: Lärare | AY142: 29960 | AZ142: 100
A143: Vislandskolan | B143: Budget | C143: Initiala Underlag | D143: PEDAGOGISK VERKSAMHET | E143: Vislandskolan | F143: 2023-11-02T10:54:27 | H143: Cost | I143: Grundskola | J143: Lärare 18 | K143: 44197 | P143: 440748 | AW143: Personal | AX143: Lärare | AY143: 27720 | AZ143: 100
A144: Vislandskolan | B144: Budget | C144: Initiala Underlag | D144: PEDAGOGISK VERKSAMHET | E144: Vislandskolan | F144: 2023-11-02T10:54:27 | H144: Cost | I144: Grundskola | J144: Lärare 19 | K144: 44197 | P144: 405132 | AW144: Personal | AX144: Lärare | AY144: 25480 | AZ144: 100
A145: Vislandskolan | B145: Budget | C145: Initiala Underlag | D145: PEDAGOGISK VERKSAMHET | E145: Vislandskolan | F145: 2023-11-02T10:54:27 | H145: Cost | I145: Grundskola | J145: Lärare 20 | K145: 44197 | P145: 489720 | AW145: Personal | AX145: Lärare | AY145: 30800 | AZ145: 100
A146: Vislandskolan | B146: Budget | C146: Initiala Underlag | D146: PEDAGOGISK VERKSAMHET | E146: Vislandskolan | F146: 2023-11-02T10:54:27 | H146: Cost | I146: Grundskola | J146: Rektor | K146: 44197 | P146: 400680 | AW146: Personal | AX146: Administrativ personal | AY146: 25200 | AZ146: 100
A147: Vislandskolan | B147: Budget | C147: Initiala Underlag | D147: PEDAGOGISK VERKSAMHET | E147: Vislandskolan | F147: 2023-11-02T10:54:27 | H147: Cost | I147: Grundskola | J147: Resurslärare | K147: 44197 | P147: 549504 | AW147: Personal | AX147: Lärare | AY147: 34560 | AZ147: 100
A148: Vislandskolan | B148: Budget | C148: Initiala Underlag | D148: PEDAGOGISK VERKSAMHET | E148: Vislandskolan | F148: 2023-11-02T10:54:27 | H148: Cost | I148: Grundskola | J148: Material | K148: 44197 | P148: 702000 | AW148: Material | AX148: Skolmaterial
A149: Vislandskolan | B149: Budget | C149: Initiala Underlag | D149: PEDAGOGISK VERKSAMHET | E149: Vislandskolan | F149: 2023-11-02T10:54:27 | H149: Cost | I149: Grundskola | J149: Lokalhyra | K149: 44197 | P149: 1030000 | AW149: Fastigheter och Inventarier | AX149: Lokalhyra
A150: Vislandskolan | B150: Budget | C150: Initiala Underlag | D150: PEDAGOGISK VERKSAMHET | E150: Vislandskolan | F150: 2023-11-02T10:54:27 | H150: Fact | I150: Grundskola | J150: Antal elever | K150: 44197 | P150: 0 | AW150: Antal elever | AX150: Antal elever | BA150: 305
A151: Hjortbergaskolan | B151: Budget | C151: Initiala Underlag | D151: PEDAGOGISK VERKSAMHET | E151: Hjortbergaskolan | F151: 2023-11-02T10:54:27 | H151: Cost | I151: Grundskola | J151: Lärare 1 | K151: 44197 | P151: 449652 | AW151: Personal | AX151: Lärare | AY151: 28280 | AZ151: 100
A152: Hjortbergaskolan | B152: Budget | C152: Initiala Underlag | D152: PEDAGOGISK VERKSAMHET | E152: Hjortbergaskolan | F152: 2023-11-02T10:54:27 | H152: Cost | I152: Grundskola | J152: Lärare 2 | K152: 44197 | P152: 422940 | AW152: Personal | AX152: Lärare | AY152: 26600 | AZ152: 100
A153: Hjortbergaskolan | B153: Budget | C153: Initiala Underlag | D153: PEDAGOGISK VERKSAMHET | E153: Hjortbergaskolan | F153: 2023-11-02T10:54:27 | H153: Cost | I153: Grundskola | J153: Lärare 3 | K153: 44197 | P153: 471912 | AW153: Personal | AX153: Lärare | AY153: 29680 | AZ153: 100
A154: Hjortbergaskolan | B154: Budget | C154: Initiala Underlag | D154: PEDAGOGISK VERKSAMHET | E154: Hjortbergaskolan | F154: 2023-11-02T10:54:27 | H154: Cost | I154: Grundskola | J154: Lärare 4 | K154: 44197 | P154: 458556 | AW154: Personal | AX154: Lärare | AY154: 28840 | AZ154: 100
A155: Hjortbergaskolan | B155: Budget | C155: Initiala Underlag | D155: PEDAGOGISK VERKSAMHET | E155: Hjortbergaskolan | F155: 2023-11-02T10:54:27 | H155: Cost | I155: Grundskola | J155: Lärare 5 | K155: 44197 | P155: 422940 | AW155: Personal | AX155: Lärare | AY155: 26600 | AZ155: 100
A156: Hjortbergaskolan | B156: Budget | C156: Initiala Underlag | D156: PEDAGOGISK VERKSAMHET | E156: Hjortbergaskolan | F156: 2023-11-02T10:54:27 | H156: Cost | I156: Grundskola | J156: Lärare 6 | K156: 44197 | P156: 422940 | AW156: Personal | AX156: Lärare | AY156: 26600 | AZ156: 100
A157: Hjortbergaskolan | B157: Budget | C157: Initiala Underlag | D157: PEDAGOGISK VERKSAMHET | E157: Hjortbergaskolan | F157: 2023-11-02T10:54:27 | H157: Cost | I157: Grundskola | J157: Lärare 7 | K157: 44197 | P157: 427392 | AW157: Personal | AX157: Lärare | AY157: 26880 | AZ157: 100
A158: Hjortbergaskolan | B158: Budget | C158: Initiala Underlag | D158: PEDAGOGISK VERKSAMHET | E158: Hjortbergaskolan | F158: 2023-11-02T10:54:27 | H158: Cost | I158: Grundskola | J158: Lärare 8 | K158: 44197 | P158: 427392 | AW158: Personal | AX158: Lärare | AY158: 26880 | AZ158: 100
A159: Hjortbergaskolan | B159: Budget | C159: Initiala Underlag | D159: PEDAGOGISK VERKSAMHET | E159: Hjortbergaskolan | F159: 2023-11-02T10:54:27 | H159: Cost | I159: Grundskola | J159: Lärare 9 | K159: 44197 | P159: 454104 | AW159: Personal | AX159: Lärare | AY159: 28560 | AZ159: 100
A160: Hjortbergaskolan | B160: Budget | C160: Initiala Underlag | D160: PEDAGOGISK VERKSAMHET | E160: Hjortbergaskolan | F160: 2023-11-02T10:54:27 | H160: Cost | I160: Grundskola | J160: Lärare 10 | K160: 44197 | P160: 102396 | AW160: Personal | AX160: Lärare | AY160: 25760 | AZ160: 25
A161: Hjortbergaskolan | B161: Budget | C161: Initiala Underlag | D161: PEDAGOGISK VERKSAMHET | E161: Hjortbergaskolan | F161: 2023-11-02T10:54:27 | H161: Cost | I161: Grundskola | J161: Lärare 11 | K161: 44197 | P161: 330561 | AW161: Personal | AX161: Lärare | AY161: 27720 | AZ161: 75
A162: Hjortbergaskolan | B162: Budget | C162: Initiala Underlag | D162: PEDAGOGISK VERKSAMHET | E162: Hjortbergaskolan | F162: 2023-11-02T10:54:27 | H162: Cost | I162: Grundskola | J162: Lärare 12 | K162: 44197 | P162: 422940 | AW162: Personal | AX162: Lärare | AY162: 26600 | AZ162: 100
A163: Hjortbergaskolan | B163: Budget | C163: Initiala Underlag | D163: PEDAGOGISK VERKSAMHET | E163: Hjortbergaskolan | F163: 2023-11-02T10:54:27 | H163: Cost | I163: Grundskola | J163: Lärare 13 | K163: 44197 | P163: 463008 | AW163: Personal | AX163: Lärare | AY163: 29120 | AZ163: 100
A164: Hjortbergaskolan | B164: Budget | C164: Initiala Underlag | D164: PEDAGOGISK VERKSAMHET | E164: Hjortbergaskolan | F164: 2023-11-02T10:54:27 | H164: Cost | I164: Grundskola | J164: Lärare 14 | K164: 44197 | P164: 436296 | AW164: Personal | AX164: Lärare | AY164: 27440 | AZ164: 100
A165: Hjortbergaskolan | B165: Budget | C165: Initiala Underlag | D165: PEDAGOGISK VERKSAMHET | E165: Hjortbergaskolan | F165: 2023-11-02T10:54:27 | H165: Cost | I165: Grundskola | J165: Lärare 15 | K165: 44197 | P165: 476364 | AW165: Personal | AX165: Lärare | AY165: 29960 | AZ165: 100
A166: Hjortbergaskolan | B166: Budget | C166: Initiala Underlag | D166: PEDAGOGISK VERKSAMHET | E166: Hjortbergaskolan | F166: 2023-11-02T10:54:27 | H166: Cost | I166: Grundskola | J166: Lärare 16 | K166: 44197 | P166: 445200 | AW166: Personal | AX166: Lärare | AY166: 28000 | AZ166: 100
A167: Hjortbergaskolan | B167: Budget | C167: Initiala Underlag | D167: PEDAGOGISK VERKSAMHET | E167: Hjortbergaskolan | F167: 2023-11-02T10:54:27 | H167: Cost | I167: Grundskola | J167: Lärare 17 | K167: 44197 | P167: 489720 | AW167: Personal | AX167: Lärare | AY167: 30800 | AZ167: 100
A168: Hjortbergaskolan | B168: Budget | C168: Initiala Underlag | D168: PEDAGOGISK VERKSAMHET | E168: Hjortbergaskolan | F168: 2023-11-02T10:54:27 | H168: Cost | I168: Grundskola | J168: Lärare 18 | K168: 44197 | P168: 480816 | AW168: Personal | AX168: Lärare | AY168: 30240 | AZ168: 100
A169: Hjortbergaskolan | B169: Budget | C169: Initiala Underlag | D169: PEDAGOGISK VERKSAMHET | E169: Hjortbergaskolan | F169: 2023-11-02T10:54:27 | H169: Cost | I169: Grundskola | J169: Lärare 19 | K169: 44197 | P169: 220374 | AW169: Personal | AX169: Lärare | AY169: 27720 | AZ169: 50
A170: Hjortbergaskolan | B170: Budget | C170: Initiala Underlag | D170: PEDAGOGISK VERKSAMHET | E170: Hjortbergaskolan | F170: 2023-11-02T10:54:27 | H170: Cost | I170: Grundskola | J170: Lärare 20 | K170: 44197 | P170: 400680 | AW170: Personal | AX170: Lärare | AY170: 25200 | AZ170: 100
A171: Hjortbergaskolan | B171: Budget | C171: Initiala Underlag | D171: PEDAGOGISK VERKSAMHET | E171: Hjortbergaskolan | F171: 2023-11-02T10:54:27 | H171: Cost | I171: Grundskola | J171: Rektor | K171: 44197 | P171: 418488 | AW171: Personal | AX171: Administrativ personal | AY171: 26320 | AZ171: 100
A172: Hjortbergaskolan | B172: Budget | C172: Initiala Underlag | D172: PEDAGOGISK VERKSAMHET | E172: Hjortbergaskolan | F172: 2023-11-02T10:54:27 | J172: Resurslärare | K172: 44197 | P172: 559680 | AX172: Lärare | AY172: 35200 | AZ172: 100
A173: Hjortbergaskolan | B173: Budget | C173: Initiala Underlag | D173: PEDAGOGISK VERKSAMHET | E173: Hjortbergaskolan | F173: 2023-11-02T10:54:27 | H173: Cost | I173: Grundskola | J173: Material | K173: 44197 | P173: 534000 | AW173: Material | AX173: Skolmaterial
A174: Hjortbergaskolan | B174: Budget | C174: Initiala Underlag | D174: PEDAGOGISK VERKSAMHET | E174: Hjortbergaskolan | F174: 2023-11-02T10:54:27 | H174: Cost | I174: Grundskola | J174: Lokalhyra | K174: 44197 | P174: 1170000 | AW174: Fastigheter och Inventarier | AX174: Lokalhyra
A175: Hjortbergaskolan | B175: Budget | C175: Initiala Underlag | D175: PEDAGOGISK VERKSAMHET | E175: Hjortbergaskolan | F175: 2023-11-02T10:54:27 | H175: Fact | I175: Grundskola | J175: Antal elever | K175: 44197 | P175: 0 | AW175: Antal elever | AX175: Antal elever
A176: Övriga Grundskolor | B176: Budget | C176: Initiala Underlag | D176: PEDAGOGISK VERKSAMHET | E176: Grundskola | F176: 2023-11-02T10:54:27 | H176: Cost | I176: Grundskola | J176: Grundskola | K176: 44197 | P176: 24599629.99 | AW176: Personal | AX176: Lärare
A177: Övriga Grundskolor | B177: Budget | C177: Initiala Underlag | D177: PEDAGOGISK VERKSAMHET | E177: Grundskola | F177: 2023-11-02T10:54:27 | H177: Cost | I177: Grundskola | J177: Grundskola | K177: 44197 | P177: 1654233.693 | AW177: Material | AX177: Skolmaterial
A178: Övriga Grundskolor | B178: Budget | C178: Initiala Underlag | D178: PEDAGOGISK VERKSAMHET | E178: Grundskola | F178: 2023-11-02T10:54:27 | H178: Cost | I178: Grundskola | J178: Grundskola | K178: 44197 | P178: 2293252.316 | AW178: Fastigheter och Inventarier | AX178: Lokalhyra

Sheet Admin
H1: Settings | BO1: Avdelningar
C2: Import colors | D2: Data1 | E2: Data2 | H2: Search Rows | I2: Yes | J2: 2 | M2: SheetColor Import | O2: Flikfärg med PivotTabell | U2: Projekt | V2: Projektbeskrivning | Z2: Exkluderade Konton | AC2: Budgetår | AF2: Enhet | AG2: Enhfor(T) | AH2: Proj | AI2: Proj(T) | AJ2: Verksamhetskod | AR2: Konto | AS2: KontoGrupp1 | AT2: KontoGrupp2 | AU2: Kontogrupp3 | AV2: KontogruppÖvergripande | BC2: ImportScenario | BF2: RaderaScenario | BG2: RaderaScenarioNo | BI2: Flikfärg Export | BM2: Rubriker | BO2: Enhet | BP2: Avdelning | BR2: Projekt | BS2: AdminProjekt | BU2: Verksamhetskod | BV2: Verksamhetsnamn | BX2: Avskrivningskonto | BY2: Avskrivning | CA2: FinansKostn.Konton | CB2: Finansiella Kostnader | CD2: Costs are Always negative
D3: Ref | H3: Search Columns | I3: No | J3: 3 | U3: Projekt 1 | V3: Kund nr 1 | Z3: 4011 | AC3: 2020 | AF3: OV161 | AG3: Kliniken för barn- och ungdomstandvård | AH3: OV16101131 | AI3: Tandvård/statsanslag | AJ3: 120 | AR3: 40 | BC3: Initiala Underlag | BF3: Allt | BG3: 1 | BM3: Utfall | BO3: OF121 | BP3: OF120 | BR3: OF82008001 | BS3: Administration | BU3: 102 | BV3: Tandläkarprogrammet | BX3: 6911 | BY3: Avskrivningar maskiner, inventarier mm (3år, 5år eller 10 år) | CA3: 5911 | CB3: Räntekostnader RGK, statliga | CD3: 5911
D4: Title | H4: Search for Ref | I4: No | J4: 4 | U4: Projekt 2 | V4: Kund nr 2 | Z4: 4015 | AF4: OV161 | AG4: Kliniken för barn- och ungdomstandvård | AH4: OV16101716 | AI4: SLL-avtal | AJ4: 64 | AR4: 49 | BC4: Preliminär Budget | BF4: Allt med samma scenario | BG4: 2 | BM4: Årsbudget | BO4: OF131 | BP4: OF120 | BR4: OF82008002 | BS4: Administration | BU4: 110 | BV4: Fristående kurser | BX4: 6916 | BY4: Avskrivning immateriella tillgångar (5år) | CA4: 5921 | CB4: Dröjsmålsräntor statliga myndigheter | CD4: 5921
D5: Statisk Data | H5: WriteToLocalDB | I5: Yes | J5: 5 | U5: Projekt 3 | V5: Kund nr 3 | Z5: 4060 | AF5: OV161 | AG5: Kliniken för barn- och ungdomstandvård | AH5: OV16101746 | AI5: Barnmedicin 1 | AJ5: 64 | AR5: 50 | BC5: Slutgiltig Budget | BF5: Data från samma filnamn och scenario | BG5: 3 | BM5: Rak prognos | BO5: OF112 | BP5: OF140 | BR5: OF83008001 | BS5: Ekonomi | BU5: 120 | BV5: Tandvård | BX5: 6917 | BY5: Avskrivning förbättringsutgift annans fastighet | CA5: 5922 | CB5: Dröjsmålsräntor utomstatliga | CD5: 5922
D6: Data från master | H6: ClearDataBase | I6: =INDEX($BF:$BG,MATCH(IMPORT!$C$7,$BF:$BF,0),2) -> 3 | J6: 6 | U6: Projekt 4 | V6: Kund nr 4 | Z6: 4062 | AF6: OV171 | AG6: Kliniken för tandreglering | AH6: OV17101131 | AI6: Tandvård/statsanslag | AJ6: 120 | AR6: 57 | BM6: Stängd | BO6: OF141 | BP6: OF140 | BR6: OF83008002 | BS6: Ekonomi | BU6: 127 | BV6: Påbyggnadsutbildning i odontologisk profylaktik | BX6: 69901 | BY6: Omkontering avskrivningskostnader | CA6: 5962 | CB6: Kursförluster valuta, utomstatliga
H7: AddNewTitles | I7: Yes | J7: 7 | U7: Projekt 5 | V7: Kund nr 5 | AF7: OV171 | AG7: Kliniken för tandreglering | AH7: OV17101556 | AI7: Tandtekniska laboratoriet | AJ7: 64 | AR7: 69 | BO7: OF161 | BP7: OF160 | BR7: OF83008011 | BS7: Personal | BU7: 135 | BV7: Tandhygienistprogrammet | CA7: 5991 | CB7: Övriga finansiella kostnader, statliga myndigheter
H8: Titles row in DB-sheet | I8: 10 | J8: 8 | U8: Projekt 6 | V8: Kund nr 6 | AF8: OV171 | AG8: Kliniken för tandreglering | AH8: OV17101705 | AI8: Genetik ST/PG | AJ8: 532 | AR8: 338 | AT8: Intäkter av avgifter | AU8: Intäkter av avgifter | AV8: Verksamhetens intäkter | BO8: OF171 | BP8: OF160 | BR8: OF83008012 | BS8: Personal | BU8: 18 | BV8: Stödverksamhet GU | CA8: 5992 | CB8: Övriga finansiella kostnader, utomstatliga
H9: CheckPrevious | I9: No | J9: 9 | AF9: OV171 | AG9: Kliniken för tandreglering | AH9: OV17101716 | AI9: SLL-avtal | AJ9: 64 | AR9: 339 | AT9: Intäkter av avgifter | AU9: Intäkter av avgifter | AV9: Verksamhetens intäkter | BR9: OF84008001 | BS9: Service & Underhåll | BU9: 190 | BV9: Övrig grundutbildning | CA9: 59998 | CB9: Inst intern finansiell kostnad
H10: UploadToAccess | I10: No | J10: 10 | AF10: OV171 | AG10: Kliniken för tandreglering | AH10: OV17101916 | AI10: ST/PG-utbildning 2019-- | AJ10: 64 | AR10: 358 | AT10: Intäkter av bidrag | AU10: Intäkter av bidrag | AV10: Verksamhetens intäkter | BR10: OF84008002 | BS10: Service & Underhåll | BU10: 41 | BV10: Externa bidrag grundutbildning | CA10: 59999 | CB10: Finansiell kostnad (KI-intern faktura)
H11: AddGeneralData | I11: No | J11: 11 | AF11: OV171 | AG11: Kliniken för tandreglering | AH11: OV17101945 | AI11: PG/ST-utbildning 2017 | AJ11: 531 | AR11: 359 | AT11: Intäkter av bidrag | AU11: Intäkter av bidrag | AV11: Verksamhetens intäkter | BR11: OF84008011 | BS11: IT | BU11: 531 | BV11: Poänggivande uppdragsutbildning
H12: OnlyAddVisible | I12: Yes | J12: 12 | AF12: OV171 | AG12: Kliniken för tandreglering | AH12: OV17102905 | AI12: Ortodonti o käkort kursgivning | AJ12: 532 | AR12: 394 | BR12: OF84008012 | BS12: IT | BU12: 532 | BV12: Ej poänggivande uppdragsutbildning
H13: Titles from Admin | I13: No | J13: 13 | AF13: OV171 | AG13: Kliniken för tandreglering | AH13: OV17110706 | AI13: Käkortopedi | AJ13: 64 | AR13: 3092 | AT13: Intäkter av statsanslag | AU13: Intäkter av statsanslag | AV13: Verksamhetens intäkter | BR13: OF87008432 | BS13: FO avdelningen | BU13: 534 | BV13: Legitimationsutb. för utl. läk/ssk
H14: Match Titles From Admin | I14: No | J14: 14 | AF14: OV191 | AG14: Vuxenkliniken | AH14: OV19101131 | AI14: Tandvård/statsanslag | AJ14: 120 | AR14: 3093 | AT14: Intäkter av statsanslag | AU14: Intäkter av statsanslag | AV14: Verksamhetens intäkter | BR14: OV81008001 | BS14: Ledning | BU14: 539 | BV14: Uppdragsutbildning - hjälpkod
H15: CheckNew Row | I15: Yes | J15: 15 | AF15: OV192 | AG15: Kliniken för oral diagnostik | AH15: OV19201121 | AI15: LK-projekt Oral diagnostik | AJ15: 120 | AR15: 3094 | AT15: Intäkter av statsanslag | AU15: Intäkter av statsanslag | AV15: Verksamhetens intäkter | BR15: OV81008002 | BS15: Ledning | BU15: 21 | BV15: Statsanslag forskning /FoUtb
AF16: OV192 | AG16: Kliniken för oral diagnostik | AH16: OV19201131 | AI16: Tandvård/statsanslag (inkl OV11201131) | AJ16: 120 | AR16: 3096 | AT16: Intäkter av statsanslag | AU16: Intäkter av statsanslag | AV16: Verksamhetens intäkter | BR16: OV82008001 | BS16: Administration | BU16: 28 | BV16: Stödverksamhet Fo/Fou
AF17: OV192 | AG17: Kliniken för oral diagnostik | AH17: OV19201556 | AI17: Patientintäkter (tidigare OV11201556) | AJ17: 120 | AR17: 3121 | AT17: Intäkter av avgifter | AU17: Intäkter av avgifter | AV17: Verksamhetens intäkter | BR17: OV82008002 | BS17: Administration | BU17: 31 | BV17: Externa bidrag forskning/FoUtb
AF18: OV192 | AG18: Kliniken för oral diagnostik | AH18: OV19206104 | AI18: KUT/ Utbildning utländska tandläkare | AJ18: 41 | AR18: 3123 | BR18: OV83008001 | BS18: Ekonomi | BU18: 311 | BV18: Interna uppdrag
AF19: OV192 | AG19: Kliniken för oral diagnostik | AH19: OV19206106 | AI19: KUT Patientintäkter | AJ19: 64 | AR19: 3133 | AT19: Intäkter av avgifter | AU19: Intäkter av avgifter | AV19: Verksamhetens intäkter | BR19: OV83008002 | BS19: Ekonomi | BU19: 3115 | BV19: CIMED
AF20: OV193 | AG20: Kliniken för prevention och sjukdomsbehandling | AH20: OV19301121 | AI20: LK-prevention & sjukdomsbehandling | AJ20: 120 | AR20: 3135 | BR20: OV83008011 | BS20: Personal | BU20: 37 | BV20: Bidrag Fo, anläggningar
AF21: OV193 | AG21: Kliniken för prevention och sjukdomsbehandling | AH21: OV19301131 | AI21: Tandvård/statsanslag | AJ21: 120 | AR21: 3311 | AT21: Intäkter av avgifter | AU21: Intäkter av avgifter | AV21: Verksamhetens intäkter | BR21: OV83008012 | BS21: Personal | BU21: 63 | BV21: Uppdrag forskning/FoUtb
AF22: OV193 | AG22: Kliniken för prevention och sjukdomsbehandling | AH22: OV19301141 | AI22: Hyg/statsanslag/Tandhygienistutbildning | AJ22: 120 | AR22: 3312 | AT22: Intäkter av avgifter | AU22: Intäkter av avgifter | AV22: Verksamhetens intäkter | BR22: OV84008001 | BS22: Service & Underhåll | BU22: 64 | BV22: Uppdrag tandvård
AF23: OV193 | AG23: Kliniken för prevention och sjukdomsbehandling | AH23: OV19311141 | AI23: Hyg/statsanslag/Tandhygienistutbildning | AJ23: 135 | AR23: 3313 | AT23: Intäkter av avgifter | AU23: Intäkter av avgifter | AV23: Verksamhetens intäkter | BR23: OV84008002 | BS23: Service & Underhåll | BU23: 67 | BV23: Uppdrag Fo, anläggningar
AF24: OV193 | AG24: Kliniken för prevention och sjukdomsbehandling | AH24: OV19301151 | AI24: Påbyggnadsutb i odontologis profylaktik POP | AJ24: 120 | AR24: 3367 | BR24: OV84008011 | BS24: IT
AF25: OV193 | AG25: Kliniken för prevention och sjukdomsbehandling | AH25: OV19311151 | AI25: Påbyggnadsutb i odontologis profylaktik POP | AJ25: 127 | AR25: 3413 | BR25: OV84008012 | BS25: IT
AF26: OV193 | AG26: Kliniken för prevention och sjukdomsbehandling | AH26: OV19301161 | AI26: LK-projekt THYG | AJ26: 120 | AR26: 3434 | AT26: Intäkter av avgifter | AU26: Intäkter av avgifter | AV26: Verksamhetens intäkter | BR26: OV87008601 | BS26: Tandvård/statsanslag/STERILCENTRAL
AF27: OV194 | AG27: Kliniken för oral rehabilitering | AH27: OV19401131 | AI27: Tandvård/statsanslag | AJ27: 120 | AR27: 3443 | AT27: Intäkter av avgifter | AU27: Intäkter av avgifter | AV27: Verksamhetens intäkter | BR27: OV87008606 | BS27: Tandvård/statsanslag/STERILCENTRAL
AF28: OV194 | AG28: Kliniken för oral rehabilitering | AH28: OV19401141 | AI28: PREKLIN | AJ28: 120 | AR28: 3451 | AT28: Intäkter av avgifter | AU28: Intäkter av avgifter | AV28: Verksamhetens intäkter | BR28: OV87008611 | BS28: Tandvård/statsanslag/DENTAL VERKSTAD
AF29: OV195 | AG29: Specialistkliniken | AH29: OV19501016 | AI29: Specialistklinik gemensamt | AJ29: 64 | AR29: 3452 | AT29: Intäkter av avgifter | AU29: Intäkter av avgifter | AV29: Verksamhetens intäkter | BR29: OV87008616 | BS29: Tandvård/statsanslag/DENTAL VERKSTAD
AF30: OV195 | AG30: Specialistkliniken | AH30: OV19502026 | AI30: Endodonti uppdragsutbildning | AJ30: 64 | AR30: 3453 | AT30: Intäkter av avgifter | AU30: Intäkter av avgifter | AV30: Verksamhetens intäkter | BR30: OV87008621 | BS30: Tandvård/statsanslag/KLINIKGEMENSAMT
AF31: OV195 | AG31: Specialistkliniken | AH31: OV19502036 | AI31: Specialist Mikael Silfverberg | AJ31: 64 | AR31: 3482 | AT31: Intäkter av avgifter | AU31: Intäkter av avgifter | AV31: Verksamhetens intäkter | BR31: OV87008626 | BS31: Tandvård/statsanslag/KLINIKGEMENSAMT
AF32: OV195 | AG32: Specialistkliniken | AH32: OV19502046 | AI32: Specialist Peggy Näsman | AJ32: 64 | AR32: 3511 | AT32: Intäkter av bidrag | AU32: Intäkter av bidrag | AV32: Verksamhetens intäkter | BR32: OV87008671 | BS32: Patientjournalföringssystem
AF33: OV195 | AG33: Specialistkliniken | AH33: OV19502056 | AI33: ST Qing Ye | AJ33: 64 | AR33: 3512 | AT33: Intäkter av bidrag | AU33: Intäkter av bidrag | AV33: Verksamhetens intäkter | BR33: OV87008676 | BS33: Patientjournalföringssystem
AF34: OV195 | AG34: Specialistkliniken | AH34: OV19504016 | AI34: Specialist Patricia de Palma | AJ34: 64 | AR34: 3515 | AT34: Intäkter av bidrag | AU34: Intäkter av bidrag | AV34: Verksamhetens intäkter
AF35: OV195 | AG35: Specialistkliniken | AH35: OV19504026 | AI35: Thyg Tanja Wallier | AJ35: 64 | AR35: 3521 | AT35: Intäkter av bidrag | AU35: Intäkter av bidrag | AV35: Verksamhetens intäkter
AF36: OV195 | AG36: Specialistkliniken | AH36: OV19504046 | AI36: Pelarbacken/Ersta fd Hållp Maria 03-04, Beroendece | AJ36: 64 | AR36: 3522 | AT36: Intäkter av bidrag | AU36: Intäkter av bidrag | AV36: Verksamhetens intäkter
AF37: OV195 | AG37: Specialistkliniken | AH37: OV19504066 | AI37: Specialist Kåre Buhlin | AJ37: 64 | AR37: 3524
AF38: OV195 | AG38: Specialistkliniken | AH38: OV19504076 | AI38: Parodonti historik | AJ38: 64 | AR38: 3564 | AT38: Intäkter av bidrag | AU38: Intäkter av bidrag | AV38: Verksamhetens intäkter
AF39: OV195 | AG39: Specialistkliniken | AH39: OV19504086 | AI39: ST Jacob Holmer | AJ39: 64 | AR39: 3831
AF40: OV195 | AG40: Specialistkliniken | AH40: OV19505036 | AI40: Specialist Joannis Grigoriadis | AJ40: 64 | AR40: 3832 | AT40: Finansiella intäkter | AU40: Finansiella intäkter | AV40: Verksamhetens intäkter
AF41: OV195 | AG41: Specialistkliniken | AH41: OV19505046 | AI41: Specialist Anastasios Grigoriadis | AJ41: 64 | AR41: 3872 | AT41: Finansiella intäkter | AU41: Finansiella intäkter | AV41: Verksamhetens intäkter
AF42: OV195 | AG42: Specialistkliniken | AH42: OV19505066 | AI42: Tdl Ekaterini Skodra | AJ42: 64 | AR42: 3892
AF43: OV195 | AG43: Specialistkliniken | AH43: OV19505076 | AI43: ST Emma Dybeck | AJ43: 64 | AR43: 4011 | AT43: Personalkostnader | AU43: Lönekostnader | AV43: Verksamhetens kostnader
AF44: OV195 | AG44: Specialistkliniken | AH44: OV19505086 | AI44: ST Dyana Jergis | AJ44: 64 | AR44: 4012 | AT44: Personalkostnader | AU44: Övriga personalkostnader | AV44: Verksamhetens kostnader
AF45: OV195 | AG45: Specialistkliniken | AH45: OV19505096 | AI45: Specialist Johan Asplund | AJ45: 64 | AR45: 4013 | AT45: Personalkostnader | AU45: Övriga personalkostnader | AV45: Verksamhetens kostnader
AF46: OV195 | AG46: Specialistkliniken | AH46: OV19506016 | AI46: Specialist Sofia Louca | AJ46: 64 | AR46: 4015 | AT46: Personalkostnader | AU46: Lönekostnader | AV46: Verksamhetens kostnader
AF47: OV195 | AG47: Specialistkliniken | AH47: OV19506026 | AI47: Specialist Malin Ernberg | AJ47: 64 | AR47: 4021 | AS47: Övrig personal | AT47: Personalkostnader | AU47: Övriga personalkostnader | AV47: Verksamhetens kostnader
AF48: OV195 | AG48: Specialistkliniken | AH48: OV19506036 | AI48: Specialist Nikolaos Christidis | AJ48: 64 | AR48: 4060 | AT48: Personalkostnader | AU48: Lönekostnader | AV48: Verksamhetens kostnader
AF49: OV195 | AG49: Specialistkliniken | AH49: OV19506056 | AI49: ST Hajer Jasmin | AJ49: 64 | AR49: 4062 | AT49: Personalkostnader | AU49: Lönekostnader | AV49: Verksamhetens kostnader
AF50: OV195 | AG50: Specialistkliniken | AH50: OV19506066 | AI50: ST Samaa Al Sayegh | AJ50: 64 | AR50: 4081 | AT50: Personalkostnader | AU50: Övriga personalkostnader | AV50: Verksamhetens kostnader
AF51: OV195 | AG51: Specialistkliniken | AH51: OV19506076 | AI51: ST Nancy Piltan | AJ51: 64 | AR51: 4082 | AT51: Personalkostnader | AU51: Övriga personalkostnader | AV51: Verksamhetens kostnader
AF52: OV195 | AG52: Specialistkliniken | AH52: OV19508016 | AI52: Tdl Gerodonti | AJ52: 64 | AR52: 4083 | AT52: Personalkostnader | AU52: Övriga personalkostnader | AV52: Verksamhetens kostnader
AF53: OV195 | AG53: Specialistkliniken | AH53: OV19508026 | AI53: Pat utredning Gunilla Sandborgh Englund | AJ53: 64 | AR53: 4084 | AT53: Personalkostnader | AU53: Övriga personalkostnader | AV53: Verksamhetens kostnader
AF54: OV195 | AG54: Specialistkliniken | AH54: OV19510016 | AI54: Specialist Karin Garming Legert | AJ54: 64 | AR54: 4096
AF55: OV195 | AG55: Specialistkliniken | AH55: OV19510026 | AI55: ST Sabrina Svedjevik | AJ55: 64 | AR55: 4097
AF56: OV810 | AG56: Administrativa projekt | AH56: OV81003131 | AI56: Anläggningar/Tandvård | AJ56: 120 | AR56: 4098
AF57: OV810 | AG57: Administrativa projekt | AH57: OV81006131 | AI57: 120/Ombyggnad plan 6 | AJ57: 120 | AR57: 4099
AF58: OV810 | AG58: Administrativa projekt | AH58: OV81008001 | AI58: Ledning GU | AJ58: 18 | AR58: 4321 | AT58: Personalkostnader | AU58: Övriga personalkostnader | AV58: Verksamhetens kostnader
AF59: OV810 | AG59: Administrativa projekt | AH59: OV81008002 | AI59: Ledning FFU | AJ59: 28 | AR59: 4322 | AS59: Övrig personal | AT59: Personalkostnader | AU59: Övriga personalkostnader | AV59: Verksamhetens kostnader
AF60: OV820 | AG60: Administrativa projekt | AH60: OV82008001 | AI60: GU Administration | AJ60: 18 | AR60: 4323 | AT60: Personalkostnader | AU60: Övriga personalkostnader | AV60: Verksamhetens kostnader
AF61: OV820 | AG61: Administrativa projekt | AH61: OV82008002 | AI61: FFU Administration | AJ61: 28 | AR61: 4324
AF62: OV830 | AG62: Administrativa projekt | AH62: OV83008001 | AI62: Ekonomi GU | AJ62: 18 | AR62: 4331 | AS62: Övrig personal | AT62: Personalkostnader | AU62: Övriga personalkostnader | AV62: Verksamhetens kostnader
AF63: OV830 | AG63: Administrativa projekt | AH63: OV83008002 | AI63: Ekonomi FFU | AJ63: 28 | AR63: 4332 | AT63: Personalkostnader | AU63: Övriga personalkostnader | AV63: Verksamhetens kostnader
AF64: OV830 | AG64: Administrativa projekt | AH64: OV83008011 | AI64: Personal GU | AJ64: 18 | AR64: 4360 | AS64: Övrig personal | AT64: Personalkostnader | AU64: Övriga personalkostnader | AV64: Verksamhetens kostnader
AF65: OV830 | AG65: Administrativa projekt | AH65: OV83008012 | AI65: Personal FFU | AJ65: 28 | AR65: 4394 | AS65: Övrig personal | AT65: Personalkostnader | AU65: Övriga personalkostnader | AV65: Verksamhetens kostnader
AF66: OV840 | AG66: Administrativa projekt | AH66: OV84008001 | AI66: Service & Underhåll GU | AJ66: 18 | AR66: 4395 | AS66: Övrig personal | AT66: Personalkostnader | AU66: Övriga personalkostnader | AV66: Verksamhetens kostnader
AF67: OV840 | AG67: Administrativa projekt | AH67: OV84008002 | AI67: Service & Underhåll FFU | AJ67: 28 | AR67: 4513 | AS67: Övrig personal | AT67: Personalkostnader | AU67: Övriga personalkostnader | AV67: Verksamhetens kostnader
AF68: OV840 | AG68: Administrativa projekt | AH68: OV84008011 | AI68: IT GU | AJ68: 18 | AR68: 4551 | AT68: Personalkostnader | AU68: Övriga personalkostnader | AV68: Verksamhetens kostnader
AF69: OV840 | AG69: Administrativa projekt | AH69: OV84008012 | AI69: IT FFU | AJ69: 28 | AR69: 4613 | AT69: Personalkostnader | AU69: Övriga personalkostnader | AV69: Verksamhetens kostnader
AF70: OV870 | AG70: Administrativa projekt | AH70: OV87008003 | AI70: Omställningsmedel OV | AJ70: 311 | AR70: 4614 | AT70: Personalkostnader | AU70: Övriga personalkostnader | AV70: Verksamhetens kostnader
AF71: OV870 | AG71: Administrativa projekt | AH71: OV87008031 | AI71: Anläggningar/Tandvårdscentral | AJ71: 120 | AR71: 4632 | AT71: Personalkostnader | AU71: Övriga personalkostnader | AV71: Verksamhetens kostnader
AF72: OV870 | AG72: Administrativa projekt | AH72: OV87008076 | AI72: Anläggningar/spectv OV | AJ72: 64 | AR72: 4651 | AT72: Personalkostnader | AU72: Övriga personalkostnader | AV72: Verksamhetens kostnader
AF73: OV870 | AG73: Administrativa projekt | AH73: OV87008301 | AI73: Institutionens gemensamma kostnader | AJ73: 120 | AR73: 4711
AF74: OV870 | AG74: Administrativa projekt | AH74: OV87008311 | AI74: Avvecklingskostnader personal | AJ74: 120 | AR74: 4712
AF75: OV870 | AG75: Administrativa projekt | AH75: OV87008341 | AI75: Miljöcertifiering | AJ75: 120 | AR75: 4713 | AT75: Personalkostnader | AU75: Övriga personalkostnader | AV75: Verksamhetens kostnader
AF76: OV870 | AG76: Administrativa projekt | AH76: OV87008351 | AI76: Arbetsmiljöåtgärder | AJ76: 120 | AR76: 4715 | AS76: Övrig personal | AT76: Personalkostnader | AU76: Övriga personalkostnader | AV76: Verksamhetens kostnader
AF77: OV870 | AG77: Administrativa projekt | AH77: OV87008601 | AI77: Tandvård/statsanslag/STERILCENTRAL | AJ77: 120 | AR77: 4811 | AS77: Övrig personal | AT77: Personalkostnader | AU77: Övriga personalkostnader | AV77: Verksamhetens kostnader
AF78: OV870 | AG78: Administrativa projekt | AH78: OV87008606 | AI78: Tandvård/statsanslag/STERILCENTRAL | AJ78: 64 | AR78: 4812 | AS78: Övrig personal | AT78: Personalkostnader | AU78: Övriga personalkostnader | AV78: Verksamhetens kostnader
AF79: OV870 | AG79: Administrativa projekt | AH79: OV87008611 | AI79: Tandvård/statsanslag/DENTAL VERKSTAD | AJ79: 120 | AR79: 4911
AF80: OV870 | AG80: Administrativa projekt | AH80: OV87008616 | AI80: Tandvård/statsanslag/DENTAL VERKSTAD | AJ80: 64 | AR80: 4912 | AT80: Personalkostnader | AU80: Övriga personalkostnader | AV80: Verksamhetens kostnader
AF81: OV870 | AG81: Administrativa projekt | AH81: OV87008621 | AI81: Tandvård/statsanslag/KLINIKGEMENSAMT | AJ81: 120 | AR81: 4961 | AT81: Personalkostnader | AU81: Övriga personalkostnader | AV81: Verksamhetens kostnader
AF82: OV870 | AG82: Administrativa projekt | AH82: OV87008626 | AI82: Tandvård/statsanslag/KLINIKGEMENSAMT | AJ82: 64 | AR82: 4962
AF83: OV870 | AG83: Administrativa projekt | AH83: OV87008671 | AI83: Patientjournalföringssystem | AJ83: 120 | AR83: 4963 | AT83: Personalkostnader | AU83: Övriga personalkostnader | AV83: Verksamhetens kostnader
AF84: OV870 | AG84: Administrativa projekt | AH84: OV87008676 | AI84: Patientjournalföringssystem | AJ84: 64 | AR84: 4969 | AS84: Övrig personal | AT84: Personalkostnader | AU84: Övriga personalkostnader | AV84: Verksamhetens kostnader
AF85: OV870 | AG85: Administrativa projekt | AH85: OV87008716 | AI85: Efficafakturor | AJ85: 64 | AR85: 5011 | AT85: Lokalkostnader | AU85: Lokalkostnader | AV85: Verksamhetens kostnader
AF86: OV870 | AG86: Administrativa projekt | AH86: OV87008736 | AI86: OPUS ORT intäkter | AJ86: 64 | AR86: 5022 | AT86: Lokalkostnader | AU86: Lokalkostnader | AV86: Verksamhetens kostnader
AF87: OV880 | AG87: Administrativa projekt | AH87: OV88008003 | AI87: Ränta, kursdifferenser mm | AJ87: 311 | AR87: 5061 | AT87: Lokalkostnader | AU87: Lokalkostnader | AV87: Verksamhetens kostnader
AF88: OV880 | AG88: Administrativa projekt | AH88: OV88008991 | AI88: Saldo från stödverks GU | AJ88: 190 | AR88: 5071 | AT88: Lokalkostnader | AU88: Lokalkostnader | AV88: Verksamhetens kostnader
AF89: OV880 | AG89: Administrativa projekt | AH89: OV88008992 | AI89: Saldo från stödverks FO/FOU | AJ89: 21 | AR89: 5072 | AT89: Lokalkostnader | AU89: Lokalkostnader | AV89: Verksamhetens kostnader
AF90: OF120 | AG90: Avdelningen för orala sjukdomar | AH90: OF12001101 | AI90: Orala sjukdomar grundutbildning | AJ90: 102 | AR90: 5081 | AT90: Lokalkostnader | AU90: Lokalkostnader | AV90: Verksamhetens kostnader
AF91: OF120 | AG91: Avdelningen för orala sjukdomar | AH91: OF12001202 | AI91: Orala sjukdomar forskning | AJ91: 21 | AR91: 5091 | AT91: Lokalkostnader | AU91: Lokalkostnader | AV91: Verksamhetens kostnader
AF92: OF121 | AG92: Enheten för cariologi och endodonti | AH92: OF12101101 | AI92: Gu/statsanslag tdl | AJ92: 102 | AR92: 5100 | AT92: Övriga driftkostnader | AU92: Övriga driftkostnader | AV92: Verksamhetens kostnader
AF93: OF121 | AG93: Enheten för cariologi och endodonti | AH93: OF12101202 | AI93: Fo/statsanslag | AJ93: 21 | AR93: 5221 | AT93: Övriga driftkostnader | AU93: Övriga driftkostnader | AV93: Verksamhetens kostnader
AF94: OF121 | AG94: Enheten för cariologi och endodonti | AH94: OF12101503 | AI94: Forskningsbidrag | AJ94: 31 | AR94: 5222 | AT94: Övriga driftkostnader | AU94: Övriga driftkostnader | AV94: Verksamhetens kostnader
AF95: OF121 | AG95: Enheten för cariologi och endodonti | AH95: OF12101606 | AI95: Kar & Endo Kompetensutv/Personal | AJ95: 63 | AR95: 5223 | AT95: Övriga driftkostnader | AU95: Övriga driftkostnader | AV95: Verksamhetens kostnader
AF96: OF121 | AG96: Enheten för cariologi och endodonti | AH96: OF12101935 | AI96: Endodonti uppdragsutbildning | AJ96: 531 | AR96: 5232
AF97: OF121 | AG97: Enheten för cariologi och endodonti | AH97: OF12101945 | AI97: ST Qing Ye 2020-2025 (SLL) | AJ97: 532 | AR97: 5411 | AT97: Övriga driftkostnader | AU97: Övriga driftkostnader | AV97: Verksamhetens kostnader
AF98: OF121 | AG98: Enheten för cariologi och endodonti | AH98: OF12107523 | AI98: Patentmedelsfonden/Lena Karlsson | AJ98: 31 | AR98: 5413 | AT98: Övriga driftkostnader | AU98: Övriga driftkostnader | AV98: Verksamhetens kostnader
AF99: OF121 | AG99: Enheten för cariologi och endodonti | AH99: OF12107603 | AI99: Forskning bidrag CAR | AJ99: 31 | AR99: 5422
AF100: OF121 | AG100: Enheten för cariologi och endodonti | AH100: OF12116543 | AI100: Forskning/Näsman | AJ100: 31 | AR100: 5424
AF101: OF121 | AG101: Enheten för cariologi och endodonti | AH101: OF12119006 | AI101: Aron Naimi Akbar | AJ101: 63 | AR101: 5451 | AT101: Övriga driftkostnader | AU101: Övriga driftkostnader | AV101: Verksamhetens kostnader
AF102: OF121 | AG102: Enheten för cariologi och endodonti | AH102: OF12123002 | AI102: Professor Georgios Belibasakis | AJ102: 21 | AR102: 5511 | AS102: Övrig drift | AT102: Övriga driftkostnader | AU102: Övriga driftkostnader | AV102: Verksamhetens kostnader
AF103: OF121 | AG103: Enheten för cariologi och endodonti | AH103: OF12123006 | AI103: Övriga uppdrag Georgios Belibasakis | AJ103: 63 | AR103: 5512 | AS103: Övrig drift | AT103: Övriga driftkostnader | AU103: Övriga driftkostnader | AV103: Verksamhetens kostnader
AF104: OF121 | AG104: Enheten för cariologi och endodonti | AH104: OF12123012 | AI104: Professor Belibasakis postdok | AJ104: 21 | AR104: 5513 | AS104: Övrig drift | AT104: Övriga driftkostnader | AU104: Övriga driftkostnader | AV104: Verksamhetens kostnader
AF105: OF121 | AG105: Enheten för cariologi och endodonti | AH105: OF12123023 | AI105: SOF 2020-2022 Georgios Belibasakis | AJ105: 31 | AR105: 5514
AF106: OF121 | AG106: Enheten för cariologi och endodonti | AH106: OF12123033 | AI106: Forskningsbidrag Georgios Belibasakis | AJ106: 31 | AR106: 5515 | AS106: Övrig drift | AT106: Övriga driftkostnader | AU106: Övriga driftkostnader | AV106: Verksamhetens kostnader
AF107: OF121 | AG107: Enheten för cariologi och endodonti | AH107: OF12123046 | AI107: PHILIPS 2020-2022 (86PHIEN) | AJ107: 63 | AR107: 5516 | AS107: Övrig drift | AT107: Övriga driftkostnader | AU107: Övriga driftkostnader | AV107: Verksamhetens kostnader
AF108: OF131 | AG108: Enheten för parodontologi och odontologisk profylaktik | AH108: OF13101015 | AI108: Tandhygienistprogram uppdragsutbildning | AJ108: 531 | AR108: 5517
AF109: OF131 | AG109: Enheten för parodontologi och odontologisk profylaktik | AH109: OF13102015 | AI109: Tandhygienistprogram uppdragsutbildning 2020-2023 | AJ109: 531 | AR109: 5521 | AT109: Övriga driftkostnader | AU109: Övriga driftkostnader | AV109: Verksamhetens kostnader
AF110: OF131 | AG110: Enheten för parodontologi och odontologisk profylaktik | AH110: OF13101101 | AI110: Gu/statsanslag tdl | AJ110: 102 | AR110: 5522 | AS110: Övrig drift | AT110: Övriga driftkostnader | AU110: Övriga driftkostnader | AV110: Verksamhetens kostnader
AF111: OF131 | AG111: Enheten för parodontologi och odontologisk profylaktik | AH111: OF13101111 | AI111: Fristående kurs | AJ111: 110 | AR111: 5523 | AS111: Övrig drift | AT111: Övriga driftkostnader | AU111: Övriga driftkostnader | AV111: Verksamhetens kostnader
AF112: OF131 | AG112: Enheten för parodontologi och odontologisk profylaktik | AH112: OF13101121 | AI112: Fristående kurs- Lindberg | AJ112: 110 | AR112: 5524
AF113: OF131 | AG113: Enheten för parodontologi och odontologisk profylaktik | AH113: OF13101141 | AI113: Hyg/statsanslag/Tandhygienistutbildning | AJ113: 135 | AR113: 5525 | AS113: Övrig drift | AT113: Övriga driftkostnader | AU113: Övriga driftkostnader | AV113: Verksamhetens kostnader
AF114: OF131 | AG114: Enheten för parodontologi och odontologisk profylaktik | AH114: OF13101151 | AI114: Påbyggnadsutb i odontologisk profylaktik POP | AJ114: 127 | AR114: 5526 | AS114: Övrig drift | AT114: Övriga driftkostnader | AU114: Övriga driftkostnader | AV114: Verksamhetens kostnader
AF115: OF131 | AG115: Enheten för parodontologi och odontologisk profylaktik | AH115: OF13101171 | AI115: Pedagogiska projektmedel/ THYG | AJ115: 135 | AR115: 5527 | AT115: Övriga driftkostnader | AU115: Övriga driftkostnader | AV115: Verksamhetens kostnader
AF116: OF131 | AG116: Enheten för parodontologi och odontologisk profylaktik | AH116: OF13101202 | AI116: Fo/statsanslag | AJ116: 21 | AR116: 5529 | AT116: Övriga driftkostnader | AU116: Övriga driftkostnader | AV116: Verksamhetens kostnader
AF117: OF131 | AG117: Enheten för parodontologi och odontologisk profylaktik | AH117: OF13101232 | AI117: Gästprofessur Timo Sorsa | AJ117: 21 | AR117: 5531 | AS117: Övrig drift | AT117: Övriga driftkostnader | AU117: Övriga driftkostnader | AV117: Verksamhetens kostnader
AF118: OF131 | AG118: Enheten för parodontologi och odontologisk profylaktik | AH118: OF13101242 | AI118: Ledningsuppdrag fo-medel GUA M Hultin | AJ118: 21 | AR118: 5541 | AT118: Övriga driftkostnader | AU118: Övriga driftkostnader | AV118: Verksamhetens kostnader
AF119: OF131 | AG119: Enheten för parodontologi och odontologisk profylaktik | AH119: OF13101252 | AI119: Strategiska satsningar/löner Johannsen | AJ119: 21 | AR119: 5542
AF120: OF131 | AG120: Enheten för parodontologi och odontologisk profylaktik | AH120: OF13101262 | AI120: Ledningsuppdrag fo-medel PD Annsofi J | AJ120: 21 | AR120: 5543 | AT120: Övriga driftkostnader | AU120: Övriga driftkostnader | AV120: Verksamhetens kostnader
AF121: OF131 | AG121: Enheten för parodontologi och odontologisk profylaktik | AH121: OF13101502 | AI121: Dekanstöd /Gustafsson | AJ121: 21 | AR121: 5600
AF122: OF131 | AG122: Enheten för parodontologi och odontologisk profylaktik | AH122: OF13101573 | AI122: Forskningbidrag Anders Gustafsson | AJ122: 31 | AR122: 5611 | AT122: Övriga driftkostnader | AU122: Övriga driftkostnader | AV122: Verksamhetens kostnader
AF123: OF131 | AG123: Enheten för parodontologi och odontologisk profylaktik | AH123: OF13101603 | AI123: Forskningsbidrag / Birgitta Söder | AJ123: 31 | AR123: 5612 | AS123: Övrig drift | AT123: Övriga driftkostnader | AU123: Övriga driftkostnader | AV123: Verksamhetens kostnader
AF124: OF131 | AG124: Enheten för parodontologi och odontologisk profylaktik | AH124: OF13101606 | AI124: Parod & THYG Kompetensutv/Personal | AJ124: 63 | AR124: 5613 | AS124: Övrig drift | AT124: Övriga driftkostnader | AU124: Övriga driftkostnader | AV124: Verksamhetens kostnader
AF125: OF131 | AG125: Enheten för parodontologi och odontologisk profylaktik | AH125: OF13103503 | AI125: Swedish Cons Dalia/Hultin | AJ125: 31 | AR125: 5614 | AS125: Övrig drift | AT125: Övriga driftkostnader | AU125: Övriga driftkostnader | AV125: Verksamhetens kostnader
AF126: OF131 | AG126: Enheten för parodontologi och odontologisk profylaktik | AH126: OF13107506 | AI126: Forskarutbildning/Engström | AJ126: 63 | AR126: 5621 | AT126: Övriga driftkostnader | AU126: Övriga driftkostnader | AV126: Verksamhetens kostnader
AF127: OF131 | AG127: Enheten för parodontologi och odontologisk profylaktik | AH127: OF13107523 | AI127: Samarbetsavtal Altamash Institute Jeneen Panezzi | AJ127: 31 | AR127: 5622 | AT127: Övriga driftkostnader | AU127: Övriga driftkostnader | AV127: Verksamhetens kostnader
AF128: OF131 | AG128: Enheten för parodontologi och odontologisk profylaktik | AH128: OF13107553 | AI128: Forskning bidrag P-E Engström | AJ128: 31 | AR128: 5623 | AT128: Övriga driftkostnader | AU128: Övriga driftkostnader | AV128: Verksamhetens kostnader
AF129: OF131 | AG129: Enheten för parodontologi och odontologisk profylaktik | AH129: OF13108633 | AI129: Pharmacia/Wickholm | AJ129: 31 | AR129: 5624 | AS129: Övrig drift | AT129: Övriga driftkostnader | AU129: Övriga driftkostnader | AV129: Verksamhetens kostnader
AF130: OF131 | AG130: Enheten för parodontologi och odontologisk profylaktik | AH130: OF13109513 | AI130: STS/KI-fonder/Buhlin | AJ130: 31 | AR130: 5627 | AS130: Övrig drift | AT130: Övriga driftkostnader | AU130: Övriga driftkostnader | AV130: Verksamhetens kostnader
AF131: OF131 | AG131: Enheten för parodontologi och odontologisk profylaktik | AH131: OF13109505 | AI131: ST Natalie Stempa 2019-2021 (PRAKT) | AJ131: 532 | AR131: 5641 | AS131: Övrig drift | AT131: Övriga driftkostnader | AU131: Övriga driftkostnader | AV131: Verksamhetens kostnader
AF132: OF131 | AG132: Enheten för parodontologi och odontologisk profylaktik | AH132: OF13109522 | AI132: CSTP/Jacob Holmer | AJ132: 21 | AR132: 5643 | AS132: Övrig drift | AT132: Övriga driftkostnader | AU132: Övriga driftkostnader | AV132: Verksamhetens kostnader
AF133: OF131 | AG133: Enheten för parodontologi och odontologisk profylaktik | AH133: OF13109523 | AI133: Patentmedelsfonden Kåre Buhlin | AJ133: 31 | AR133: 5644 | AT133: Övriga driftkostnader | AU133: Övriga driftkostnader | AV133: Verksamhetens kostnader
AF134: OF131 | AG134: Enheten för parodontologi och odontologisk profylaktik | AH134: OF13109525 | AI134: ST Jacob Holmer 2018-2022 (SLL) | AJ134: 532 | AR134: 5645 | AT134: Övriga driftkostnader | AU134: Övriga driftkostnader | AV134: Verksamhetens kostnader
AF135: OF131 | AG135: Enheten för parodontologi och odontologisk profylaktik | AH135: OF13109533 | AI135: Vistelsebidrag/KIRT | AJ135: 31 | AR135: 5646 | AT135: Övriga driftkostnader | AU135: Övriga driftkostnader | AV135: Verksamhetens kostnader
AF136: OF131 | AG136: Enheten för parodontologi och odontologisk profylaktik | AH136: OF13109543 | AI136: STS fobidrag/Jacob Holmer | AJ136: 31 | AR136: 5647 | AT136: Övriga driftkostnader | AU136: Övriga driftkostnader | AV136: Verksamhetens kostnader
AF137: OF131 | AG137: Enheten för parodontologi och odontologisk profylaktik | AH137: OF13109553 | AI137: SOF 2020-2022 Kåre Buhlin | AJ137: 31 | AR137: 5671 | AT137: Övriga driftkostnader | AU137: Övriga driftkostnader | AV137: Verksamhetens kostnader
AF138: OF131 | AG138: Enheten för parodontologi och odontologisk profylaktik | AH138: OF13110176 | AI138: Kompetensutvkostnader, forskning Pelarbacken | AJ138: 63 | AR138: 5672
AF139: OF131 | AG139: Enheten för parodontologi och odontologisk profylaktik | AH139: OF13110603 | AI139: Bidrag/Patricia De Palma | AJ139: 31 | AR139: 5673
AF140: OF131 | AG140: Enheten för parodontologi och odontologisk profylaktik | AH140: OF13111605 | AI140: Uppdragsutbildning | AJ140: 532 | AR140: 5676
AF141: OF131 | AG141: Enheten för parodontologi och odontologisk profylaktik | AH141: OF13116003 | AI141: Patentmedelsfonden/Tülay Lindberg | AJ141: 31 | AR141: 5677 | AT141: Övriga driftkostnader | AU141: Övriga driftkostnader | AV141: Verksamhetens kostnader
AF142: OF131 | AG142: Enheten för parodontologi och odontologisk profylaktik | AH142: OF13116013 | AI142: Forskningsbidrag (KI Stiftelser) Tülay Lindberg | AJ142: 31 | AR142: 5691
AF143: OF131 | AG143: Enheten för parodontologi och odontologisk profylaktik | AH143: OF13116016 | AI143: Uppdrag/Tülay Lindberg | AJ143: 63 | AR143: 5692
AF144: OF131 | AG144: Enheten för parodontologi och odontologisk profylaktik | AH144: OF13116053 | AI144: SOF 2016-2018/Tülay Lindberg | AJ144: 31 | AR144: 5693 | AS144: Övrig drift | AT144: Övriga driftkostnader | AU144: Övriga driftkostnader | AV144: Verksamhetens kostnader
AF145: OF131 | AG145: Enheten för parodontologi och odontologisk profylaktik | AH145: OF13116063 | AI145: SOF 2020-2022 Tülay Lindberg | AJ145: 31 | AR145: 5694 | AT145: Övriga driftkostnader | AU145: Övriga driftkostnader | AV145: Verksamhetens kostnader
AF146: OF131 | AG146: Enheten för parodontologi och odontologisk profylaktik | AH146: OF13116073 | AI146: ALF-medel 2018-2020 Tülay Lindberg | AJ146: 31 | AR146: 5697
AF147: OF131 | AG147: Enheten för parodontologi och odontologisk profylaktik | AH147: OF13116083 | AI147: VR 2018-2021 Tülay Lindberg | AJ147: 31 | AR147: 5699 | AT147: Övriga driftkostnader | AU147: Övriga driftkostnader | AV147: Verksamhetens kostnader
AF148: OF131 | AG148: Enheten för parodontologi och odontologisk profylaktik | AH148: OF13116613 | AI148: Reumatikerfonden Tülay Lindberg | AJ148: 31 | AR148: 5711
AF149: OF131 | AG149: Enheten för parodontologi och odontologisk profylaktik | AH149: OF13118002 | AI149: CSTP Reuben Clark/ Elisabeth Boström | AJ149: 21 | AR149: 5721 | AT149: Övriga driftkostnader | AU149: Övriga driftkostnader | AV149: Verksamhetens kostnader
AF150: OF131 | AG150: Enheten för parodontologi och odontologisk profylaktik | AH150: OF13118003 | AI150: KI fonder 2012Wall0016/Elisabeth Boström Almer | AJ150: 31 | AR150: 5722 | AS150: Övrig drift | AT150: Övriga driftkostnader | AU150: Övriga driftkostnader | AV150: Verksamhetens kostnader
AF151: OF131 | AG151: Enheten för parodontologi och odontologisk profylaktik | AH151: OF13118006 | AI151: Uppdrag Elisabeth Boström | AJ151: 63 | AR151: 5723
AF152: OF131 | AG152: Enheten för parodontologi och odontologisk profylaktik | AH152: OF13118013 | AI152: Patentmedelsfonden 2018-2021/Elisabeth Almer Boström | AJ152: 31 | AR152: 5725 | AS152: Övrig drift | AT152: Övriga driftkostnader | AU152: Övriga driftkostnader | AV152: Verksamhetens kostnader
AF153: OF131 | AG153: Enheten för parodontologi och odontologisk profylaktik | AH153: OF13118023 | AI153: SOF 2020-2022 Elisabeth Boström | AJ153: 31 | AR153: 5726 | AT153: Övriga driftkostnader | AU153: Övriga driftkostnader | AV153: Verksamhetens kostnader
AF154: OF131 | AG154: Enheten för parodontologi och odontologisk profylaktik | AH154: OF13118053 | AI154: CIMED/Elisabeth Boström junior 2020-2022 | AJ154: 3115 | AR154: 5727 | AT154: Övriga driftkostnader | AU154: Övriga driftkostnader | AV154: Verksamhetens kostnader
AF155: OF131 | AG155: Enheten för parodontologi och odontologisk profylaktik | AH155: OF13118063 | AI155: FOU-bidrag Elisabeth Boström 2020-2021 (SLL) | AJ155: 31 | AR155: 5729 | AT155: Övriga driftkostnader | AU155: Övriga driftkostnader | AV155: Verksamhetens kostnader
AF156: OF131 | AG156: Enheten för parodontologi och odontologisk profylaktik | AH156: OF13118073 | AI156: SOF 2019-2021 Elisabeth Boström | AJ156: 31 | AR156: 5731 | AS156: Övrig drift | AT156: Övriga driftkostnader | AU156: Övriga driftkostnader | AV156: Verksamhetens kostnader
AF157: OF131 | AG157: Enheten för parodontologi och odontologisk profylaktik | AH157: OF13118102 | AI157: CSTP Mirjam Majster/Elisabeth Boström | AJ157: 21 | AR157: 5732 | AS157: Övrig drift | AT157: Övriga driftkostnader | AU157: Övriga driftkostnader | AV157: Verksamhetens kostnader
AF158: OF131 | AG158: Enheten för parodontologi och odontologisk profylaktik | AH158: OF13118103 | AI158: STS Fobidrag Mirjam Majster | AJ158: 31 | AR158: 5739 | AS158: Övrig drift
AF159: OF131 | AG159: Enheten för parodontologi och odontologisk profylaktik | AH159: OF13118203 | AI159: STS Fobidrag Reuben Clark | AJ159: 31 | AR159: 5741 | AS159: Övrig drift | AT159: Övriga driftkostnader | AU159: Övriga driftkostnader | AV159: Verksamhetens kostnader
AF160: OF131 | AG160: Enheten för parodontologi och odontologisk profylaktik | AH160: OF13118303 | AI160: STS Sofia Björnfot-Holmström | AJ160: 31 | AR160: 5751 | AS160: Övrig drift | AT160: Övriga driftkostnader | AU160: Övriga driftkostnader | AV160: Verksamhetens kostnader
AF161: OF131 | AG161: Enheten för parodontologi och odontologisk profylaktik | AH161: OF13118403 | AI161: KI-stiftelser Ronaldo Lira Junior | AJ161: 31 | AR161: 5752
AF162: OF131 | AG162: Enheten för parodontologi och odontologisk profylaktik | AH162: OF13121003 | AI162: STS Fobidrag Eva Nordendahl (Ekstrand) | AJ162: 31 | AR162: 5753
AF163: OF131 | AG163: Enheten för parodontologi och odontologisk profylaktik | AH163: OF13123002 | AI163: Professor Nagihan Bostanci | AJ163: 21 | AR163: 5754
AF164: OF131 | AG164: Enheten för parodontologi och odontologisk profylaktik | AH164: OF13123003 | AI164: VR 2018-2021 Nagihan Bostanci | AJ164: 31 | AR164: 5761 | AT164: Övriga driftkostnader | AU164: Övriga driftkostnader | AV164: Verksamhetens kostnader
AF165: OF131 | AG165: Enheten för parodontologi och odontologisk profylaktik | AH165: OF13123006 | AI165: Övriga forskningsuppdrag Naghian Bostanci | AJ165: 63 | AR165: 5763 | AT165: Övriga driftkostnader | AU165: Övriga driftkostnader | AV165: Verksamhetens kostnader
AF166: OF131 | AG166: Enheten för parodontologi och odontologisk profylaktik | AH166: OF13123013 | AI166: SOF 2019-2021 Nagihan Bostanci | AJ166: 31 | AR166: 5771 | AT166: Övriga driftkostnader | AU166: Övriga driftkostnader | AV166: Verksamhetens kostnader
AF167: OF131 | AG167: Enheten för parodontologi och odontologisk profylaktik | AH167: OF13123023 | AI167: Forskningsbidrag Nagihan Bostanci | AJ167: 31 | AR167: 5772 | AT167: Övriga driftkostnader | AU167: Övriga driftkostnader | AV167: Verksamhetens kostnader
AF168: OF131 | AG168: Enheten för parodontologi och odontologisk profylaktik | AH168: OF13124401 | AI168: Pedagogiska akademin Annsofi Johannsen | AJ168: 190 | AR168: 5773 | AS168: Övrig drift | AT168: Övriga driftkostnader | AU168: Övriga driftkostnader | AV168: Verksamhetens kostnader
AF169: OF140 | AG169: Avdelningen för oral diagnostik och rehabilitering | AH169: OF14001101 | AI169: Oral diagnostik & rehab. grundutbildning | AJ169: 102 | AR169: 5774 | AT169: Övriga driftkostnader | AU169: Övriga driftkostnader | AV169: Verksamhetens kostnader
AF170: OF140 | AG170: Avdelningen för oral diagnostik och rehabilitering | AH170: OF14001202 | AI170: Oral diagnostik & rehab. forskning | AJ170: 21 | AR170: 5781 | AS170: Övrig drift | AT170: Övriga driftkostnader | AU170: Övriga driftkostnader | AV170: Verksamhetens kostnader
AF171: OF112 | AG171: Enheten för oral diagnostik och kirurgi | AH171: OF11201101 | AI171: Gu/statsanslag tdl | AJ171: 102 | AR171: 5782 | AS171: Övrig drift | AT171: Övriga driftkostnader | AU171: Övriga driftkostnader | AV171: Verksamhetens kostnader
AF172: OF112 | AG172: Enheten för oral diagnostik och kirurgi | AH172: OF11201111 | AI172: Examensarbete | AJ172: 102 | AR172: 5784 | AS172: Övrig drift | AT172: Övriga driftkostnader | AU172: Övriga driftkostnader | AV172: Verksamhetens kostnader
AF173: OF112 | AG173: Enheten för oral diagnostik och kirurgi | AH173: OF11201141 | AI173: Tandhygienistutbildning/Rtg | AJ173: 135 | AR173: 5785 | AT173: Övriga driftkostnader | AU173: Övriga driftkostnader | AV173: Verksamhetens kostnader
AF174: OF112 | AG174: Enheten för oral diagnostik och kirurgi | AH174: OF11201151 | AI174: Fristående kurs GSE | AJ174: 110 | AR174: 5786
AF175: OF112 | AG175: Enheten för oral diagnostik och kirurgi | AH175: OF11201161 | AI175: Påbyggnadsutb i odontologisk profylaktik POP/GER | AJ175: 127 | AR175: 5787
AF176: OF112 | AG176: Enheten för oral diagnostik och kirurgi | AH176: OF11201202 | AI176: Fo/statsanslag | AJ176: 21 | AR176: 5792 | AT176: Övriga driftkostnader | AU176: Övriga driftkostnader | AV176: Verksamhetens kostnader
AF177: OF112 | AG177: Enheten för oral diagnostik och kirurgi | AH177: OF11201242 | AI177: Ledningsuppdrag fo-medel PD Karin G L | AJ177: 21 | AR177: 5793 | AS177: Övrig drift | AT177: Övriga driftkostnader | AU177: Övriga driftkostnader | AV177: Verksamhetens kostnader
AF178: OF112 | AG178: Enheten för oral diagnostik och kirurgi | AH178: OF11201505 | AI178: Uppdragsutbildning/Nordöstra kursnämnden | AJ178: 532 | AR178: 5794
AF179: OF112 | AG179: Enheten för oral diagnostik och kirurgi | AH179: OF11201606 | AI179: Oral diag & kirurgi Kompetensutv/personal | AJ179: 63 | AR179: 5795
AF180: OF112 | AG180: Enheten för oral diagnostik och kirurgi | AH180: OF11201616 | AI180: CELL kompetensutveckling | AJ180: 63 | AR180: 5796 | AT180: Övriga driftkostnader | AU180: Övriga driftkostnader | AV180: Verksamhetens kostnader
AF181: OF112 | AG181: Enheten för oral diagnostik och kirurgi | AH181: OF11201626 | AI181: OPAT kompetensutveckling | AJ181: 63 | AR181: 5797 | AT181: Övriga driftkostnader | AU181: Övriga driftkostnader | AV181: Verksamhetens kostnader
AF182: OF112 | AG182: Enheten för oral diagnostik och kirurgi | AH182: OF11201715 | AI182: ST Sabrina Svedjevik 2020-2022 (SLL) | AJ182: 532 | AR182: 5799 | AT182: Övriga driftkostnader | AU182: Övriga driftkostnader | AV182: Verksamhetens kostnader
AF183: OF112 | AG183: Enheten för oral diagnostik och kirurgi | AH183: OF11201745 | AI183: ST Tobias Regnstrand 2019-2022 (SLL) | AJ183: 532 | AR183: 5911 | AT183: Finansiella kostnader | AU183: Finansiella kostnader | AV183: Verksamhetens kostnader
AF184: OF112 | AG184: Enheten för oral diagnostik och kirurgi | AH184: OF11201815 | AI184: Äldretandvård för tandhygienister | AJ184: 531 | AR184: 5922 | AT184: Finansiella kostnader | AU184: Finansiella kostnader | AV184: Verksamhetens kostnader
AF185: OF112 | AG185: Enheten för oral diagnostik och kirurgi | AH185: OF11201823 | AI185: KI-stiftelse Per Elgestad Stjernfeldt | AJ185: 31 | AR185: 5962 | AT185: Finansiella kostnader | AU185: Finansiella kostnader | AV185: Verksamhetens kostnader
AF186: OF112 | AG186: Enheten för oral diagnostik och kirurgi | AH186: OF11202002 | AI186: CSTP-medel Victor Tollemar-Wilmenius | AJ186: 21 | AR186: 5991 | AT186: Finansiella kostnader | AU186: Finansiella kostnader | AV186: Verksamhetens kostnader
AF187: OF112 | AG187: Enheten för oral diagnostik och kirurgi | AH187: OF11202003 | AI187: SOF 2020-2022 Rachael Sugars | AJ187: 31 | AR187: 5992 | AT187: Finansiella kostnader | AU187: Finansiella kostnader | AV187: Verksamhetens kostnader
AF188: OF112 | AG188: Enheten för oral diagnostik och kirurgi | AH188: OF11202016 | AI188: Rachel S extern fouppdrag | AJ188: 63 | AR188: 6911 | AT188: Avskrivningar | AU188: Avskrivningar | AV188: Verksamhetens kostnader
AF189: OF112 | AG189: Enheten för oral diagnostik och kirurgi | AH189: OF11202023 | AI189: STS FO bidrag Victor Tollemar-Wilmenius | AJ189: 31 | AR189: 6912
AF190: OF112 | AG190: Enheten för oral diagnostik och kirurgi | AH190: OF11202033 | AI190: SOF 2019-2021 Rachael Sugars | AJ190: 31 | AR190: 6916 | AT190: Avskrivningar | AU190: Avskrivningar | AV190: Verksamhetens kostnader
AF191: OF112 | AG191: Enheten för oral diagnostik och kirurgi | AH191: OF11202043 | AI191: ALF-medel 2020-2021 Rachael Sugars | AJ191: 31 | AR191: 6917 | AT191: Avskrivningar | AU191: Avskrivningar | AV191: Verksamhetens kostnader
AF192: OF112 | AG192: Enheten för oral diagnostik och kirurgi | AH192: OF11202602 | AI192: Gästprofessor Reinhilde Jacobs | AJ192: 21 | AR192: 34521
AF193: OF112 | AG193: Enheten för oral diagnostik och kirurgi | AH193: OF11203103 | AI193: SOF 2017-2019 / K Garming, Runow-Stark | AJ193: 31 | AR193: 34522 | AT193: Intäkter av avgifter | AU193: Intäkter av avgifter | AV193: Verksamhetens intäkter
AF194: OF112 | AG194: Enheten för oral diagnostik och kirurgi | AH194: OF11203105 | AI194: ST Elisabeth Boström (SLL) | AJ194: 532 | AR194: 35117
AF195: OF112 | AG195: Enheten för oral diagnostik och kirurgi | AH195: OF11204503 | AI195: Bidrag forskning/Toxikologi | AJ195: 31 | AR195: 35127 | AT195: Intäkter av bidrag | AU195: Intäkter av bidrag | AV195: Verksamhetens intäkter
AF196: OF112 | AG196: Enheten för oral diagnostik och kirurgi | AH196: OF11204523 | AI196: Patentmedelsfonden/Sandborgh | AJ196: 31 | AR196: 35451 | AT196: Intäkter av bidrag | AU196: Intäkter av bidrag | AV196: Verksamhetens intäkter
AF197: OF112 | AG197: Enheten för oral diagnostik och kirurgi | AH197: OF11205012 | AI197: CSTP Niko Vähäsarja/ Bodil Lund | AJ197: 21 | AR197: 39409
AF198: OF112 | AG198: Enheten för oral diagnostik och kirurgi | AH198: OF11205116 | AI198: Pilotprojekt utvärdera befintliga antibiotika | AJ198: 63 | AR198: 39449
AF199: OF112 | AG199: Enheten för oral diagnostik och kirurgi | AH199: OF11205123 | AI199: SOF 2019-2021 Bodil Lund | AJ199: 31 | AR199: 39459 | AT199: Interna intäkter | AU199: Interna intäkter | AV199: Verksamhetens intäkter
AF200: OF112 | AG200: Enheten för oral diagnostik och kirurgi | AH200: OF11205503 | AI200: Forskningsbidrag / Bodil Lund | AJ200: 31 | AR200: 39488
... 175 more rows

Sheet ColorChanger
L10: Graph Types
L11: 4 | N11: Line
L12: 51 | N12: Column
L13: 5 | N13: Pie
L14: 117 | N14: Treemap | R14: When fetching, defined colors is viewed here
B15: Worksheet | C15: Graph Type | D15: Graph Name | E15: Graph Title | F15: Serie Name | G15: Fill Color | H15: Outline Color | R15: Fill color | S15: Outline Color
B16: PnL_Graph | C16: 52 | D16: Chart 11 | F16: COGS
B17: PnL_Graph | C17: 52 | D17: Chart 11 | F17: Labour Costs
B18: PnL_Graph | C18: 52 | D18: Chart 11 | F18: Other Costs
B19: PnL_Graph | C19: 52 | D19: Chart 11 | F19: Financials
B20: PnL_Graph | C20: 52 | D20: Chart 11 | F20: Income
B21: PnL_Graph | C21: 52 | D21: Chart 11 | F21: Depreciation
B22: PnL Time | C22: 52 | D22: Chart 11 | F22: Costs - COGS
B23: PnL Time | C23: 52 | D23: Chart 11 | F23: Costs - Labour Costs
B24: PnL Time | C24: 52 | D24: Chart 11 | F24: Costs - Other Costs
B25: PnL Time | C25: 52 | D25: Chart 11 | F25: Costs - Financials
B26: PnL Time | C26: 52 | D26: Chart 11 | F26: Costs - Depreciation
B27: PnL Time | C27: 52 | D27: Chart 11 | F27: Income - Income
B28: SalesMarket | C28: 52 | D28: Chart 3 | F28: Retail
B29: SalesMarket | C29: 52 | D29: Chart 3 | F29: Export
B30: SalesMarket | C30: 52 | D30: Chart 3 | F30: Other
B31: SalesMarket | C31: 52 | D31: Chart 3 | F31: Government
B32: SalesMarket | C32: 52 | D32: Chart 3 | F32: B2B
B33: SalesMarket | C33: 52 | D33: Chart 3 | F33: Consultancy
B34: Compare Budget | C34: 52 | D34: Chart 11 | E34: Differences | F34: Total
B35: Compare Budget2 | C35: 52 | D35: Chart 3 | F35: Income
B36: Compare Budget2 | C36: 52 | D36: Chart 3 | F36: COGS
B37: Compare Budget2 | C37: 52 | D37: Chart 3 | F37: Labour Costs
B38: Compare Budget2 | C38: 52 | D38: Chart 3 | F38: Other Costs
B39: Compare Budget2 | C39: 52 | D39: Chart 3 | F39: Financials

Sheet SCBData
A1: Bruttokostnad i tkr, löpande priser efter region, verksamhetsområde och år
A3: region | B3: verksamhetsområde | C3: 2018 | D3: 2019 | E3: 2020 | M3: Lärare 1 | N3: 2021-01-01 | O3: =AE3*1.325*12*AF3/100 -> 458556 | R3: PEDAGOGISK VERKSAMHET | S3: Grönkullaskolan | U3: Personal | V3: Cost | W3: Grundskola | X3: Lärare | AE3: =28000*(RANDBETWEEN(90,110)/100) -> 28840 | AF3: 100
A4: 2505 Arvidsjaur | B4: POLITISK VERKSAMHET, TOTALT | C4: 8467 | D4: 8592 | E4: .. | G4: =IF(RIGHT(B4,6)="TOTALT",0,D4) -> 0 | H4: =IF(RIGHT(B4,6)="TOTALT",LEFT(B4,LEN(B4)-8),H3) -> POLITISK VERKSAMHET | M4: Lärare 2 | N4: 2021-01-01 | O4: =AE4*1.325*12*AF4/100 -> 489720 | R4: PEDAGOGISK VERKSAMHET | S4: Grönkullaskolan | U4: Personal | V4: Cost | W4: Grundskola | X4: Lärare | AE4: 30800 | AF4: 100
A5: 2505 Arvidsjaur | B5: Nämnd- och styrelseverksamhet | C5: 6678 | D5: 6384 | E5: .. | G5: =IF(RIGHT(B5,6)="TOTALT",0,D5) -> 6384 | H5: =IF(RIGHT(B5,6)="TOTALT",LEFT(B5,LEN(B5)-8),H4) -> POLITISK VERKSAMHET | M5: Lärare 3 | N5: 2021-01-01 | O5: 463008 | R5: PEDAGOGISK VERKSAMHET | S5: Grönkullaskolan | U5: Personal | V5: Cost | W5: Grundskola | X5: Lärare | AE5: 29120 | AF5: 100
A6: 2505 Arvidsjaur | B6: Stöd till politiska partier | C6: 546 | D6: 558 | E6: .. | G6: 558 | H6: POLITISK VERKSAMHET | M6: Lärare 4 | N6: 2021-01-01 | O6: 431844 | R6: PEDAGOGISK VERKSAMHET | S6: Grönkullaskolan | U6: Personal | V6: Cost | W6: Grundskola | X6: Lärare | AE6: 27160 | AF6: 100
A7: 2505 Arvidsjaur | B7: Revision | C7: 285 | D7: 667 | E7: .. | G7: 667 | H7: POLITISK VERKSAMHET | M7: Lärare 5 | N7: 2021-01-01 | O7: 471912 | R7: PEDAGOGISK VERKSAMHET | S7: Grönkullaskolan | U7: Personal | V7: Cost | W7: Grundskola | X7: Lärare | AE7: 29680 | AF7: 100
A8: 2505 Arvidsjaur | B8: Övrig politisk verksamhet | C8: 958 | D8: 983 | E8: .. | G8: 983 | H8: POLITISK VERKSAMHET | M8: Lärare 6 | N8: 2021-01-01 | O8: 458556 | R8: PEDAGOGISK VERKSAMHET | S8: Grönkullaskolan | U8: Personal | V8: Cost | W8: Grundskola | X8: Lärare | AE8: 28840 | AF8: 100
A9: 2505 Arvidsjaur | B9: INFRASTRUKTUR, SKYDD mm, TOTALT | C9: 51431 | D9: 53644 | E9: .. | G9: 0 | H9: INFRASTRUKTUR, SKYDD mm | M9: Lärare 7 | N9: 2021-01-01 | O9: 422940 | R9: PEDAGOGISK VERKSAMHET | S9: Grönkullaskolan | U9: Personal | V9: Cost | W9: Grundskola | X9: Lärare | AE9: 26600 | AF9: 100
A10: 2505 Arvidsjaur | B10: Fysisk och teknisk planering, bostadsförbättring | C10: 9115 | D10: 9335 | E10: .. | G10: 9335 | H10: INFRASTRUKTUR, SKYDD mm | M10: Lärare 8 | N10: 2021-01-01 | O10: 454104 | R10: PEDAGOGISK VERKSAMHET | S10: Grönkullaskolan | U10: Personal | V10: Cost | W10: Grundskola | X10: Lärare | AE10: 28560 | AF10: 100
A11: 2505 Arvidsjaur | B11: Näringslivsfrämjande åtgärder | C11: 14125 | D11: 16845 | E11: .. | G11: 16845 | H11: INFRASTRUKTUR, SKYDD mm | M11: Lärare 9 | N11: 2021-01-01 | O11: 463008 | R11: PEDAGOGISK VERKSAMHET | S11: Grönkullaskolan | U11: Personal | V11: Cost | W11: Grundskola | X11: Lärare | AE11: 29120 | AF11: 100
A12: 2505 Arvidsjaur | B12: Konsument- och energirådgivning | C12: 1 | D12: 0 | E12: .. | G12: 0 | H12: INFRASTRUKTUR, SKYDD mm | M12: Lärare 10 | N12: 2021-01-01 | O12: 480816 | R12: PEDAGOGISK VERKSAMHET | S12: Grönkullaskolan | U12: Personal | V12: Cost | W12: Grundskola | X12: Lärare | AE12: 30240 | AF12: 100
A13: 2505 Arvidsjaur | B13: Turistverksamhet | C13: 6846 | D13: 6246 | E13: .. | G13: 6246 | H13: INFRASTRUKTUR, SKYDD mm | M13: Lärare 11 | N13: 2021-01-01 | O13: 218148 | R13: PEDAGOGISK VERKSAMHET | S13: Grönkullaskolan | U13: Personal | V13: Cost | W13: Grundskola | X13: Lärare | AE13: 27440 | AF13: 50
A14: 2505 Arvidsjaur | B14: Väg- och järnvägsnät, parkering | C14: 6880 | D14: 6931 | E14: .. | G14: 6931 | H14: INFRASTRUKTUR, SKYDD mm | M14: Lärare 12 | N14: 2021-01-01 | O14: 209244 | R14: PEDAGOGISK VERKSAMHET | S14: Grönkullaskolan | U14: Personal | V14: Cost | W14: Grundskola | X14: Lärare | AE14: 26320 | AF14: 50
A15: 2505 Arvidsjaur | B15: Parker | C15: 1486 | D15: 1729 | E15: .. | G15: 1729 | H15: INFRASTRUKTUR, SKYDD mm | M15: Lärare 13 | N15: 2021-01-01 | O15: 476364 | R15: PEDAGOGISK VERKSAMHET | S15: Grönkullaskolan | U15: Personal | V15: Cost | W15: Grundskola | X15: Lärare | AE15: 29960 | AF15: 100
A16: 2505 Arvidsjaur | B16: Miljö- och hälsoskydd, myndighetsutövning | C16: 2668 | D16: 2695 | E16: .. | G16: 2695 | H16: INFRASTRUKTUR, SKYDD mm | M16: Lärare 14 | N16: 2021-01-01 | O16: 463008 | R16: PEDAGOGISK VERKSAMHET | S16: Grönkullaskolan | U16: Personal | V16: Cost | W16: Grundskola | X16: Lärare | AE16: 29120 | AF16: 100
A17: 2505 Arvidsjaur | B17: Miljö- hälsa och hållbar utveckling | C17: 0 | D17: 0 | E17: .. | G17: 0 | H17: INFRASTRUKTUR, SKYDD mm | M17: Lärare 15 | N17: 2021-01-01 | O17: 467460 | R17: PEDAGOGISK VERKSAMHET | S17: Grönkullaskolan | U17: Personal | V17: Cost | W17: Grundskola | X17: Lärare | AE17: 29400 | AF17: 100
A18: 2505 Arvidsjaur | B18: Alkoholtillstånd m.m. | C18: 150 | D18: 140 | E18: .. | G18: 140 | H18: INFRASTRUKTUR, SKYDD mm | M18: Lärare 16 | N18: 2021-01-01 | O18: 409584 | R18: PEDAGOGISK VERKSAMHET | S18: Grönkullaskolan | U18: Personal | V18: Cost | W18: Grundskola | X18: Lärare | AE18: 25760 | AF18: 100
A19: 2505 Arvidsjaur | B19: Räddningstjänst | C19: 9722 | D19: 9344 | E19: .. | G19: 9344 | H19: INFRASTRUKTUR, SKYDD mm | M19: Lärare 17 | N19: 2021-01-01 | O19: 445200 | R19: PEDAGOGISK VERKSAMHET | S19: Grönkullaskolan | U19: Personal | V19: Cost | W19: Grundskola | X19: Lärare | AE19: 28000 | AF19: 100
A20: 2505 Arvidsjaur | B20: Totalförsvar och samhällsskydd | C20: 438 | D20: 379 | E20: .. | G20: 379 | H20: INFRASTRUKTUR, SKYDD mm | M20: Lärare 18 | N20: 2021-01-01 | O20: 476364 | R20: PEDAGOGISK VERKSAMHET | S20: Grönkullaskolan | U20: Personal | V20: Cost | W20: Grundskola | X20: Lärare | AE20: 29960 | AF20: 100
A21: 2505 Arvidsjaur | B21: KULTUR OCH FRITID, TOTALT | C21: 26335 | D21: 24940 | E21: .. | G21: 0 | H21: KULTUR OCH FRITID | M21: Lärare 19 | N21: 2021-01-01 | O21: 449652 | R21: PEDAGOGISK VERKSAMHET | S21: Grönkullaskolan | U21: Personal | V21: Cost | W21: Grundskola | X21: Lärare | AE21: 28280 | AF21: 100
A22: 2505 Arvidsjaur | B22: Stöd till studieorganisationer | C22: 0 | D22: 0 | E22: .. | G22: 0 | H22: KULTUR OCH FRITID | M22: Lärare 20 | N22: 2021-01-01 | O22: 485268 | R22: PEDAGOGISK VERKSAMHET | S22: Grönkullaskolan | U22: Personal | V22: Cost | W22: Grundskola | X22: Lärare | AE22: 30520 | AF22: 100
A23: 2505 Arvidsjaur | B23: Allmän kulturverksamhet, övrigt | C23: 5891 | D23: 5479 | E23: .. | G23: 5479 | H23: KULTUR OCH FRITID | M23: Rektor | N23: 2021-01-01 | O23: 445200 | R23: PEDAGOGISK VERKSAMHET | S23: Grönkullaskolan | U23: Personal | V23: Cost | W23: Grundskola | X23: Administrativ personal | AE23: 28000 | AF23: 100
A24: 2505 Arvidsjaur | B24: Bibliotek | C24: 3714 | D24: 3048 | E24: .. | G24: 3048 | H24: KULTUR OCH FRITID | M24: Resurslärare | N24: 2021-01-01 | O24: 463008 | R24: PEDAGOGISK VERKSAMHET | S24: Grönkullaskolan | U24: Personal | V24: Cost | W24: Grundskola | X24: Lärare | AE24: =32000*(RANDBETWEEN(90,110)/100) -> 29120 | AF24: 100
A25: 2505 Arvidsjaur | B25: Musikskola / kulturskola | C25: 3793 | D25: 3638 | E25: .. | G25: 3638 | H25: KULTUR OCH FRITID | M25: Material | N25: 2021-01-01 | O25: =600000*(RANDBETWEEN(70,130)/100) -> 654000 | R25: PEDAGOGISK VERKSAMHET | S25: Grönkullaskolan | U25: Material | V25: Cost | W25: Grundskola | X25: Skolmaterial
A26: 2505 Arvidsjaur | B26: Allmän fritidsverksamhet | C26: 0 | D26: 0 | E26: .. | G26: 0 | H26: KULTUR OCH FRITID | M26: Lokalhyra | N26: 2021-01-01 | O26: =1000000*(RANDBETWEEN(70,130)/100) -> 1250000 | R26: PEDAGOGISK VERKSAMHET | S26: Grönkullaskolan | U26: Fastigheter och Inventarier | V26: Cost | W26: Grundskola | X26: Lokalhyra
A27: 2505 Arvidsjaur | B27: Idrotts- och fritidsanläggningar | C27: 12937 | D27: 12775 | E27: .. | G27: 12775 | H27: KULTUR OCH FRITID
A28: 2505 Arvidsjaur | B28: Fritidsgårdar | C28: 0 | D28: 0 | E28: .. | G28: 0 | H28: KULTUR OCH FRITID
A29: 2505 Arvidsjaur | B29: PEDAGOGISK VERKSAMHET, TOTALT | C29: 186848 | D29: 192343 | E29: .. | G29: 0 | H29: PEDAGOGISK VERKSAMHET
A30: 2505 Arvidsjaur | B30: Öppen förskola | C30: 0 | D30: 0 | E30: .. | G30: 0 | H30: PEDAGOGISK VERKSAMHET
A31: 2505 Arvidsjaur | B31: Förskola | C31: 51218 | D31: 51873 | E31: .. | G31: 51873 | H31: PEDAGOGISK VERKSAMHET
A32: 2505 Arvidsjaur | B32: Pedagogisk omsorg | C32: 0 | D32: 0 | E32: .. | G32: 0 | H32: PEDAGOGISK VERKSAMHET
A33: 2505 Arvidsjaur | B33: Öppen fritidsverksamhet | C33: 0 | D33: 0 | E33: .. | G33: 0 | H33: PEDAGOGISK VERKSAMHET
A34: 2505 Arvidsjaur | B34: Fritidshem | C34: 5855 | D34: 5422 | E34: .. | G34: 5422 | H34: PEDAGOGISK VERKSAMHET
A35: 2505 Arvidsjaur | B35: Förskoleklass | C35: 5337 | D35: 6368 | E35: .. | G35: 6368 | H35: PEDAGOGISK VERKSAMHET
A36: 2505 Arvidsjaur | B36: Grundskola | C36: 71046 | D36: 72002 | E36: .. | G36: 72002 | H36: PEDAGOGISK VERKSAMHET
A37: 2505 Arvidsjaur | B37: Grundsärskola | C37: 1827 | D37: 2022 | E37: .. | G37: 2022 | H37: PEDAGOGISK VERKSAMHET
A38: 2505 Arvidsjaur | B38: Gymnasieskola | C38: 41835 | D38: 45308 | E38: .. | G38: 45308 | H38: PEDAGOGISK VERKSAMHET
A39: 2505 Arvidsjaur | B39: Gymnasiesärskola | C39: 394 | D39: 0 | E39: .. | G39: 0 | H39: PEDAGOGISK VERKSAMHET
A40: 2505 Arvidsjaur | B40: Grundläggande vuxenutbildning | C40: 0 | D40: 0 | E40: .. | G40: 0 | H40: PEDAGOGISK VERKSAMHET
A41: 2505 Arvidsjaur | B41: Gymnasial vuxen- och påbyggnadsutbildning | C41: 4046 | D41: 4894 | E41: .. | G41: 4894 | H41: PEDAGOGISK VERKSAMHET
A42: 2505 Arvidsjaur | B42: Särskild utbildning för vuxna | C42: 0 | D42: 0 | E42: .. | G42: 0 | H42: PEDAGOGISK VERKSAMHET
A43: 2505 Arvidsjaur | B43: Högskoleutbildning m.m. | C43: 392 | D43: 478 | E43: .. | G43: 478 | H43: PEDAGOGISK VERKSAMHET
A44: 2505 Arvidsjaur | B44: Svenska för invandrare | C44: 4164 | D44: 3975 | E44: .. | G44: 3975 | H44: PEDAGOGISK VERKSAMHET
A45: 2505 Arvidsjaur | B45: Uppdragsutbildning m.m. | C45: 735 | D45: 0 | E45: .. | G45: 0 | H45: PEDAGOGISK VERKSAMHET
A46: 2505 Arvidsjaur | B46: VÅRD OCH OMSORG, TOTALT | C46: 233275 | D46: 222082 | E46: .. | G46: 0 | H46: VÅRD OCH OMSORG
A47: 2505 Arvidsjaur | B47: Primärvård | C47: 0 | D47: 0 | E47: .. | G47: 0 | H47: VÅRD OCH OMSORG
A48: 2505 Arvidsjaur | B48: Hälso- och sjukvård, övrigt exkl. hemsjukvård | C48: 0 | D48: 0 | E48: .. | G48: 0 | H48: VÅRD OCH OMSORG
A49: 2505 Arvidsjaur | B49: Vård och omsorg om äldre | C49: 134303 | D49: 125217 | E49: .. | G49: 125217 | H49: VÅRD OCH OMSORG
A50: 2505 Arvidsjaur | B50: Insatser till personer med funktionsnedsättning (ej LSS/SFB) | C50: 11195 | D50: 6162 | E50: .. | G50: 6162 | H50: VÅRD OCH OMSORG
A51: 2505 Arvidsjaur | B51: Insatser enligt LSS/SFB | C51: 58842 | D51: 57582 | E51: .. | G51: 57582 | H51: VÅRD OCH OMSORG
A52: 2505 Arvidsjaur | B52: Färdtjänst/riksfärdtjänst | C52: 1397 | D52: 1103 | E52: .. | G52: 1103 | H52: VÅRD OCH OMSORG
A53: 2505 Arvidsjaur | B53: Vård för vuxna med missbruksproblem | C53: 5613 | D53: 4836 | E53: .. | G53: 4836 | H53: VÅRD OCH OMSORG
A54: 2505 Arvidsjaur | B54: Barn och ungdomsvård | C54: 12587 | D54: 18690 | E54: .. | G54: 18690 | H54: VÅRD OCH OMSORG
A55: 2505 Arvidsjaur | B55: Övriga insatser till vuxna | C55: 2163 | D55: 776 | E55: .. | G55: 776 | H55: VÅRD OCH OMSORG
A56: 2505 Arvidsjaur | B56: Ekonomiskt bistånd | C56: 5650 | D56: 6854 | E56: .. | G56: 6854 | H56: VÅRD OCH OMSORG
A57: 2505 Arvidsjaur | B57: Familjerätt och familjerådgivning | C57: 1524 | D57: 862 | E57: .. | G57: 862 | H57: VÅRD OCH OMSORG
A58: 2505 Arvidsjaur | B58: SÄRSKILT RIKTADE INSATSER, TOTALT | C58: 19466 | D58: 9684 | E58: .. | G58: 0 | H58: SÄRSKILT RIKTADE INSATSER
A59: 2505 Arvidsjaur | B59: Flyktingmottagande | C59: 8544 | D59: 2838 | E59: .. | G59: 2838 | H59: SÄRSKILT RIKTADE INSATSER
A60: 2505 Arvidsjaur | B60: Arbetsmarknadsåtgärder | C60: 10922 | D60: 6846 | E60: .. | G60: 6846 | H60: SÄRSKILT RIKTADE INSATSER
A61: 2505 Arvidsjaur | B61: SUMMA EGENTLIG VERKSAMHET | C61: 525822 | D61: 511284 | E61: .. | G61: 511284 | H61: SÄRSKILT RIKTADE INSATSER
A62: 2505 Arvidsjaur | B62: AFFÄRSVERKSAMHET, TOTALT | C62: 29881 | D62: 27562 | E62: .. | G62: 0 | H62: AFFÄRSVERKSAMHET
A63: 2505 Arvidsjaur | B63: Arbetsområden och lokaler | C63: 1941 | D63: 1206 | E63: .. | G63: 1206 | H63: AFFÄRSVERKSAMHET
A64: 2505 Arvidsjaur | B64: Hamnverksamhet | C64: 0 | D64: 0 | E64: .. | G64: 0 | H64: AFFÄRSVERKSAMHET
A65: 2505 Arvidsjaur | B65: Kommersiell verksamhet | C65: 85 | D65: 156 | E65: .. | G65: 156 | H65: AFFÄRSVERKSAMHET
A66: 2505 Arvidsjaur | B66: Bostadsverksamhet | C66: 140 | D66: 149 | E66: .. | G66: 149 | H66: AFFÄRSVERKSAMHET
A67: 2505 Arvidsjaur | B67: Flygtrafik | C67: 0 | D67: 0 | E67: .. | G67: 0 | H67: AFFÄRSVERKSAMHET
A68: 2505 Arvidsjaur | B68: Buss, bil och spårbundna persontransporter | C68: 3070 | D68: 2258 | E68: .. | G68: 2258 | H68: AFFÄRSVERKSAMHET
A69: 2505 Arvidsjaur | B69: Sjötrafik | C69: 0 | D69: 0 | E69: .. | G69: =IF(RIGHT(B69,6)="TOTALT",0,D69) -> 0 | H69: =IF(RIGHT(B69,6)="TOTALT",LEFT(B69,LEN(B69)-8),H68) -> AFFÄRSVERKSAMHET
A70: 2505 Arvidsjaur | B70: Elförsörjning och gasförsörjning | C70: 0 | D70: 0 | E70: .. | G70: 0 | H70: AFFÄRSVERKSAMHET
A71: 2505 Arvidsjaur | B71: Fjärrvärmeförsörjning | C71: 0 | D71: 0 | E71: .. | G71: 0 | H71: AFFÄRSVERKSAMHET
A72: 2505 Arvidsjaur | B72: Vattenförsörjning och avloppshantering | C72: 13918 | D72: 14001 | E72: .. | G72: 14001 | H72: AFFÄRSVERKSAMHET
A73: 2505 Arvidsjaur | B73: Avfallshantering | C73: 10726 | D73: 9792 | E73: .. | G73: 9792 | H73: AFFÄRSVERKSAMHET
A74: 2505 Arvidsjaur | B74: SUMMA DRIFTVERKSAMHET | C74: 555703 | D74: 538846 | E74: .. | G74: 538846 | H74: AFFÄRSVERKSAMHET
G75: 0 | H75: AFFÄRSVERKSAMHET

Sheet ExportTemplate
E9: =SUBTOTAL(9,$E$11:$E$300) -> 0

Sheet Notes (hidden)
C6: 240
C7: 180
C8: 120
C9: 60
